Workbook

Sheet Formatting (hidden)
A2: 1) Reference Scenario Total Regional Residential Heating Consumption Thousand MMBTUs | G2: 2) 90x50 Scenario Total Regional Residential Heating Consumption Thousand MMBTUs | M2: 3) Reference Scenario Total Regional Commercial Consumption Thousand MMBTUs | S2: 4) 90x50 Scenario Total Regional Commercial Consumption Thousand MMBTUs
A3: Branches | B3: 2015 | C3: 2025 | D3: 2035 | E3: 2050 | G3: Branches | H3: 2015 | I3: 2025 | J3: 2035 | K3: 2050 | M3: Branches | N3: 2015 | O3: 2025 | P3: 2035 | Q3: 2050 | S3: Branches | T3: 2015 | U3: 2025 | V3: 2035 | W3: 2050
A4: Biodistillates | B4: - | C4: - | D4: - | E4: - | G4: Biodistillates | H4: 121 | I4: 539 | J4: 991 | K4: 1818 | M4: Biofuel | N4: - | O4: - | P4: - | Q4: - | S4: Biofuel | T4: 41.2 | U4: 257.6 | V4: 483.3 | W4: 859.4
A5: Cord Wood | B5: 7058 | C5: 6527 | D5: 6114 | E5: 5610 | G5: Cord Wood | H5: 7056 | I5: 6663 | J5: 6259 | K5: 6048 | M5: Distillate Fuel Oil | N5: 3874 | O5: 3130 | P5: 2273 | Q5: 928 | S5: Distillate Fuel Oil | T5: 3831.5 | U5: 2865.9 | V5: 1777.3 | W5: 46.4
A6: Electric Resistance | B6: 1133 | C6: 914 | D6: 602 | E6: 250 | G6: Electric Resistance | H6: 1165 | I6: 980 | J6: 561 | K6: 174 | M6: Electric Use | N6: 7118 | O6: 7192 | P6: 7125 | Q6: 7158 | S6: Electric Use | T6: 7117.9 | U6: 7191.7 | V6: 7124.6 | W6: 7158.4
A7: Heat Pump | B7: 125 | C7: 616 | D7: 1202 | E7: 1689 | G7: Heat Pump | H7: 200 | I7: 1055 | J7: 2133 | K7: 3029 | M7: LPG | N7: 2897 | O7: 2975 | P7: 2997 | Q7: 3094 | S7: LPG | T7: 2815.1 | U7: 2459.7 | V7: 2030.6 | W7: 1375
A8: Heat Pump Water Heater | B8: 25 | C8: 98 | D8: 335 | E8: 697 | G8: Heat Pump Water Heater | H8: 120 | I8: 375 | J8: 778 | K8: 1256 | M8: Natural Gas | N8: 2791 | O8: 3390 | P8: 3961 | Q8: 4967 | S8: Natural Gas | T8: 2587.9 | U8: 2120.3 | V8: 1578.3 | W8: 730.4
A9: Kerosene | B9: 989 | C9: 799 | D9: 608 | E9: 287 | G9: Kerosene | H9: 944 | I9: 674 | J9: 412 | K9: - | M9: Residual Fuel Oil | N9: 393 | O9: 293 | P9: 180 | Q9: - | S9: Residual Fuel Oil | T9: 392.7 | U9: 292.5 | V9: 179.6 | W9: -
A10: LPG | B10: 5384 | C10: 4361 | D10: 3273 | E10: 1234 | G10: LPG | H10: 5279 | I10: 4124 | J10: 2893 | K10: 1049 | M10: Wood and wood waste consumption | N10: 1251 | O10: 1331 | P10: 1390 | Q10: 1512 | S10: Wood and wood waste consumption | T10: 1343 | U10: 1908 | V10: 2472.2 | W10: 3437.4
A11: Natural Gas | B11: 4654 | C11: 6031 | D11: 7768 | E11: 11477 | G11: Natural Gas | H11: 4187 | I11: 3417 | J11: 1913 | K11: 256 | M11: Total | N11: 18323 | O11: 18311 | P11: 17925 | Q11: 17660 | S11: Total | T11: 18129.3 | U11: 17095.7 | V11: 15646 | W11: 13607
A12: Oil | B12: 10195 | C12: 8172 | D12: 5478 | E12: 1713 | G12: Oil | H12: 9711 | I12: 6995 | J12: 4342 | K12: -
A13: Wood pellets | B13: 698 | C13: 886 | D13: 1064 | E13: 1342 | G13: Wood pellets | H13: 904 | I13: 1467 | J13: 1890 | K13: 2269
A14: Total | B14: =SUM(B4:B13) -> 30261 | C14: =SUM(C4:C13) -> 28404 | D14: =SUM(D4:D13) -> 26444 | E14: =SUM(E4:E13) -> 24299 | G14: Total | H14: =SUM(H4:H13) -> 29687 | I14: =SUM(I4:I13) -> 26289 | J14: =SUM(J4:J13) -> 22172 | K14: =SUM(K4:K13) -> 15899
A22: 5) Reference Scenario Total Regional Light Duty Vehicle Consumption Million MMBTUs | G22: 6) 90x50 Scenario Total Regional Light Duty Vehicle Consumption Million MMBTUs | M22: 7) Reference Scenario Total Regional Heavy Duty Vehicle Consumption Thousand MMBTUs | S22: 8) 90x50 Scenario Total Regional Heavy Duty Vehicle Consumption Thousand MMBTUs
A23: Branches | B23: 2015 | C23: 2025 | D23: 2035 | E23: 2050 | G23: Branches | H23: 2015 | I23: 2025 | J23: 2035 | K23: 2050 | M23: Branches | N23: 2015 | O23: 2025 | P23: 2035 | Q23: 2050 | S23: Branches | T23: 2015 | U23: 2025 | V23: 2035 | W23: 2050
A24: Gasoline | B24: 28 | C24: 23 | D24: 20 | E24: 17 | G24: Gasoline | H24: 28 | I24: 20 | J24: 11 | K24: 1 | M24: Biodiesel | N24: 95 | O24: 88 | P24: 68 | Q24: 14 | S24: Biodiesel | T24: 522 | U24: 2565 | V24: 4521 | W24: 7443
A25: Ethanol | B25: 4 | C25: 3 | D25: 3 | E25: 2 | G25: Ethanol | H25: 4 | I25: 3 | J25: 1 | K25: 0 | M25: CNG | N25: 274 | O25: 538 | P25: 886 | Q25: 1575 | S25: CNG | T25: 225 | U25: 199 | V25: 178 | W25: 150
A26: Electricity | B26: 0 | C26: 0 | D26: 0 | E26: 0 | G26: Electricity | H26: 0 | I26: 1 | J26: 2 | K26: 5 | M26: Diesel | N26: 7907 | O26: 8616 | P26: 8871 | Q26: 8349 | S26: Diesel | T26: 7236 | U26: 5013 | V26: 2979 | W26: 99
A27: Diesel | B27: 1 | C27: 1 | D27: 1 | E27: 1 | G27: Diesel | H27: 1 | I27: 1 | J27: 0 | K27: 0 | M27: LPG | N27: 105 | O27: 103 | P27: 90 | Q27: 49 | S27: LPG | T27: 100 | U27: 83 | V27: 69 | W27: 49
A28: Biodiesel | B28: 0 | C28: 0 | D28: 0 | E28: 0 | G28: Biodiesel | H28: 0 | I28: 0 | J28: 1 | K28: 1 | M28: Total | N28: 8381 | O28: 9344 | P28: 9914 | Q28: 9987 | S28: Total | T28: 8084 | U28: 7861 | V28: 7747 | W28: 7742
A29: Hydrogen | B29: - | C29: - | D29: - | E29: - | G29: Hydrogen | H29: - | I29: - | J29: - | K29: -
A30: Total | B30: =SUM(B24:B29) -> 33 | C30: =SUM(C24:C29) -> 27 | D30: =SUM(D24:D29) -> 24 | E30: =SUM(E24:E29) -> 20 | G30: Total | H30: =SUM(H24:H29) -> 33 | I30: =SUM(I24:I29) -> 25 | J30: =SUM(J24:J29) -> 15 | K30: =SUM(K24:K29) -> 7
A33: Reference Scenario Electric Consumption by Branch | G33: 90x50 Scenario Electric Consumption by Branch
A34: Branches | B34: 2015 | C34: 2025 | D34: 2035 | E34: 2050 | G34: Branches | H34: 2015 | I34: 2025 | J34: 2035 | K34: 2050
A35: Cooling | B35: 0.3 | C35: 0.4 | D35: 0.5 | E35: 0.6 | G35: Cooling | H35: 0.3 | I35: 0.4 | J35: 0.6 | K35: 0.7
A36: Electric Appliances | B36: 0.9 | C36: 1 | D36: 1.2 | E36: 1.5 | G36: Electric Appliances | H36: 0.9 | I36: 0.9 | J36: 1 | K36: 1.1
A37: Electric CDs etc | B37: 0.4 | C37: 0.4 | D37: 0.4 | E37: 0.3 | G37: Electric CDs etc | H37: 0.5 | I37: 0.4 | J37: 0.4 | K37: 0.4
A38: Electric Kitchen Range | B38: 0.1 | C38: 0.1 | D38: 0.1 | E38: 0.1 | G38: Electric Kitchen Range | H38: 0.1 | I38: 0.1 | J38: 0.1 | K38: 0.1
A39: Electric Lighting | B39: 1.8 | C39: 1.6 | D39: 1.4 | E39: 1.3 | G39: Electric Lighting | H39: 1.7 | I39: 1.3 | J39: 0.9 | K39: 0.6
A40: Misc Electric | B40: 2.6 | C40: 3.6 | D40: 4.6 | E40: 6.1 | G40: Misc Electric | H40: 2.1 | I40: 2.2 | J40: 2.2 | K40: 2.2
A41: Plug Load | B41: 0.2 | C41: 0.2 | D41: 0.2 | E41: 0.2 | G41: Plug Load | H41: 0.2 | I41: 0.2 | J41: 0.2 | K41: 0.2
A42: Total | B42: =SUM(B35:B41) -> 6.3 | C42: =SUM(C35:C41) -> 7.3 | D42: =SUM(D35:D41) -> 8.4 | E42: =SUM(E35:E41) -> 10.1 | G42: Total | H42: =SUM(H35:H41) -> 5.8 | I42: =SUM(I35:I41) -> 5.5 | J42: =SUM(J35:J41) -> 5.4 | K42: =SUM(K35:K41) -> 5.3
A48: 9) 90 % Renewable by 2050 vs Reference Residential Non-Thermal Electric Consumption, Million MWh | B48: 2015 | C48: 2025 | D48: 2035 | E48: 2050
B49: =B42-H42 -> 0.5 | C49: =C42-I42 -> 1.8 | D49: =D42-J42 -> 3 | E49: =E42-K42 -> 4.8

Sheet Instructions
B3: This workbook is designed as an aid to Town Planners in the development of : | O3: Averys Gore
C4: estimates of current energy consumption and, | O4: Buel's Gore
C5: targets for: | O5: Ferdinand
D6: weatherization | O6: Glastenbury
D7: fuel-switching | O7: Lemington
D8: electric efficiency | O8: Lewis
O9: Somerset
B10: To use this workbook first enter the name of your municipality here: | I10: Brownington | O10: Warners Grant
B11: Your municipality's share of the state's population is: | I11: =INDEX(town_population[Pop Share of State],MATCH(I10,town_population[Municipality])) -> 0.001553424719 | O11: Warren Gore
B12: Your municipality's share of the region's population is: | I12: =INDEX(town_population[Pop Share of Region],MATCH(I10,town_population[Municipality],0)) -> 0.01508527132
B13: (This share is used to determine your municipality's consumption and efficiency targets)
B14: Your municipality's share of the state commercial buildings stock is: | I14: =INDEX(town_establishments[share of state establishments],MATCH(I10,town_establishments[Municipality],0)) -> 0.0004726394286
B15: Your municipality's share of the regional commercial building stock is: | I15: =INDEX(town_establishments[share of regional establishments],MATCH(I10,town_establishments[Municipality],0)) -> 0.006168608636
B16: (This share is used to determine your municipality's consumption and efficiency targets)
B18: Next, enter the necessary assumptions into the input cells in the tabs labeled,
B19: "1.Current Trans," and "1.Current Heat."
C20: All cells requiring Planner inputs are formatted like this: | I20: good
C21: Cells that calculate key outputs are formatted like this: | I21: hunting
B23: These input assumptions will flow through to the calculations on the tabs labelled, "2. Trans Targets," "2.Heat Targets, and "2.Electric Targets." These 3 worksheets will guide Planners through an interpretation of the LEAP scenario data provided by VEIC.

Sheet 1.Current Trans
B2: Estimating current light-duty vehicle (LDV) transportation energy consumption in a municipal area
B5: =SUM(B26,B38) -> 63016.63896 | C5: This is the estimated total annual energy consumption amount in the area for light-duty passenger transportation purposes, in millions of Btu. It is produced from the calculation steps below which depend on assumptions inputted into each of the colored cells.
C7: Internal Combustion Engine (ICE) Transportation
A9: 1 | B9: 839 | C9: Enter an estimate of the number of fossil-fuel burning LDV in the area. It is not necessary to distinguish between diesel and gasoline burning vehicles.
D10: Refer to: | E10: Census website | G10: for counts of vehicles associated with area housing units
E11: VT Dept of Motor Vehicles | G11: for counts of individual vehicles registered in area, by type. Data will have to be specifically requested from the DMV.
D12: Note: | E12: It is not necessary to distinguish between diesel and gasoline burning vehicles.
A13: 2 | B13: 14000 | C13: Enter an estimate of the average annual number of miles travelled by an LDV in the area. For the State as a whole, total VMT per registered Vehicle is currently around 12,500 annually. The vast majority of LDV in Vermont can safely be assumed to drive between 9,000 and 15,000 miles annnually. | O13: =B13/12500 -> 1.12 | P13: < do not modify
A14: 3 | B14: 22 | C14: Enter an estimate of the average fuel economy of fossil fuel burning LDV fleet in the area, in miles per gallon (MPG). Statewide, the average fuel economy of all registered vehicles is around 22 MPG. Below are examples of the type of statistics that could be useful for benchmarking your estimate. Other information can be cited as well.
D15: 0.4 | E15: This is the percentage of all trips in Vermont taken in either trucks, SUVs or vans. All else equal, if this percentage is higher for your area than for the State, the average fuel economy in the area will be lower than the State average of 22.
D16: =150000/583770 -> 0.2569505113 | E16: This is the approximate percentage of all registered vehicles in Vermont that are trucks or SUVs. All else equal, if this percentage is higher for your area than for the State, the average fuel economy in the area will be lower than the State average of 22.
D17: 0.86 | E17: This is the percentage of all registered vehicles in Vermont that were manufactured after 2000. All else equal, if this percentage is higher for your area than for the State, the average fuel economy in the area will be lower than the State average of 22.
B18: =B9*B13/B14 -> 533909.0909 | C18: This formula converts the inputs above into an estimate of the number of gallons of fossil fuel consumed annualy in the area for LDV transportation
A19: 4 | B19: 0.09 | C19: Enter an estimate of the volumetric percentage of ethanol blended into area fuel supplies "at the pump." For the State as a whole, ethanol accounts for about 9% of the volume of fuel consumed "at the pump." This percentage may differ substantially area to area.
B20: =(1-B19)*B18 -> 485857.2727 | C20: This formula computes an estimate of the number of gallons of fossil fuel consumed annually from the values inputted above.
B21: =fossilBtu -> 121258.5 | C21: This is the number of Btu in a gallon of fossil fuel, computed as a weighted average of the individual heat contents of gasoline (95%) and diesel (5%).
B22: =B20*B21/1000000 -> 58914.32411 | C22: This formula converts the number of fossil fuel gallons computed above into its equivalent amount of Btu, in millions
B23: =B18-B20 -> 48051.81818 | C23: This formula computes an estimate of the number of gallons of ethanol consumed annually from the values inputted above.
B24: 84710 | C24: This is the number of Btu in a gallon of ethanol
B25: =B23*B24/1000000 -> 4070.469518 | C25: This formula converts the number of ethanol gallons computed above into its equivalent amount of Btu, in millions
B26: =B22+B25 -> 62984.79362 | C26: This is the estimated total annual energy consumption of ICE vehicles in the area, in millions of Btu
C28: Electric Powered Transportation (EV)
B30: Note that the share of consumption attributable to electric vehicles in any given area today will be very small. It is nonetheless important for Planners to take stock of local electric vehicle usage.
A32: 1 | B32: 4 | C32: Enter an estimate of the number of Electric Vehicles in the area.
D33: Refer to: | E33: Drive Electric
B34: 7000 | C34: Enter an estimate of the average annual number of miles travelled by EVs in the area. Currently this is likely to be less than the average VMT by ICE vehicles but it is also reasonable to assume it is equivalent.
B35: 3 | C35: This is the approximate average fuel economy of electric vehicles today, in miles per kWh
B36: =B32*B34/B35 -> 9333.333333 | C36: This formula computes an estimate of the the number of kWh consumed annually by EVs in the area from the values inputed above
B37: 3412 | C37: This is the number of Btu in a kWh of electricity at the point of use a.k.a site energy. Note that all electricity numbers in the LEAP scenario are reported as site energy.
B38: =B36*B37/1000000 -> 31.84533333 | C38: This formula converts the volume of kWh computed above into its equivalent amount of Btu, in millions

Sheet 1.Current Heat
B1: Estimating current non-industrial building (Residential and Commercial) heat energy consumption in a municipal area
B4: =SUM(B18,B43) -> 60527.91064 | C4: This is the estimated total annual energy heat consumption for Residential and Commercial buildings in the area, in millions of Btu. It is produced from the calculation steps below which depend on assumptions inputted into each of the colored cells
C6: Residential building heat energy consumption
A8: 1 | B8: 406 | C8: Enter an estimate of the total number of residential buildings in the area
D9: Refer to: | E9: Census website | G9: for a count of occupied housing units
A10: 2 | B10: 128.22 | C10: Enter an estimate of the average annual heating load of area residences, in millions of Btu (for space and water heating combined). For the State as a whole, this figure is around 110 MMBtu. The vast majority of residential heating loads can safely be assumed to fall between 70 and 150 MMBtu per year. Below are some useful statistics for benchmarking your estimate. The percentage to the right will adjust based on your entry. It should fall somewhere between 90% and 110%. | O10: =SUM('2.Heat Targets'!E58,'2.Heat Targets'!E61,'2.Heat Targets'!E64,'2.Heat Targets'!E67) -> 0.7162533864
D11: between 1,600 and 1,900 | E11: Department estimate of the average square footage of conditioned residential space in the state. All else equal, higher average residence sizes than this will be associated with higher average area heat loads (and vice versa).
D12: 0.26 | E12: Percent of residences in the state that were built before 1930. All else equal, a higher percentage than this in your area will likely be associated with higher average area heating loads (and vice versa).
D13: 0.5 | E13: Percentage of residences in the State with 6 rooms or more. All else equal, a higher percentage than this in your area will likely be associated with higher average area heating loads (and vice versa).
D14: 0.2 | E14: Approximate percentage of residences in the State with 4 bedrooms or more. All else equal, a higher percentage than this in your area will likely be associated with higher average area heating loads (and vice versa).
D15: 2.3 | E15: Number of people per household in State. All else equal, a higher number than this will likely be associated with higher average area heating loads (and vice versa).
D16: =(20000*1.25)/257000 -> 0.09727626459 | E16: Public Service Department estimate of the percentage of residences in the State that have been weatherized throughout the 2000s. All else equal, a higher percentage than this in your area will likely be associated with lower average area heating loads (and vice versa).
B18: =B8*B10 -> 52057.32 | C18: This is the estimated total heat energy consumption of Residential buildings in the area, in millions of Btu
C20: Commercial building heat energy consumption
A22: 1 | B22: =K41 -> 9 | C22: This the total number of commercial buildings in the area
D23: Refer to: | E23: VT DOL website | G23: for a count of commercial establishments in the area
A24: 2 | B24: =L41 -> 941.1767378 | C24: Estimate the average annual heating load of commercial establishments in area, in millions of Btu (space and water heating loads combined). For the state as a whole, the average is in the range of 700 MMBtu to 750 MMBtu per year but the average for any given area is very likely to be significantly higher or lower, as the mix of businesses from region to region is highly variable. The table below provides a generic method for taking account of local business mix when developing this estimate. Note that this method makes two simplifying assumptions 1) local businesses employ the same number of employees on average as all businesses in the state and 2) local business heat consumption is proportional to the number of workers employed in each type of business. Planners that elect to use this method should check for counter-intuitive results and make adjustments as necessary. | O24: =SUM('2.Heat Targets'!E76,'2.Heat Targets'!E79,'2.Heat Targets'!E82,'2.Heat Targets'!E85) -> 0.5198237078
D26: NAICS Code | E26: Number of Bldgs. in State | F26: Share of State Bldgs. | G26: Number of Empl. in State | H26: Avg number of Empl. (Statewide) | I26: Estimated Consumption (MMBtu) | J26: Estimated Avg. Consumption (MMBtu) | K26: Number of Bldgs. in Town | L26: Share of Town Bldgs.
C27: 1 | D27: 42. Wholesale trade | E27: 1418 | F27: =E27/$E$41 -> 0.07616694419 | G27: 9210 | H27: =G27/E27 -> 6.49506347 | I27: =H27/SUM($H$27:$H$40)*$I$41 -> 506702.4042 | J27: =I27/E27 -> 357.3359691 | K27: =INDEX(OFFSET(town_establishments[42. Wholesale trade],,C27-$C$27),MATCH(selected_town,town_establishments[Municipality],0),) -> 1 | L27: =IF(K27="","",K27/$K$41) -> 0.1111111111
C28: 2 | D28: 44-45. Retail trade | E28: 3134 | F28: =E28/$E$41 -> 0.1683407638 | G28: 37178 | H28: 11.86279515 | I28: =H28/SUM($H$27:$H$40)*$I$41 -> 925457.7498 | J28: =I28/E28 -> 295.2960274 | K28: =INDEX(OFFSET(town_establishments[42. Wholesale trade],,C28-$C$27),MATCH(selected_town,town_establishments[Municipality],0),) -> 1 | L28: 0.1111111111
C29: 3 | D29: 48-49. Transportation and warehousing | E29: 549 | F29: 0.02948917656 | G29: 6436 | H29: 11.72313297 | I29: 914562.2192 | J29: 1665.869252 | K29: =INDEX(OFFSET(town_establishments[42. Wholesale trade],,C29-$C$27),MATCH(selected_town,town_establishments[Municipality],0),) -> 0 | L29: 0
C30: 4 | D30: 51. Information | E30: 483 | F30: 0.02594402965 | G30: 4689 | H30: 9.708074534 | I30: 757360.5293 | J30: 1568.034222 | K30: =INDEX(OFFSET(town_establishments[42. Wholesale trade],,C30-$C$27),MATCH(selected_town,town_establishments[Municipality],0),) -> 0 | L30: 0
C31: 5 | D31: 52. Finance and insurance | E31: 944 | F31: 0.05070634366 | G31: 8692 | H31: 9.207627119 | I31: 718318.8925 | J31: 760.9310302 | K31: =INDEX(OFFSET(town_establishments[42. Wholesale trade],,C31-$C$27),MATCH(selected_town,town_establishments[Municipality],0),) -> 0 | L31: 0
C32: 6 | D32: 53. Real estate and rental and leasing | E32: 716 | F32: 0.03845947253 | G32: 2837 | H32: 3.962290503 | I32: 309112.01 | J32: 431.7206843 | K32: =INDEX(OFFSET(town_establishments[42. Wholesale trade],,C32-$C$27),MATCH(selected_town,town_establishments[Municipality],0),) -> 0 | L32: 0
C33: 7 | D33: 54. Professional and technical services | E33: 3170 | F33: 0.1702744803 | G33: 14050 | H33: 4.432176656 | I33: 345769.4568 | J33: 109.0755384 | K33: =INDEX(OFFSET(town_establishments[42. Wholesale trade],,C33-$C$27),MATCH(selected_town,town_establishments[Municipality],0),) -> 2 | L33: 0.2222222222
C34: 8 | D34: 55. Management of companies and enterprises | E34: 112 | F34: 0.006016006875 | G34: 2213 | H34: 19.75892857 | I34: 1541462.475 | J34: 13763.05781 | K34: =INDEX(OFFSET(town_establishments[42. Wholesale trade],,C34-$C$27),MATCH(selected_town,town_establishments[Municipality],0),) -> 0 | L34: 0
C35: 9 | D35: 56. Administrative and waste services | E35: 1580 | F35: 0.08486866842 | G35: 9665 | H35: 6.117088608 | I35: 477215.2757 | J35: 302.0349846 | K35: =INDEX(OFFSET(town_establishments[42. Wholesale trade],,C35-$C$27),MATCH(selected_town,town_establishments[Municipality],0),) -> 1 | L35: 0.1111111111
C36: 10 | D36: 61. Educational services | E36: 422 | F36: 0.02266745448 | G36: 10349 | H36: 24.52369668 | I36: 1913178.544 | J36: 4533.598445 | K36: =INDEX(OFFSET(town_establishments[42. Wholesale trade],,C36-$C$27),MATCH(selected_town,town_establishments[Municipality],0),) -> 1 | L36: 0.1111111111
C37: 11 | D37: 62. Health care and social assistance | E37: 1888 | F37: 0.1014126873 | G37: 49518 | H37: 26.22775424 | I37: 2046117.977 | J37: 1083.748929 | K37: =INDEX(OFFSET(town_establishments[42. Wholesale trade],,C37-$C$27),MATCH(selected_town,town_establishments[Municipality],0),) -> 0 | L37: 0
C38: 12 | D38: 71. Arts, entertainment, and recreation | E38: 412 | F38: 0.02213031101 | G38: 3869 | H38: 9.390776699 | I38: 732607.0258 | J38: 1778.172393 | K38: =INDEX(OFFSET(town_establishments[42. Wholesale trade],,C38-$C$27),MATCH(selected_town,town_establishments[Municipality],0),) -> 1 | L38: 0.1111111111
C39: 13 | D39: 72. Accommodation and food services | E39: 1807 | F39: 0.09706182521 | G39: 33991 | H39: 18.81073603 | I39: 1467490.69 | J39: 812.1143827 | K39: =INDEX(OFFSET(town_establishments[42. Wholesale trade],,C39-$C$27),MATCH(selected_town,town_establishments[Municipality],0),) -> 1 | L39: 0.1111111111
C40: 14 | D40: 81. Other services, except public administration | E40: 1982 | F40: 0.106461836 | G40: 8756 | H40: 4.417759839 | I40: 344644.7509 | J40: 173.8873617 | K40: =INDEX(OFFSET(town_establishments[42. Wholesale trade],,C40-$C$27),MATCH(selected_town,town_establishments[Municipality],0),) -> 1 | L40: 0.1111111111
E41: =SUM(E27:E40) -> 18617 | G41: =SUM(G27:G40) -> 201453 | I41: 13000000 | K41: =SUM(K27:K40) -> 9 | L41: =SUMPRODUCT(J27:J40,L27:L40) -> 941.1767378 | M41: This is the estimated average commercial heating load in the area, in millions of Btu
B43: =B22*B24 -> 8470.59064 | C43: This is the estimated total heat energy consumption of Commercial buildings in the area, in millions of Btu.
B45: =SUMPRODUCT(K27:K40,H27:H40)/SUMPRODUCT(E27:E40,H27:H40) -> 0.0004491482866 | C45: This is an estimate of your area's share of total Commercial building heat energy consumption statewide. It is used to scale the statewide LEAP scenario results to the level of your municipality

Sheet 2.Heat Targets
B2: Developing targets for weatherization and fuel-switching for non-industrial buildings in a municipal area
B4: Below are a series of calculations done using the LEAP scenario data which can be used to put those model results into perspective and give Planners a sense of the appropriateness of the LEAP scenario trajectories for their area. Should Planners find that the LEAP scenario depicts an inappropriate trajectory for their area, they may make adjustments to the model results using the following exchange rates. For an illustration of how to make such adjustments see the tab labeled "Exchange Example."
B8: Exhange rates for making adjustments to Tables 2 and 4
B10: 100 | C10: Btu reduction in consumption of combustible fuel through weatherization can be matched with
B11: 90 | C11: Btu reduction in consumption of biofuel, and vice versa | M11: Exhanging more weatherization for less fuel switching
B12: 100 | C12: Btu reduction in Heat Pump electricity consumption through weatherization can be matched with
B13: 40 | C13: Btu reduction in fuel switching toward Heat Pump electricity, and vice versa
B14: 100 | C14: Btu reduction in consumption of Wood heat can be matched with a | M14: Exchanging one combustible renewable fuel for another
B15: 100 | C15: Btu addition in consumption of Biofuel heat, and vice versa
B16: 100 | C16: Btu reduction in consumption of either Wood or Biofuel heat can be matched with a
B17: 40 | C17: Btu addition in consumption of Heat Pump electricity, and vice versa | M17: Exchanging consumption of combustible renewable fuels for electricity
B18: 100 | C18: Btu reduction in consumption of Heat Pump electricity can be matched with a
B19: 250 | C19: Btu increase in consumption of Wood or Biofuel heat consumption, and vice versa
B21: Interpreting the scale of Residential weatherization in the LEAP scenario
B23: 2015 | C23: 2025 | D23: 2035 | E23: 2050
B24: ='LEAP Region'!B14*1000 -> 76738.77519 | C24: ='LEAP Region'!C14*1000 -> 64338.68217 | D24: ='LEAP Region'!D14*1000 -> 53160.49612 | E24: ='LEAP Region'!E14*1000 -> 36280.07752 | G24: Total heat energy consumed by Residential buildings in the Reference Scenario, in millions of Btu (taken from Table 1)
B25: =('LEAP Region'!B7+'LEAP Region'!B8)*(2.4-1)*1000 -> 612.4620155 | C25: =('LEAP Region'!C7+'LEAP Region'!C8)*(2.6-1)*1000 -> 3282.555039 | D25: =('LEAP Region'!D7+'LEAP Region'!D8)*(2.8-1)*1000 -> 6462.530233 | E25: =('LEAP Region'!E7+'LEAP Region'!E8)*(2.3-1)*1000 -> 6922.631008 | G25: This is an adjustment that must be made to account for the superior efficiency of heat pump technology compared to combustion based heating technology. It assumes moderate increases in equipment efficiency
B26: ='LEAP Region'!H14*1000 -> 74762.60465 | C26: ='LEAP Region'!I14*1000 -> 61035.00775 | D26: ='LEAP Region'!J14*1000 -> 46160.93023 | E26: ='LEAP Region'!K14*1000 -> 26007.00775 | G26: Total heat energy consumed by Residential buildings in 90x50 Scenario, in millions of Btu (taken from Table 2)
B27: =('LEAP Region'!H7+'LEAP Region'!H8)*(2.4-1)*1000 -> 823.655814 | C27: =('LEAP Region'!I7+'LEAP Region'!I8)*(2.6-1)*1000 -> 3765.283721 | D27: =('LEAP Region'!J7+'LEAP Region'!J8)*(2.8-1)*1000 -> 8553.348837 | E27: =('LEAP Region'!K7+'LEAP Region'!K8)*(3-1)*1000 -> 11947.53488 | G27: This is an adjustment that must be made to account for the superior efficiency of heat pump technology compared to combustion based heating technology. It assumes moderate increases in equipment efficiency
B28: =B24+B25-B26-B27 -> 1764.976744 | C28: =C24+C25-C26-C27 -> 2820.945736 | D28: =D24+D25-D26-D27 -> 4908.747287 | E28: =E24+E25-E26-E27 -> 5248.165891 | G28: Total heat energy saved through weatherization of Residential buildings, in millions of Btu
B29: =0.25*'1.Current Heat'!B10 -> 32.055 | G29: Enter an estimate of the typical amount of heat energy that will be saved through future Residential weatherization investments, in millions of Btu. Historically, savings of 20 to 30 per cent are typical. | R29: 60
B30: =B28/$B$29 -> 55.06088736 | C30: =C28/$B$29 -> 88.00329859 | D30: =D28/$B$29 -> 153.1351517 | E30: =E28/$B$29 -> 163.7237839 | G30: This formula computes a projection of the number of area residences weatherized, based on the value inputed above. It will be higher or lower depending on the assumption of "typical" weatherization savings. | R30: 96
B31: ='1.Current Heat'!B8 -> 406 | C31: =B31*1.06 -> 430.36 | D31: 456.1816 | E31: 483.552496 | G31: Enter a projection of the number of future residences in the area by each year. | O31: =(E31/B31)^(1/(E23-B23))-1 -> 0.005006971034 | R31: =R29+R30 -> 156
B32: =B30/B31 -> 0.1356179492 | C32: =C30/C31 -> 0.204487635 | D32: =D30/D31 -> 0.3356890144 | E32: =E30/E31 -> 0.338585335 | G32: This formula computes the estimated percentage of area residences weatherized by each year based on the values inputed above and on the "1.Current Heat" tab. If Planners would like to increase the percentage of weatherized residences, adjustments can be made to Table 2 using the exchange rates above. See the "Exchange Example" tab for an example of how to make such adjustments.
B34: Interpreting the scale of Commercial weatherization in the LEAP scenario
B36: 2015 | C36: 2025 | D36: 2035 | E36: 2050
B37: =('LEAP Region'!N11-'LEAP Region'!N6)*1000 -> 5557.916381 | C37: =('LEAP Region'!O11-'LEAP Region'!O6)*1000 -> 5286.497601 | D37: =('LEAP Region'!P11-'LEAP Region'!P6)*1000 -> 4891.706648 | E37: =('LEAP Region'!Q11-'LEAP Region'!Q6)*1000 -> 4342.70048 | G37: Total non-electric energy consumed by Commercial buildings in Reference Scenario, in millions of Btu
B38: ='LEAP Region'!N6*1000 -> 4651.130912 | C38: ='LEAP Region'!O6*1000 -> 4947.224126 | D38: ='LEAP Region'!P6*1000 -> 5163.125428 | E38: ='LEAP Region'!Q6*1000 -> 5619.602467 | G38: Total consumption of electricity by Commercial building in Reference Scenario, in millions of Btu
B39: =0.005*B38 -> 23.25565456 | C39: =B39-(($B$39-$E$39)/3) -> 109.1638108 | D39: =C39-(($B$39-$E$39)/3) -> 195.0719671 | E39: =0.05*E38 -> 280.9801234 | G39: This is a Department estimate of the portion of Commercial electricity consumption attributable to Heat Pumps in the Reference Scenario, in millions of Btu. It assumes that the heat pump share of electricity consumption rises to 2% by 2050.
B40: =B39*(2.4-1) -> 32.55791638 | C40: =C39*(2.6-1) -> 174.6620973 | D40: =D39*(2.8-1) -> 351.1295408 | E40: =E39*(3-1) -> 561.9602467 | G40: This is an adjustment made to compensate for the superior efficiency of heat pump technology compared to combustion based heating technology. It assumes moderate increases in equipment efficiency over time i.e. coefficient of performance
B41: =('LEAP Region'!T11-'LEAP Region'!T6)*1000 -> 5539.410555 | C41: =('LEAP Region'!U11-'LEAP Region'!U6)*1000 -> 5150.788211 | D41: =('LEAP Region'!V11-'LEAP Region'!V6)*1000 -> 4632.625086 | E41: =('LEAP Region'!W11-'LEAP Region'!W6)*1000 -> 3886.223441 | G41: Total non-electric energy consumed by commercial buildings in 90x50 Scenario, in millions of Btu
B42: ='LEAP Region'!T6*1000 -> 4589.444825 | C42: ='LEAP Region'!U6*1000 -> 4546.264565 | D42: ='LEAP Region'!V6*1000 -> 4404.386566 | E42: ='LEAP Region'!W6*1000 -> 4268.677176 | G42: Total consumption of electricity by Commercial building in 90x50 Scenario, in millions of Btu
B43: =B39 -> 23.25565456 | C43: =B43-(($B$43-$E$43)/3) -> 131.0075394 | D43: =C43-(($B$43-$E$43)/3) -> 238.7594243 | E43: =0.8*((E37+E39+E40-E41)/3) -> 346.5113091 | G43: Department estimate of Commercial consumption of heat pump electricity, in millions of Btu
B44: =B43*(2.4-1) -> 32.55791638 | C44: =C43*(2.6-1) -> 209.6120631 | D44: =D43*(2.8-1) -> 429.7669637 | E44: =E43*(3-1) -> 693.0226182 | G44: This is an adjustment made to compensate for the superior efficiency of heat pump technology compared to combustion based heating technology. | R44: 33
B45: =B37+B39+B40-B41-B43-B44 -> 18.50582591 | C45: =C37+C39+C40-C41-C43-C44 -> 78.91569568 | D45: =D37+D39+D40-D41-D43-D44 -> 136.7566827 | E45: =E37+E39+E40-E41-E43-E44 -> 259.8834818 | G45: Total heat energy saved through weatherization of Commercial buildings | R45: 6
B46: =0.2*'1.Current Heat'!B24 -> 188.2353476 | G46: Enter an estimate of the typical amount of energy saved through a Commercial weatherization investment, in millions of Btu. Historically, savings of 20 to 30 per cent are typical. | R46: =R45/R44 -> 0.1818181818
B47: =B45/$B$46 -> 0.09831217223 | C47: =C45/$B$46 -> 0.4192395143 | D47: =D45/$B$46 -> 0.7265196704 | E47: =E45/$B$46 -> 1.380630605 | G47: This formula computes a projection of the number of area businesses weatherized, based on the value inputed above. It will be higher or lower depending on the assumption of "typical" weatherization savings.
B48: ='1.Current Heat'!B22 -> 9 | C48: =B48*1.06 -> 9.54 | D48: 10.1124 | E48: 10.719144 | G48: Enter a projection of the total number of Commercial establishments in the area by 2050 | O48: =(E48/B48)^(1/(E36-B36))-1 -> 0.005006971034
B49: =B47/B48 -> 0.01092357469 | C49: =C47/C48 -> 0.04394544175 | D49: =D47/D48 -> 0.07184443558 | E49: =E47/E48 -> 0.1288004532 | G49: This formula computes the estimated share of area businesses weatherized by each year based on the values inputed above. If Planners would like to increase the percentage of weatherized businesses, adjustments can be made to Table 4 using the exchange rates above. See the "Exchange Example" tab for an example of how to make such adjustments.
B51: Interpreting the scale of Residential fuel-switching in the LEAP scenario
B53: 2015 | C53: 2025 | D53: 2035 | E53: 2050
B54: ='1.Current Heat'!B10 -> 128.22 | C54: =C32*($B$54-$B$29)+(1-C32)*$B$54 -> 121.6651489 | D54: =D32*($B$54-$B$29)+(1-D32)*$B$54 -> 117.4594886 | E54: =E32*($B$54-$B$29)+(1-E32)*$B$54 -> 117.3666471 | G54: This is a projection of the average area residential heating load, in millions of Btu, computed based on values inputted above and in the "1.Current Heat" tab
B55: =('LEAP Region'!H4+'LEAP Region'!H9+'LEAP Region'!H12)*1000 -> 27575.87597 | C55: =('LEAP Region'!I4+'LEAP Region'!I9+'LEAP Region'!I12)*1000 -> 20018.15504 | D55: =('LEAP Region'!J4+'LEAP Region'!J9+'LEAP Region'!J12)*1000 -> 12731.96899 | E55: =('LEAP Region'!K4+'LEAP Region'!K9+'LEAP Region'!K12)*1000 -> 1915.829457 | G55: Total biofuel-blended heat energy consumed by Residences in 90x50 Scenario, in millions of Btu (taken from Table 2)
B56: ='LEAP Region'!H4*1000/'2.Heat Targets'!B55 -> 0.007658643326 | C56: ='LEAP Region'!I4*1000/'2.Heat Targets'!C55 -> 0.03767897513 | D56: ='LEAP Region'!J4*1000/'2.Heat Targets'!D55 -> 0.0971563981 | E56: ='LEAP Region'!K4*1000/'2.Heat Targets'!E55 -> 1 | G56: This formula computes the biofuel share of biofuel-blended heat consumed by Residences in the 90x50 scenario.
B57: =B55/B54 -> 215.0668848 | C57: =C55/C54 -> 164.5348337 | D57: =D55/D54 -> 108.3945549 | E57: =E55/E54 -> 16.32345734 | G57: This formula computes an estimate the number of residences using biofuel-blended heat energy in the 90x50 scenario based on values inputted in the "1.Current Heat" tab.
B58: =B57/B31 -> 0.5297213911 | C58: =C57/C31 -> 0.3823190671 | D58: =D57/D31 -> 0.237612729 | E58: =E57/E31 -> 0.03375736343 | G58: This formula computes the estimated share of area residences using biofuel blends in the 90x50 scenario based on values inputted above and in the "1.Current Heat" tab. If Planners find that this percentage is too high or low for the area, adjustments can be made to Table 2 using the exchange rates above. See the "Heat Exchange" tab for an example of how to make such adjustments.
B59: =('LEAP Region'!H5+'LEAP Region'!H13)*1000 -> 32810.46512 | C59: =('LEAP Region'!I5+'LEAP Region'!I13)*1000 -> 27500.44961 | D59: =('LEAP Region'!J5+'LEAP Region'!J13)*1000 -> 21798.21705 | E59: =('LEAP Region'!K5+'LEAP Region'!K13)*1000 -> 15779.1938 | G59: Total wood heat energy consumed by area residences in 90x50 Scenario, in millions of Btu (taken from Table 2)
B60: =B59/B54 -> 255.8919444 | C60: =C59/C54 -> 226.0339125 | D60: =D59/D54 -> 185.5807249 | E60: =E59/E54 -> 134.4435936 | G60: This formula computes an estimate of the number of area residences using Wood heat energy in the 90x50 scenario based on values inputted above and in the "1.Current Heat" tab.
B61: =B60/B31 -> 0.6302757252 | C61: =C60/C31 -> 0.5252205421 | D61: =D60/D31 -> 0.4068132624 | E61: =E60/E31 -> 0.2780330878 | G61: This formula computes the estimated share of area residences using Wood heat in the 90x50 scenario, based on values inputted in the "1.Current Heat" tab.
B62: =('LEAP Region'!H7+'LEAP Region'!H8)*1000 -> 588.3255814 | C62: =('LEAP Region'!I7+'LEAP Region'!I8)*1000 -> 2353.302326 | D62: =('LEAP Region'!J7+'LEAP Region'!J8)*1000 -> 4751.860465 | E62: =('LEAP Region'!K7+'LEAP Region'!K8)*1000 -> 5973.767442 | G62: Total heat pump energy consumed by area residences in 90x50 Scenario, in millions of Btu (taken from Table 2)
B63: =B62/((0.7*B54)/2.4) -> 15.7316821 | C63: =C62/((0.75*C54)/2.6) -> 67.05383427 | D63: =D62/((0.8*D54)/2.8) -> 141.5935981 | E63: =E62/((0.85*E54)/3) -> 179.641198 | G63: This formula computes an estimate the number of area residences using Heat Pumps in the 90x50 scenario based on values inputted in the "1.Current Heat" tab. It assumes moderate increases in equipment efficiency
B64: =B63/B31 -> 0.03874798547 | C64: =C63/C31 -> 0.155808705 | D64: =D63/D31 -> 0.3103886656 | E64: =E63/E31 -> 0.3715029898 | G64: This formula computes the estimated share of area residences using Heat Pumps in the 90x50 scenario based on values inputted above and in the "1.Current Heat" tab.
B65: =('LEAP Region'!H10+'LEAP Region'!H11)*1000 -> 10665.28682 | C65: =('LEAP Region'!I10+'LEAP Region'!I11)*1000 -> 8342.155039 | D65: =('LEAP Region'!J10+'LEAP Region'!J11)*1000 -> 5340.186047 | E65: =('LEAP Region'!K10+'LEAP Region'!K11)*1000 -> 1870.573643 | G65: Total fossil heat energy consumed by Residences in 90x50 Scenario, in millions of Btu (taken from Table 2)
B66: =B65/B54 -> 83.17958838 | C66: =C65/C54 -> 68.56651323 | D66: =D65/D54 -> 45.46406687 | E66: =E65/E54 -> 15.93786386 | G66: This formula computes the estimates number of area residences using fossil heat in the 90x50 scenario based on values inputted in the "1.Current Heat" tab.
B67: =B66/B31 -> 0.2048758334 | C67: =C66/C31 -> 0.1593236203 | D67: =D66/D31 -> 0.099662211 | E67: =E66/E31 -> 0.0329599454 | G67: This formula computes the estimated share of area residences using fossil heat in the 90x50 scenario based on values inputted above and in the "1.Current Heat" tab.
B69: Interpreting the scale of Commercial fuel-switching in the LEAP scenario
B71: 2015 | C71: 2025 | D71: 2035 | E71: 2050
B72: ='1.Current Heat'!B24 -> 941.1767378 | C72: =C49*($B$72-$B$46)+(1-C49)*$B$72 -> 932.9046523 | D72: =D49*($B$72-$B$46)+(1-D49)*$B$72 -> 927.6530755 | E72: =E49*($B$72-$B$46)+(1-E49)*$B$72 -> 916.9319397 | G72: This is a projection of the average area business heating load, in millions of Btu, computed based on values inputted above and in the "1.Current Heat" tab
B73: =('LEAP Region'!T4+'LEAP Region'!T5+'LEAP Region'!T9)*1000 -> 2825.222755 | C73: =('LEAP Region'!U4+'LEAP Region'!U5+'LEAP Region'!U9)*1000 -> 2368.745716 | D73: =('LEAP Region'!V4+'LEAP Region'!V5+'LEAP Region'!V9)*1000 -> 1838.245374 | E73: =('LEAP Region'!W4+'LEAP Region'!W5+'LEAP Region'!W9)*1000 -> 1017.820425 | G73: Total biofuel-blended heat energy consumed by Businesses in 90x50 Scenario, in millions of Btu (taken from Table 4)
B74: =com_share_state_target*'LEAP Statewide'!T4*1000/'2.Heat Targets'!B73 -> 0.006549893942 | C74: =com_share_state_target*'LEAP Statewide'!U4*1000/'2.Heat Targets'!C73 -> 0.04884466823 | D74: =com_share_state_target*'LEAP Statewide'!V4*1000/'2.Heat Targets'!D73 -> 0.1180872641 | E74: =com_share_state_target*'LEAP Statewide'!W4*1000/'2.Heat Targets'!E73 -> 0.3792398227 | G74: This formula computes the biofuel share of biofuel-blended heat consumed by Commercial buildings in the 90x50 scenario.
B75: =B73/B72 -> 3.001798325 | C75: =C73/C72 -> 2.539108054 | D75: =D73/D72 -> 1.981608666 | E75: =E73/E72 -> 1.110028325 | G75: This formula computes an estimate the number of businesses using biofuel-blended heat energy in the 90x50 scenario based on values inputted in the "1.Current Heat" tab.
B76: =B75/B48 -> 0.3335331473 | C76: =C75/C48 -> 0.2661538841 | D76: =D75/D48 -> 0.1959582954 | E76: =E75/E48 -> 0.1035556874 | G76: This formula computes the estimated share of area businesses using biofuel blends in the 90x50 scenario based on values inputted above and in the "1.Current Heat" tab. If Planners find that this percentage is too high or low for the area, adjustments can be made to Table 2 using the exchange rates above. See the "Exchange Example" tab for an example of how to make such adjustments.
B77: ='LEAP Region'!T10*1000 -> 869.7738177 | C77: ='LEAP Region'!U10*1000 -> 1190.541467 | D77: ='LEAP Region'!V10*1000 -> 1505.140507 | E77: ='LEAP Region'!W10*1000 -> 2047.978067 | G77: Total wood heat energy consumed by area businesses in 90x50 Scenario, in millions of Btu (taken from Table 4)
B78: =B77/B72 -> 0.924134419 | C78: =C77/C72 -> 1.276166288 | D78: =D77/D72 -> 1.622525217 | E78: =E77/E72 -> 2.233511538 | G78: This formula computes an estimate of the number of area businesses using Wood heat energy in the 90x50 scenario based on values inputted above and in the "1.Current Heat" tab.
B79: =B78/B48 -> 0.1026816021 | C79: =C78/C48 -> 0.1337700511 | D79: =D78/D48 -> 0.1604490741 | E79: =E78/E48 -> 0.2083665952 | G79: This formula computes the estimated share of area businesses using Wood heat in the 90x50 scenario, based on values inputted in the "1.Current Heat" tab.
B80: =B43 -> 23.25565456 | C80: =C43 -> 131.0075394 | D80: =D43 -> 238.7594243 | E80: =E43 -> 346.5113091 | G80: Department estimate of Commercial consumption of heat pump electricity, in millions of Btu
B81: =B80/((0.7*B72)/2.4) -> 0.08471700327 | C81: =C80/((0.75*C72)/2.6) -> 0.4868230305 | D81: =D80/((0.8*D72)/2.8) -> 0.9008302856 | E81: =E80/((0.85*E72)/3) -> 1.333775211 | G81: This formula computes an estimate the number of area businesses using Heat Pumps in the 90x50 scenario based on values inputted in the "1.Current Heat" tab. It assumes moderately increasing equipment efficiencies.
B82: =B81/B48 -> 0.009413000363 | C82: =C81/C48 -> 0.05102966776 | D82: =D81/D48 -> 0.0890817497 | E82: =E81/E48 -> 0.1244292651 | G82: This formula computes the estimated share of area businesses using Heat Pumps in the 90x50 scenario based on values inputted above and in the "1.Current Heat" tab.
B83: =('LEAP Region'!T7+'LEAP Region'!T8)*1000 -> 1844.413982 | C83: =('LEAP Region'!U7+'LEAP Region'!U8)*1000 -> 1591.501028 | D83: =('LEAP Region'!V7+'LEAP Region'!V8)*1000 -> 1289.239205 | E83: =('LEAP Region'!W7+'LEAP Region'!W8)*1000 -> 820.4249486 | G83: Total fossil heat energy consumed by area businesses in 90x50 Scenario, in millions of Btu (taken from Table 4)
B84: =B83/B72 -> 1.9596893 | C84: =C83/C72 -> 1.705963224 | D84: =D83/D72 -> 1.389785944 | E84: =E83/E72 -> 0.8947501042 | G84: This formula computes the estimates number of area businesses using fossil heat in the 90x50 scenario based on values inputted in the "1.Current Heat" tab.
B85: =B84/B48 -> 0.2177432555 | C85: =C84/C48 -> 0.1788221409 | D85: =D84/D48 -> 0.137433838 | E85: =E84/E48 -> 0.08347216011 | G85: This formula computes the estimated share of area businesses using fossil heat in the 90x50 scenario based on values inputted above and in the "1.Current Heat" tab.

Sheet 2.Trans Targets
B2: Developing fuel-switching targets for Light-Duty Vehicle (LDV) transportation in a municipal area
B4: Below are a series of calculations on the LEAP scenario data which can be used to put those model results into perspective and give Planners a sense of the appropriateness of the LEAP scenario trajectories for their area. Should Planners find that the LEAP scenario depicts an inappropriate trajectory for their area, they may make adjustments to the model results using the following exchange rates. For an illustration of how to make such adjustments see the tab labeled "Exchange Example."
B8: Exhange rates for making adjustments to Table 6
B10: 100 | C10: Btu reduction in electric-powered transportation should be matched with
B11: 300 | C11: Btu addition in biofuel-powered transportation | M11: Exchanging consumption of one renewable fuel for another
B12: 100 | C12: Btu addition in biofuel-powered transportation should be matched with
B13: 33 | C13: Btu reduction in electric-powered transportation
B15: Interpreting the scale of LDV fuel-switching in the LEAP scenario
B17: 2015 | C17: 2025 | D17: 2035 | E17: 2050
B18: ='LEAP Region'!H26*1000 -> 45.25581395 | C18: ='LEAP Region'!I26*1000 -> 1236.992248 | D18: ='LEAP Region'!J26*1000 -> 3590.294574 | E18: ='LEAP Region'!K26*1000 -> 6954.310078 | G18: Total electricity consumed for LDV transportation in 90x50 Scenario, in millions of Btu (taken from Table 6). | V18: Electricity
B19: =('1.Current Trans'!$B$13/'1.Current Trans'!$B$35)*'1.Current Trans'!$B$37/1000000 -> 15.92266667 | C19: =B19-(($B$19-$E$19)/3) -> 14.59577778 | D19: =C19-(($B$19-$E$19)/3) -> 13.26888889 | E19: =('1.Current Trans'!$B$13/4)*'1.Current Trans'!$B$37/1000000 -> 11.942 | G19: This is a projection of the average annual energy consumption of an EV, in millions of Btu. It assumes the current average number of VMT (as entered in "1.Current Trans") and a gradual increase in EV fuel economy from 3 kwh per mile to 4 kWh per mile by 2050. | V19: Biofuel-blend
B20: =IF($F$22="adj",'1.Current Trans'!$O$13*B18/B19,B18/B19) -> 3.183292892 | C20: =IF($F$22="adj",'1.Current Trans'!$O$13*C18/C19,C18/C19) -> 94.92000625 | D20: =IF($F$22="adj",'1.Current Trans'!$O$13*D18/D19,D18/D19) -> 303.0494834 | E20: =IF($F$22="adj",'1.Current Trans'!$O$13*E18/E19,E18/E19) -> 652.2213437 | G20: This formula computes an estimated number of area LDVs powered by electricity in the 90x50 scenario, based on user inputs in the "1.Current Trans" tab
B21: ='1.Current Trans'!B9+'1.Current Trans'!B32 -> 843 | C21: =B21*1.125 -> 948.375 | D21: 1066.921875 | E21: 1200.287109 | G21: Enter a projection of the total number of future LDVs in the area by each year. This should be consistent with projections of population and households. | O21: =(E21/B21)^(1/(E17-B17))-1 -> 0.01014682217
B22: =B20/B21 -> 0.003776148152 | C22: =C20/C21 -> 0.1000869975 | D22: =D20/D21 -> 0.2840409316 | E22: =E20/E21 -> 0.5433877767 | F22: adj | G22: This formula computes the share of area LDVs powered by electricity in the 90x50 scenario, based on the projection entered above and user inputs in the "1.Current Trans" tab. If Planners find that this percentage of EVs is inappropriate for the area, adjustments can be made to the 90x50 Scenario results using the exchange rates above.
B23: =('LEAP Region'!H24+'LEAP Region'!H25+'LEAP Region'!H27+'LEAP Region'!H28)*1000 -> 51576.54264 | C23: =('LEAP Region'!I24+'LEAP Region'!I25+'LEAP Region'!I27+'LEAP Region'!I28)*1000 -> 37004.17054 | D23: =('LEAP Region'!J24+'LEAP Region'!J25+'LEAP Region'!J27+'LEAP Region'!J28)*1000 -> 21134.46512 | E23: =('LEAP Region'!K24+'LEAP Region'!K25+'LEAP Region'!K27+'LEAP Region'!K28)*1000 -> 2941.627907 | G23: Total biofuel-blended energy consumed for LDV transportation in 90x50 Scenario, in millions of Btu (taken from Table 6).
B24: =res_share_state_target*('LEAP Statewide'!H25+'LEAP Statewide'!H28)*1000000/'2.Trans Targets'!B23 -> 0.1204752889 | C24: =res_share_state_target*('LEAP Statewide'!I25+'LEAP Statewide'!I28)*1000000/'2.Trans Targets'!C23 -> 0.12593916 | D24: =res_share_state_target*('LEAP Statewide'!J25+'LEAP Statewide'!J28)*1000000/'2.Trans Targets'!D23 -> 0.1470039303 | E24: =res_share_state_target*('LEAP Statewide'!K25+'LEAP Statewide'!K28)*1000000/'2.Trans Targets'!E23 -> 0.5280833497 | G24: This formula computes the biofuel share of biofuel-blended LDV transportation energy consumed in the 90x50 scenario.
B25: ='1.Current Trans'!B26/'1.Current Trans'!B9 -> 75.07126773 | C25: =B25-(($B$25-$E$25)/3) -> 64.19433682 | D25: =C25-(($B$25-$E$25)/3) -> 53.31740591 | E25: =('1.Current Trans'!B9*'1.Current Trans'!B13/40)*'1.Current Trans'!B21/'1.Current Trans'!B9/1000000 -> 42.440475 | G25: This is a projection of the average annual energy consumption of LDVs using biofuel blends, in millions of Btu. It assumes the current average number of VMT (as entered in "1.Current Trans") and a gradual increase in fuel economy to 40 MPG by 2050.
B26: =IF($F$22="adj",'1.Current Trans'!$O$13*B23/B25,B23/B25) -> 769.4785169 | C26: =IF($F$22="adj",'1.Current Trans'!$O$13*C23/C25,C23/C25) -> 645.6125737 | D26: =IF($F$22="adj",'1.Current Trans'!$O$13*D23/D25,D23/D25) -> 443.9563502 | E26: =IF($F$22="adj",'1.Current Trans'!$O$13*E23/E25,E23/E25) -> 77.62927384 | G26: This formula computes an estimated number of area LDVs powered by biofuel blends in the 90x50 scenario, based on user inputs entered in the "1.Current Trans" tab
B27: =B26/B21 -> 0.9127859038 | C27: =C26/C21 -> 0.6807566349 | D27: =D26/D21 -> 0.4161095209 | E27: =E26/E21 -> 0.0646755874 | G27: This formula computes an estimated number of area LDVs powered by biofuel blends in the 90x50 scenario, based on user inputs in the "1.Current Trans" tab

Sheet 2.Electric Targets
B2: Developing electric efficiency targets for a municipal area
B4: 2015 | C4: 2025 | D4: 2035 | E4: 2050
B5: ='LEAP Region'!B49*1000000 -> 181023.2558 | C5: ='LEAP Region'!C49*1000000 -> 844775.1938 | D5: ='LEAP Region'!D49*1000000 -> 1327503.876 | E5: ='LEAP Region'!E49*1000000 -> 1946000 | G5: Total electric energy saved from improvements in area residential equipment efficiency, in kWh
B6: 400 | G6: Enter an estimate of a typical amount of area annual residential electricity savings realized from efficiency improvements, in kWh. An individual residential upgrades might save from anywhere from 50 to 1000 kWh per year or more.
B7: =B5/13/$B$6 -> 34.81216458 | C7: =C5/13/$B$6 -> 162.456768 | D7: =D5/13/$B$6 -> 255.2892069 | E7: =E5/13/$B$6 -> 374.2307692 | G7: This formula computes an estimate of the number of area residences with upgraded electrical equipment by each year
B8: ='2.Heat Targets'!B31*1.5 -> 609 | C8: ='2.Heat Targets'!C31*1.5 -> 645.54 | D8: ='2.Heat Targets'!D31*1.5 -> 684.2724 | E8: ='2.Heat Targets'!E31*1.5 -> 725.328744 | G8: Enter a projection of the number of area residential customers. This should be consistent with the number of residences projected in the "2.Heat Targets" tab. Note there are generally more utility customers than households.
B9: =B7/B8 -> 0.05716283182 | C9: =C7/C8 -> 0.2516602659 | D9: =D7/D8 -> 0.3730812567 | E9: =E7/E8 -> 0.5159464206 | G9: This formula computes the estimated share of area residences that are saving the amount of kWh entered above. It can be assumed that the share of commercial businesses with upgraded equipment is comparable.

Sheet LEAP Scenario
A1: These are based on NVDA's LEAP PROJECTIONS. To MODIFY, CHECK OUT THE EXCHANGE EXAMPLE TAB.
A2: 1) Reference Scenario Total Regional Residential Heating Consumption Thousand MMBTUs | G2: 2) 90x50 Scenario Total Regional Residential Heating Consumption Thousand MMBTUs | M2: 3) Reference Scenario Total Regional Commercial Consumption Thousand MMBTUs | S2: 4) 90x50 Scenario Total Regional Commercial Consumption Thousand MMBTUs
A3: Branches | B3: 2015 | C3: 2025 | D3: 2035 | E3: 2050 | G3: Branches | H3: 2015 | I3: 2025 | J3: 2035 | K3: 2050 | M3: Branches | N3: 2015 | O3: 2025 | P3: 2035 | Q3: 2050 | S3: Branches | T3: 2015 | U3: 2025 | V3: 2035 | W3: 2050
A4: Biodistillates | B4: 0 | C4: 0 | D4: 0 | E4: 0 | G4: Biodistillates | H4: 14 | I4: 50 | J4: 82 | K4: 127 | M4: Biofuel | N4: 0 | O4: 0 | P4: 0 | Q4: 0 | S4: Biofuel | T4: 8 | U4: 49 | V4: 92 | W4: 164
A5: Cord Wood | B5: 1890 | C5: 1568 | D5: 1301 | E5: 991 | G5: Cord Wood | H5: 1859 | I5: 1470 | J5: 1128 | K5: 750 | M5: Distillate Fuel Oil | N5: 413 | O5: 339 | P5: 253 | Q5: 118 | S5: Distillate Fuel Oil | T5: 408 | U5: 304 | V5: 187 | W5: 1
A6: Electric Resistance | B6: 191 | C6: 142 | D6: 82 | E6: 24 | G6: Electric Resistance | H6: 207 | I6: 187 | J6: 102 | K6: 31 | M6: Electric Use | N6: 754 | O6: 802 | P6: 837 | Q6: 911 | S6: Electric Use | T6: 744 | U6: 737 | V6: 714 | W6: 692
A7: Heat Pump | B7: 26 | C7: 123 | D7: 191 | E7: 240 | G7: Heat Pump | H7: 23 | I7: 110 | J7: 225 | K7: 270 | M7: LPG | N7: 311 | O7: 336 | P7: 355 | Q7: 394 | S7: LPG | T7: 299 | U7: 258 | V7: 209 | W7: 133
A8: Heat Pump Water Heater | B8: 3 | C8: 13 | D8: 47 | E8: 113 | G8: Heat Pump Water Heater | H8: 16 | I8: 46 | J8: 90 | K8: 126 | M8: Natural Gas | S8: Natural Gas
A9: Kerosene | B9: 129 | C9: 164 | D9: 201 | E9: 51 | G9: Kerosene | H9: 120 | I9: 139 | J9: 161 | M9: Residual Fuel Oil | N9: 42 | O9: 31 | P9: 19 | S9: Residual Fuel Oil | T9: 42 | U9: 31 | V9: 19
A10: LPG | B10: 723 | C10: 590 | D10: 472 | E10: 316 | G10: LPG | H10: 707 | I10: 553 | J10: 354 | K10: 124 | M10: Wood and wood waste consumption | N10: 135 | O10: 151 | P10: 166 | Q10: 192 | S10: Wood and wood waste consumption | T10: 141 | U10: 193 | V10: 244 | W10: 332
A11: Natural Gas | G11: Natural Gas | M11: Total | N11: =SUM(N4:N10) -> 1655 | O11: =SUM(O4:O10) -> 1659 | P11: =SUM(P4:P10) -> 1630 | Q11: =SUM(Q4:Q10) -> 1615 | S11: Total | T11: 1641 | U11: =SUM(U4:U10) -> 1572 | V11: =SUM(V4:V10) -> 1465 | W11: =SUM(W4:W10) -> 1322
A12: Oil | B12: 1761 | C12: 1342 | D12: 940 | E12: 411 | G12: Oil | H12: 1694 | I12: 1138 | J12: 601
A13: Wood pellets | B13: 364 | C13: 323 | D13: 290 | E13: 259 | G13: Wood pellets | H13: 316 | I13: 353 | J13: 317 | K13: 296
A14: Total | B14: =SUM(B4:B13) -> 5087 | C14: =SUM(C4:C13) -> 4265 | D14: =SUM(D4:D13) -> 3524 | E14: =SUM(E4:E13) -> 2405 | G14: Total | H14: =SUM(H4:H13) -> 4956 | I14: =SUM(I4:I13) -> 4046 | J14: =SUM(J4:J13) -> 3060 | K14: =SUM(K4:K13) -> 1724
M16: LOCAL | O16: Share of Region's Residential Units | R16: 0.016
M17: Residential Energy Consumption by Fuel: 90 x 2050 vs. Reference
N18: 2015 | O18: 2025 | P18: 2035 | Q18: 2050
M19: Biodistillates | N19: =H4*$R$16*1000 -> 224 | O19: =I4*$R$16*1000 -> 800 | P19: =J4*$R$16*1000 -> 1312 | Q19: =K4*$R$16*1000 -> 2032
M20: Cord Wood | N20: =H5*$R$16*1000 -> 29744 | O20: =I5*$R$16*1000 -> 23520 | P20: =J5*$R$16*1000 -> 18048 | Q20: =K5*$R$16*1000 -> 12000
M21: Electric Resistence | N21: 3312 | O21: 2992 | P21: 1632 | Q21: 496
A22: 5) Reference Scenario Total Regional Light Duty Vehicle Consumption Thousand MMBTUs | G22: 6) 90x50 Scenario Total Regional Light Duty Vehicle Consumption Thousand MMBTUs | M22: Heat Pump | N22: 368 | O22: 1760 | P22: 3600 | Q22: 4320
A23: Branches | B23: 2015 | C23: 2025 | D23: 2035 | E23: 2050 | G23: Branches | H23: 2015 | I23: 2025 | J23: 2035 | K23: 2050 | M23: Heat Pump Water Heater | N23: 256 | O23: 736 | P23: 1440 | Q23: 2016
A24: Gasoline | B24: 2912 | C24: 2370 | D24: 2020 | E24: 1696 | G24: Gasoline | H24: 2923 | I24: 2094 | J24: 1166 | K24: 91 | M24: Kerosene | N24: 1920 | O24: 2224 | P24: 2576 | Q24: 0
A25: Ethanol | B25: 395 | C25: 319 | D25: 270 | E25: 224 | G25: Ethanol | H25: 390 | I25: 260 | J25: 141 | K25: 16 | M25: LPG | N25: 11312 | O25: 8848 | P25: 5664 | Q25: 1984
A26: Electricity | B26: 3 | C26: 9 | D26: 14 | E26: 21 | G26: Electricity | H26: 3 | I26: 82 | J26: 238 | K26: 461 | M26: Natural Gas | N26: 0 | O26: 0 | P26: 0 | Q26: 0
A27: Diesel | B27: 106 | C27: 100 | D27: 98 | E27: 97 | G27: Diesel | H27: 98 | I27: 61 | J27: 33 | K27: 1 | M27: Oil | N27: 27104 | O27: 18208 | P27: 9616 | Q27: 0
A28: Biodiesel | B28: 1 | C28: 1 | D28: 1 | E28: 0 | G28: Biodiesel | H28: 8 | I28: 38 | J28: 61 | K28: 87 | M28: Wood Pellets | N28: 5056 | O28: 5648 | P28: 5072 | Q28: 4736
A29: Hydrogen | B29: 0 | C29: 0 | D29: 0 | E29: 0 | G29: Hydrogen | H29: 0 | I29: 0 | J29: 0 | K29: 0 | M29: Avoidance | N29: =(B14-H14)*$R$16*1000 -> 2096 | O29: =(C14-I14)*$R$16*1000 -> 3504 | P29: 7424 | Q29: 10896
A30: Total | B30: =SUM(B24:B29) -> 3417 | C30: =SUM(C24:C29) -> 2799 | D30: =SUM(D24:D29) -> 2403 | E30: =SUM(E24:E29) -> 2038 | G30: Total | H30: =SUM(H24:H29) -> 3422 | I30: =SUM(I24:I29) -> 2535 | J30: =SUM(J24:J29) -> 1639 | K30: =SUM(K24:K29) -> 656
A33: Reference Scenario Electric Consumption by Branch | G33: 90x50 Scenario Electric Consumption by Branch
A34: Branches | B34: 2015 | C34: 2025 | D34: 2035 | E34: 2050 | G34: Branches | H34: 2015 | I34: 2025 | J34: 2035 | K34: 2050
A35: Cooling | B35: 0.3 | C35: 0.4 | D35: 0.5 | E35: 0.6 | G35: Cooling | H35: 0.3 | I35: 0.4 | J35: 0.6 | K35: 0.7
A36: Electric Appliances | B36: 0.9 | C36: 1 | D36: 1.2 | E36: 1.5 | G36: Electric Appliances | H36: 0.9 | I36: 0.9 | J36: 1 | K36: 1.1
A37: Electric CDs etc | B37: 0.4 | C37: 0.4 | D37: 0.4 | E37: 0.3 | G37: Electric CDs etc | H37: 0.5 | I37: 0.5 | J37: 0.4 | K37: 0.4
A38: Electric Kitchen Range | B38: 0.1 | C38: 0.1 | D38: 0.1 | E38: 0.1 | G38: Electric Kitchen Range | H38: 0.1 | I38: 0.1 | J38: 0.1 | K38: 0.1
A39: Electric Lighting | B39: 1.8 | C39: 1.6 | D39: 1.4 | E39: 1.3 | G39: Electric Lighting | H39: 1.7 | I39: 1.3 | J39: 0.9 | K39: 0.6
A40: Misc Electric | B40: 2.5 | C40: 3.5 | D40: 4.6 | E40: 6.1 | G40: Misc Electric | H40: 2.1 | I40: 2.2 | J40: 2.2 | K40: 2.2
A41: Plug Load | B41: 0.2 | C41: 0.2 | D41: 0.2 | E41: 0.2 | G41: Plug Load | H41: 0.2 | I41: 0.2 | J41: 0.2 | K41: 0.2
A42: Total | B42: =SUM(B35:B41) -> 6.2 | C42: =SUM(C35:C41) -> 7.2 | D42: =SUM(D35:D41) -> 8.4 | E42: =SUM(E35:E41) -> 10.1 | G42: Total | H42: =SUM(H35:H41) -> 5.8 | I42: =SUM(I35:I41) -> 5.6 | J42: =SUM(J35:J41) -> 5.4 | K42: =SUM(K35:K41) -> 5.3
A48: 9) 90 % Renewable by 2050 vs Reference Residential Non-Thermal Electric Consumption, Thousand MWh | B48: 2015 | C48: 2025 | D48: 2035 | E48: 2050 | N48: Share of Region's Commercial Stock: | Q48: 0.006
B49: 12 | C49: 56 | D49: 88 | E49: 129 | M49: Commercial Energy Consumption by Fuel: 90x2050 vs. Reference
N50: 2015 | O50: 2025 | P50: 2035 | Q50: 2050
M51: Biofuel | N51: =T4*$Q$48*1000 -> 48 | O51: =U4*$Q$48*1000 -> 294 | P51: 552 | Q51: 984
M52: Distillate Fuel Oil | N52: =T5*$Q$48*1000 -> 2448 | O52: 1824 | P52: 1122 | Q52: 6
M53: Electric Use | N53: 4464 | O53: 4422 | P53: 4284 | Q53: 4152
M54: LPG | N54: 1794 | O54: 1548 | P54: 1254 | Q54: 798
M55: Natural Gas | N55: 0 | O55: 0 | P55: 0 | Q55: 0
M56: Residual Fuel Oil | N56: 252 | O56: 186 | P56: 114 | Q56: 0
M57: Wood and wood waste consumption | N57: 846 | O57: 1158 | P57: 1464 | Q57: 1992
M58: Avoidance | N58: =(N11-T11)*$Q$48*1000 -> 84 | O58: =(O11-U11)*$Q$48*1000 -> 522 | P58: =(P11-V11)*$Q$48*1000 -> 990 | Q58: 1758
N61: Share of Region: Population | Q61: 0.015
M62: Light Duty Vehicle Energy Consumption: 90x2050 vs. Reference
N63: 2015 | O63: 2025 | P63: 2035 | Q63: 2050
M64: Gasoline | N64: =H24*$Q$61*1000 -> 43845 | O64: =I24*$Q$61*1000 -> 31410 | P64: 17490 | Q64: 1365
M65: Ethanol | N65: =H25*$Q$61*1000 -> 5850 | O65: 3900 | P65: 2115 | Q65: 240
M66: Electricity | N66: 45 | O66: 1230 | P66: 3570 | Q66: 6915
M67: Diesel | N67: 1470 | O67: 915 | P67: 495 | Q67: 15
M68: Biodiesel | N68: 120 | O68: 570 | P68: 915 | Q68: 1305
M69: Avoidance | O69: =(C30-I30)*$Q$61*1000 -> 3960 | P69: 11460 | Q69: 20730

Sheet LEAP Statewide (hidden)
A1: AS GIVEN BY VEIC. DO NOT MODIFY
A2: 1) Reference Scenario Total Regional Residential Heating Consumption Thousand MMBTUs | G2: 2) 90x50 Scenario Total Regional Residential Heating Consumption Thousand MMBTUs | M2: 3) Reference Scenario Total Regional Commercial Consumption Thousand MMBTUs | S2: 4) 90x50 Scenario Total Regional Commercial Consumption Thousand MMBTUs
A3: Branches | B3: 2015 | C3: 2025 | D3: 2035 | E3: 2050 | G3: Branches | H3: 2015 | I3: 2025 | J3: 2035 | K3: 2050 | M3: Branches | N3: 2015 | O3: 2025 | P3: 2035 | Q3: 2050 | S3: Branches | T3: 2015 | U3: 2025 | V3: 2035 | W3: 2050
A4: Biodistillates | B4: 0 | C4: 0 | D4: 0 | E4: 0 | G4: Biodistillates | H4: 86 | I4: 520 | J4: 981 | K4: 1806 | M4: Biofuel | N4: 0 | O4: 0 | P4: 0 | Q4: 0 | S4: Biofuel | T4: 41.2 | U4: 257.6 | V4: 483.3 | W4: 859.4
A5: Cord Wood | B5: 7579 | C5: 6982 | D5: 6497 | E5: 5884 | G5: Cord Wood | H5: 7602 | I5: 7136 | J5: 6662 | K5: 6344 | M5: Distillate Fuel Oil | N5: 3874 | O5: 3130 | P5: 2273 | Q5: 928 | S5: Distillate Fuel Oil | T5: 3831.5 | U5: 2865.9 | V5: 1777.3 | W5: 46.4
A6: Electric Resistance | B6: 1150 | C6: 932 | D6: 635 | E6: 251 | G6: Electric Resistance | H6: 1157 | I6: 950 | J6: 553 | K6: 179 | M6: Electric Use | N6: 7118 | O6: 7192 | P6: 7125 | Q6: 7158 | S6: Electric Use | T6: 7117.9 | U6: 7191.7 | V6: 7124.6 | W6: 7158.4
A7: Heat Pump | B7: 116 | C7: 653 | D7: 1231 | E7: 1698 | G7: Heat Pump | H7: 203 | I7: 1137 | J7: 2196 | K7: 3025 | M7: LPG | N7: 2897 | O7: 2975 | P7: 2997 | Q7: 3094 | S7: LPG | T7: 2815.1 | U7: 2459.7 | V7: 2030.6 | W7: 1375
A8: Heat Pump Water Heater | B8: 13 | C8: 96 | D8: 327 | E8: 679 | G8: Heat Pump Water Heater | H8: 56 | I8: 348 | J8: 757 | K8: 1256 | M8: Natural Gas | N8: 2791 | O8: 3390 | P8: 3961 | Q8: 4967 | S8: Natural Gas | T8: 2587.9 | U8: 2120.3 | V8: 1578.3 | W8: 730.4
A9: Kerosene | B9: 973 | C9: 781 | D9: 596 | E9: 295 | G9: Kerosene | H9: 955 | I9: 688 | J9: 427 | K9: 0 | M9: Residual Fuel Oil | N9: 393 | O9: 293 | P9: 180 | Q9: 0 | S9: Residual Fuel Oil | T9: 392.7 | U9: 292.5 | V9: 179.6 | W9: 0
A10: LPG | B10: 5613 | C10: 4497 | D10: 3322 | E10: 1199 | G10: LPG | H10: 5547 | I10: 4238 | J10: 2966 | K10: 1001 | M10: Wood and wood waste consumption | N10: 1251 | O10: 1331 | P10: 1390 | Q10: 1512 | S10: Wood and wood waste consumption | T10: 1343 | U10: 1908 | V10: 2472.2 | W10: 3437.4
A11: Natural Gas | B11: 4846 | C11: 6290 | D11: 8084 | E11: 11840 | G11: Natural Gas | H11: 4413 | I11: 3510 | J11: 1957 | K11: 243 | M11: Total | N11: 18323 | O11: 18311 | P11: 17925 | Q11: 17660 | S11: Total | T11: 18129.3 | U11: 17095.7 | V11: 15646 | W11: 13607
A12: Oil | B12: 10379 | C12: 8154 | D12: 5375 | E12: 1439 | G12: Oil | H12: 10176 | I12: 7292 | J12: 4494 | K12: 0
A13: Wood pellets | B13: 644 | C13: 853 | D13: 1053 | E13: 1362 | G13: Wood pellets | H13: 741 | I13: 1356 | J13: 1827 | K13: 2274
A14: Total | B14: =SUM(B4:B13) -> 31313 | C14: =SUM(C4:C13) -> 29238 | D14: =SUM(D4:D13) -> 27120 | E14: =SUM(E4:E13) -> 24647 | G14: Total | H14: =SUM(H4:H13) -> 30936 | I14: =SUM(I4:I13) -> 27175 | J14: =SUM(J4:J13) -> 22820 | K14: =SUM(K4:K13) -> 16128
A22: 5) Reference Scenario Total Regional Light Duty Vehicle Consumption Million MMBTUs | G22: 6) 90x50 Scenario Total Regional Light Duty Vehicle Consumption Million MMBTUs | M22: 7) Reference Scenario Total Regional Heavy Duty Vehicle Consumption Thousand MMBTUs | S22: 8) 90x50 Scenario Total Regional Heavy Duty Vehicle Consumption Thousand MMBTUs
A23: Branches | B23: 2015 | C23: 2025 | D23: 2035 | E23: 2050 | G23: Branches | H23: 2015 | I23: 2025 | J23: 2035 | K23: 2050 | M23: Branches | N23: 2015 | O23: 2025 | P23: 2035 | Q23: 2050 | S23: Branches | T23: 2015 | U23: 2025 | V23: 2035 | W23: 2050
A24: Gasoline | B24: 28 | C24: 23 | D24: 20 | E24: 17 | G24: Gasoline | H24: 28 | I24: 23 | J24: 11 | K24: 1 | M24: Biodiesel | N24: 95 | O24: 88 | P24: 68 | Q24: 14 | S24: Biodiesel | T24: 522 | U24: 2565 | V24: 4521 | W24: 7443
A25: Ethanol | B25: 4 | C25: 3 | D25: 3 | E25: 2 | G25: Ethanol | H25: 4 | I25: 3 | J25: 1 | K25: 0 | M25: CNG | N25: 274 | O25: 538 | P25: 886 | Q25: 1575 | S25: CNG | T25: 225 | U25: 199 | V25: 178 | W25: 150
A26: Electricity | B26: 0 | C26: 0 | D26: 0 | E26: 0 | G26: Electricity | H26: 0 | I26: 0 | J26: 2 | K26: 5 | M26: Diesel | N26: 7907 | O26: 8616 | P26: 8871 | Q26: 8349 | S26: Diesel | T26: 7236 | U26: 5013 | V26: 2979 | W26: 99
A27: Diesel | B27: 1 | C27: 1 | D27: 1 | E27: 1 | G27: Diesel | H27: 1 | I27: 1 | J27: 0 | K27: 0 | M27: LPG | N27: 105 | O27: 103 | P27: 90 | Q27: 49 | S27: LPG | T27: 100 | U27: 83 | V27: 69 | W27: 49
A28: Biodiesel | B28: 0 | C28: 0 | D28: 0 | E28: 0 | G28: Biodiesel | H28: 0 | I28: 0 | J28: 1 | K28: 1 | M28: Total | N28: 8381 | O28: 9344 | P28: 9914 | Q28: 9987 | S28: Total | T28: 8084 | U28: 7861 | V28: 7747 | W28: 7742
A29: Hydrogen | B29: 0 | C29: 0 | D29: 0 | E29: 0 | G29: Hydrogen | H29: 0 | I29: 0 | J29: 0 | K29: 0
A30: Total | B30: =SUM(B24:B29) -> 33 | C30: =SUM(C24:C29) -> 27 | D30: =SUM(D24:D29) -> 24 | E30: =SUM(E24:E29) -> 20 | G30: Total | H30: =SUM(H24:H29) -> 33 | I30: =SUM(I24:I29) -> 27 | J30: =SUM(J24:J29) -> 15 | K30: =SUM(K24:K29) -> 7
A33: Reference Scenario Electric Consumption by Branch | G33: 90x50 Scenario Electric Consumption by Branch
A34: Branches | B34: 2015 | C34: 2025 | D34: 2035 | E34: 2050 | G34: Branches | H34: 2015 | I34: 2025 | J34: 2035 | K34: 2050
A35: Cooling | B35: 0.3 | C35: 0.4 | D35: 0.5 | E35: 0.6 | G35: Cooling | H35: 0.3 | I35: 0.4 | J35: 0.6 | K35: 0.7
A36: Electric Appliances | B36: 0.9 | C36: 1 | D36: 1.2 | E36: 1.5 | G36: Electric Appliances | H36: 0.9 | I36: 0.9 | J36: 1 | K36: 1.1
A37: Electric CDs etc | B37: 0.4 | C37: 0.4 | D37: 0.4 | E37: 0.3 | G37: Electric CDs etc | H37: 0.5 | I37: 0.5 | J37: 0.4 | K37: 0.4
A38: Electric Kitchen Range | B38: 0.1 | C38: 0.1 | D38: 0.1 | E38: 0.1 | G38: Electric Kitchen Range | H38: 0.1 | I38: 0.1 | J38: 0.1 | K38: 0.1
A39: Electric Lighting | B39: 1.8 | C39: 1.6 | D39: 1.4 | E39: 1.3 | G39: Electric Lighting | H39: 1.7 | I39: 1.3 | J39: 0.9 | K39: 0.6
A40: Misc Electric | B40: 2.5 | C40: 3.5 | D40: 4.6 | E40: 6.1 | G40: Misc Electric | H40: 2.1 | I40: 2.2 | J40: 2.2 | K40: 2.2
A41: Plug Load | B41: 0.2 | C41: 0.2 | D41: 0.2 | E41: 0.2 | G41: Plug Load | H41: 0.2 | I41: 0.2 | J41: 0.2 | K41: 0.2
A42: Total | B42: =SUM(B35:B41) -> 6.2 | C42: =SUM(C35:C41) -> 7.2 | D42: =SUM(D35:D41) -> 8.4 | E42: =SUM(E35:E41) -> 10.1 | G42: Total | H42: =SUM(H35:H41) -> 5.8 | I42: =SUM(I35:I41) -> 5.6 | J42: =SUM(J35:J41) -> 5.4 | K42: =SUM(K35:K41) -> 5.3
A48: 9) 90 % Renewable by 2050 vs Reference Residential Non-Thermal Electric Consumption, Thousand MWh | B48: 2015 | C48: 2025 | D48: 2035 | E48: 2050
B49: 103 | C49: 493 | D49: 855 | E49: 1410

Sheet LEAP Town (hidden)
A1: APPLIES TOWN POP/EST SHARE OF STATE TO STATE RESULTS.
A2: 1) Reference Scenario Total Regional Residential Heating Consumption Thousand MMBTUs | G2: 2) 90x50 Scenario Total Regional Residential Heating Consumption Thousand MMBTUs | M2: 3) Reference Scenario Total Regional Commercial Consumption Thousand MMBTUs | S2: 4) 90x50 Scenario Total Regional Commercial Consumption Thousand MMBTUs
A3: Branches | B3: 2015 | C3: 2025 | D3: 2035 | E3: 2050 | G3: Branches | H3: 2015 | I3: 2025 | J3: 2035 | K3: 2050 | M3: Branches | N3: 2015 | O3: 2025 | P3: 2035 | Q3: 2050 | S3: Branches | T3: 2015 | U3: 2025 | V3: 2035 | W3: 2050
A4: Biodistillates | B4: =res_share_state_target*'LEAP Statewide'!B4 -> 0 | C4: =res_share_state_target*'LEAP Statewide'!C4 -> 0 | D4: =res_share_state_target*'LEAP Statewide'!D4 -> 0 | E4: =res_share_state_target*'LEAP Statewide'!E4 -> 0 | G4: Biodistillates | H4: =res_share_state_target*'LEAP Statewide'!H4 -> 0.1335945258 | I4: =res_share_state_target*'LEAP Statewide'!I4 -> 0.8077808538 | J4: =res_share_state_target*'LEAP Statewide'!J4 -> 1.523909649 | K4: =res_share_state_target*'LEAP Statewide'!K4 -> 2.805485042 | M4: Biofuel | N4: =com_share_state_target*'LEAP Statewide'!N4 -> 0 | O4: =com_share_state_target*'LEAP Statewide'!O4 -> 0 | P4: =com_share_state_target*'LEAP Statewide'!P4 -> 0 | Q4: =com_share_state_target*'LEAP Statewide'!Q4 -> 0 | S4: Biofuel | T4: =com_share_state_target*'LEAP Statewide'!T4 -> 0.01850490941 | U4: =com_share_state_target*'LEAP Statewide'!U4 -> 0.1157005986 | V4: =com_share_state_target*'LEAP Statewide'!V4 -> 0.2170733669 | W4: =com_share_state_target*'LEAP Statewide'!W4 -> 0.3859980375
A5: Cord Wood | B5: =res_share_state_target*'LEAP Statewide'!B5 -> 11.77340594 | C5: =res_share_state_target*'LEAP Statewide'!C5 -> 10.84601139 | D5: =res_share_state_target*'LEAP Statewide'!D5 -> 10.0926004 | E5: =res_share_state_target*'LEAP Statewide'!E5 -> 9.140351045 | G5: Cord Wood | H5: =res_share_state_target*'LEAP Statewide'!H5 -> 11.80913471 | I5: =res_share_state_target*'LEAP Statewide'!I5 -> 11.08523879 | J5: =res_share_state_target*'LEAP Statewide'!J5 -> 10.34891548 | K5: =res_share_state_target*'LEAP Statewide'!K5 -> 9.854926416 | M5: Distillate Fuel Oil | N5: =com_share_state_target*'LEAP Statewide'!N5 -> 1.740000462 | O5: =com_share_state_target*'LEAP Statewide'!O5 -> 1.405834137 | P5: =com_share_state_target*'LEAP Statewide'!P5 -> 1.020914056 | Q5: =com_share_state_target*'LEAP Statewide'!Q5 -> 0.41680961 | S5: Distillate Fuel Oil | T5: =com_share_state_target*'LEAP Statewide'!T5 -> 1.72091166 | U5: =com_share_state_target*'LEAP Statewide'!U5 -> 1.287214075 | V5: =com_share_state_target*'LEAP Statewide'!V5 -> 0.7982712498 | W5: =com_share_state_target*'LEAP Statewide'!W5 -> 0.0208404805
A6: Electric Resistance | B6: =res_share_state_target*'LEAP Statewide'!B6 -> 1.786438427 | C6: =res_share_state_target*'LEAP Statewide'!C6 -> 1.447791838 | D6: =res_share_state_target*'LEAP Statewide'!D6 -> 0.9864246964 | E6: =res_share_state_target*'LEAP Statewide'!E6 -> 0.3899096044 | G6: Electric Resistance | H6: =res_share_state_target*'LEAP Statewide'!H6 -> 1.7973124 | I6: =res_share_state_target*'LEAP Statewide'!I6 -> 1.475753483 | J6: =res_share_state_target*'LEAP Statewide'!J6 -> 0.8590438695 | K6: =res_share_state_target*'LEAP Statewide'!K6 -> 0.2780630247 | M6: Electric Use | N6: =com_share_state_target*'LEAP Statewide'!N6 -> 3.197037504 | O6: =com_share_state_target*'LEAP Statewide'!O6 -> 3.230274477 | P6: =com_share_state_target*'LEAP Statewide'!P6 -> 3.200181542 | Q6: =com_share_state_target*'LEAP Statewide'!Q6 -> 3.215003436 | S6: Electric Use | T6: =com_share_state_target*'LEAP Statewide'!T6 -> 3.196992589 | U6: =com_share_state_target*'LEAP Statewide'!U6 -> 3.230139733 | V6: =com_share_state_target*'LEAP Statewide'!V6 -> 3.200001883 | W6: =com_share_state_target*'LEAP Statewide'!W6 -> 3.215183095
A7: Heat Pump | B7: =res_share_state_target*'LEAP Statewide'!B7 -> 0.1801972674 | C7: =res_share_state_target*'LEAP Statewide'!C7 -> 1.014386341 | D7: =res_share_state_target*'LEAP Statewide'!D7 -> 1.912265829 | E7: =res_share_state_target*'LEAP Statewide'!E7 -> 2.637715172 | G7: Heat Pump | H7: =res_share_state_target*'LEAP Statewide'!H7 -> 0.3153452179 | I7: =res_share_state_target*'LEAP Statewide'!I7 -> 1.766243905 | J7: =res_share_state_target*'LEAP Statewide'!J7 -> 3.411320682 | K7: =res_share_state_target*'LEAP Statewide'!K7 -> 4.699109774 | M7: LPG | N7: =com_share_state_target*'LEAP Statewide'!N7 -> 1.301182586 | O7: =com_share_state_target*'LEAP Statewide'!O7 -> 1.336216153 | P7: =com_share_state_target*'LEAP Statewide'!P7 -> 1.346097415 | Q7: =com_share_state_target*'LEAP Statewide'!Q7 -> 1.389664799 | S7: LPG | T7: =com_share_state_target*'LEAP Statewide'!T7 -> 1.264397342 | U7: =com_share_state_target*'LEAP Statewide'!U7 -> 1.104770041 | V7: =com_share_state_target*'LEAP Statewide'!V7 -> 0.9120405108 | W7: =com_share_state_target*'LEAP Statewide'!W7 -> 0.6175788941
A8: Heat Pump Water Heater | B8: =res_share_state_target*'LEAP Statewide'!B8 -> 0.02019452134 | C8: =res_share_state_target*'LEAP Statewide'!C8 -> 0.149128773 | D8: =res_share_state_target*'LEAP Statewide'!D8 -> 0.507969883 | E8: =res_share_state_target*'LEAP Statewide'!E8 -> 1.054775384 | G8: Heat Pump Water Heater | H8: =res_share_state_target*'LEAP Statewide'!H8 -> 0.08699178425 | I8: =res_share_state_target*'LEAP Statewide'!I8 -> 0.5405918021 | J8: =res_share_state_target*'LEAP Statewide'!J8 -> 1.175942512 | K8: =res_share_state_target*'LEAP Statewide'!K8 -> 1.951101447 | M8: Natural Gas | N8: =com_share_state_target*'LEAP Statewide'!N8 -> 1.253572868 | O8: =com_share_state_target*'LEAP Statewide'!O8 -> 1.522612692 | P8: =com_share_state_target*'LEAP Statewide'!P8 -> 1.779076363 | Q8: =com_share_state_target*'LEAP Statewide'!Q8 -> 2.23091954 | S8: Natural Gas | T8: =com_share_state_target*'LEAP Statewide'!T8 -> 1.162350851 | U8: =com_share_state_target*'LEAP Statewide'!U8 -> 0.9523291121 | V8: =com_share_state_target*'LEAP Statewide'!V8 -> 0.7088907408 | W8: =com_share_state_target*'LEAP Statewide'!W8 -> 0.3280579086
A9: Kerosene | B9: =res_share_state_target*'LEAP Statewide'!B9 -> 1.511482251 | C9: =res_share_state_target*'LEAP Statewide'!C9 -> 1.213224705 | D9: =res_share_state_target*'LEAP Statewide'!D9 -> 0.9258411324 | E9: =res_share_state_target*'LEAP Statewide'!E9 -> 0.458260292 | G9: Kerosene | H9: =res_share_state_target*'LEAP Statewide'!H9 -> 1.483520606 | I9: =res_share_state_target*'LEAP Statewide'!I9 -> 1.068756207 | J9: =res_share_state_target*'LEAP Statewide'!J9 -> 0.6633123549 | K9: =res_share_state_target*'LEAP Statewide'!K9 -> 0 | M9: Residual Fuel Oil | N9: =com_share_state_target*'LEAP Statewide'!N9 -> 0.1765152766 | O9: =com_share_state_target*'LEAP Statewide'!O9 -> 0.131600448 | P9: =com_share_state_target*'LEAP Statewide'!P9 -> 0.08084669159 | Q9: =com_share_state_target*'LEAP Statewide'!Q9 -> 0 | S9: Residual Fuel Oil | T9: =com_share_state_target*'LEAP Statewide'!T9 -> 0.1763805322 | U9: =com_share_state_target*'LEAP Statewide'!U9 -> 0.1313758738 | V9: =com_share_state_target*'LEAP Statewide'!V9 -> 0.08066703228 | W9: =com_share_state_target*'LEAP Statewide'!W9 -> 0
A10: LPG | B10: =res_share_state_target*'LEAP Statewide'!B10 -> 8.719372946 | C10: =res_share_state_target*'LEAP Statewide'!C10 -> 6.98575096 | D10: =res_share_state_target*'LEAP Statewide'!D10 -> 5.160476916 | E10: =res_share_state_target*'LEAP Statewide'!E10 -> 1.862556238 | G10: LPG | H10: =res_share_state_target*'LEAP Statewide'!H10 -> 8.616846915 | I10: =res_share_state_target*'LEAP Statewide'!I10 -> 6.583413958 | J10: =res_share_state_target*'LEAP Statewide'!J10 -> 4.607457716 | K10: =res_share_state_target*'LEAP Statewide'!K10 -> 1.554978143 | M10: Wood and wood waste consumption | N10: =com_share_state_target*'LEAP Statewide'!N10 -> 0.5618845066 | O10: =com_share_state_target*'LEAP Statewide'!O10 -> 0.5978163695 | P10: =com_share_state_target*'LEAP Statewide'!P10 -> 0.6243161184 | Q10: =com_share_state_target*'LEAP Statewide'!Q10 -> 0.6791122094 | S10: Wood and wood waste consumption | T10: =com_share_state_target*'LEAP Statewide'!T10 -> 0.6032061489 | U10: =com_share_state_target*'LEAP Statewide'!U10 -> 0.8569749309 | V10: =com_share_state_target*'LEAP Statewide'!V10 -> 1.110384394 | W10: =com_share_state_target*'LEAP Statewide'!W10 -> 1.54390232
A11: Natural Gas | B11: =res_share_state_target*'LEAP Statewide'!B11 -> 7.527896187 | C11: =res_share_state_target*'LEAP Statewide'!C11 -> 9.771041481 | D11: =res_share_state_target*'LEAP Statewide'!D11 -> 12.55788543 | E11: =res_share_state_target*'LEAP Statewide'!E11 -> 18.39254867 | G11: Natural Gas | H11: =res_share_state_target*'LEAP Statewide'!H11 -> 6.855263284 | I11: =res_share_state_target*'LEAP Statewide'!I11 -> 5.452520763 | J11: =res_share_state_target*'LEAP Statewide'!J11 -> 3.040052175 | K11: =res_share_state_target*'LEAP Statewide'!K11 -> 0.3774822067 | M11: Total | N11: =SUM(N4:N10) -> 8.230193204 | O11: =SUM(O4:O10) -> 8.224354276 | P11: =SUM(P4:P10) -> 8.051432186 | Q11: =SUM(Q4:Q10) -> 7.931509594 | S11: Total | T11: =SUM(T4:T10) -> 8.142744033 | U11: =SUM(U4:U10) -> 7.678504364 | V11: =SUM(V4:V10) -> 7.027329178 | W11: =SUM(W4:W10) -> 6.111560736
A12: Oil | B12: =res_share_state_target*'LEAP Statewide'!B12 -> 16.12299516 | C12: =res_share_state_target*'LEAP Statewide'!C12 -> 12.66662516 | D12: =res_share_state_target*'LEAP Statewide'!D12 -> 8.349657863 | E12: =res_share_state_target*'LEAP Statewide'!E12 -> 2.23537817 | G12: Oil | H12: =res_share_state_target*'LEAP Statewide'!H12 -> 15.80764994 | I12: =res_share_state_target*'LEAP Statewide'!I12 -> 11.32757305 | J12: =res_share_state_target*'LEAP Statewide'!J12 -> 6.981090686 | K12: =res_share_state_target*'LEAP Statewide'!K12 -> 0
A13: Wood pellets | B13: =res_share_state_target*'LEAP Statewide'!B13 -> 1.000405519 | C13: =res_share_state_target*'LEAP Statewide'!C13 -> 1.325071285 | D13: =res_share_state_target*'LEAP Statewide'!D13 -> 1.635756229 | E13: =res_share_state_target*'LEAP Statewide'!E13 -> 2.115764467 | G13: Wood pellets | H13: =res_share_state_target*'LEAP Statewide'!H13 -> 1.151087717 | I13: =res_share_state_target*'LEAP Statewide'!I13 -> 2.106443919 | J13: =res_share_state_target*'LEAP Statewide'!J13 -> 2.838106961 | K13: =res_share_state_target*'LEAP Statewide'!K13 -> 3.53248781
A14: Total | B14: =SUM(B4:B13) -> 48.64238822 | C14: =SUM(C4:C13) -> 45.41903193 | D14: =SUM(D4:D13) -> 42.12887837 | E14: =SUM(E4:E13) -> 38.28725904 | G14: Total | H14: =SUM(H4:H13) -> 48.0567471 | I14: =SUM(I4:I13) -> 42.21431673 | J14: =SUM(J4:J13) -> 35.44915208 | K14: =SUM(K4:K13) -> 25.05363386
A22: 5) Reference Scenario Total Regional Light Duty Vehicle Consumption Thousand MMBTUs | G22: 6) 90x50 Scenario Total Regional Light Duty Vehicle Consumption Thousand MMBTUs
A23: Branches | B23: 2015 | C23: 2025 | D23: 2035 | E23: 2050 | G23: Branches | H23: 2015 | I23: 2025 | J23: 2035 | K23: 2050
A24: Gasoline | B24: =res_share_state_target*'LEAP Statewide'!B24*1000 -> 43.49589213 | C24: =res_share_state_target*'LEAP Statewide'!C24*1000 -> 35.72876853 | D24: =res_share_state_target*'LEAP Statewide'!D24*1000 -> 31.06849438 | E24: =res_share_state_target*'LEAP Statewide'!E24*1000 -> 26.40822022 | G24: Gasoline | H24: =res_share_state_target*'LEAP Statewide'!H24*1000 -> 43.49589213 | I24: =res_share_state_target*'LEAP Statewide'!I24*1000 -> 35.72876853 | J24: =res_share_state_target*'LEAP Statewide'!J24*1000 -> 17.08767191 | K24: =res_share_state_target*'LEAP Statewide'!K24*1000 -> 1.553424719
A25: Ethanol | B25: =res_share_state_target*'LEAP Statewide'!B25*1000 -> 6.213698875 | C25: =res_share_state_target*'LEAP Statewide'!C25*1000 -> 4.660274156 | D25: =res_share_state_target*'LEAP Statewide'!D25*1000 -> 4.660274156 | E25: =res_share_state_target*'LEAP Statewide'!E25*1000 -> 3.106849438 | G25: Ethanol | H25: =res_share_state_target*'LEAP Statewide'!H25*1000 -> 6.213698875 | I25: =res_share_state_target*'LEAP Statewide'!I25*1000 -> 4.660274156 | J25: =res_share_state_target*'LEAP Statewide'!J25*1000 -> 1.553424719 | K25: =res_share_state_target*'LEAP Statewide'!K25*1000 -> 0
A26: Electricity | B26: =res_share_state_target*'LEAP Statewide'!B26*1000 -> 0 | C26: =res_share_state_target*'LEAP Statewide'!C26*1000 -> 0 | D26: =res_share_state_target*'LEAP Statewide'!D26*1000 -> 0 | E26: =res_share_state_target*'LEAP Statewide'!E26*1000 -> 0 | G26: Electricity | H26: =res_share_state_target*'LEAP Statewide'!H26*1000 -> 0 | I26: =res_share_state_target*'LEAP Statewide'!I26*1000 -> 0 | J26: =res_share_state_target*'LEAP Statewide'!J26*1000 -> 3.106849438 | K26: =res_share_state_target*'LEAP Statewide'!K26*1000 -> 7.767123594
A27: Diesel | B27: =res_share_state_target*'LEAP Statewide'!B27*1000 -> 1.553424719 | C27: =res_share_state_target*'LEAP Statewide'!C27*1000 -> 1.553424719 | D27: =res_share_state_target*'LEAP Statewide'!D27*1000 -> 1.553424719 | E27: =res_share_state_target*'LEAP Statewide'!E27*1000 -> 1.553424719 | G27: Diesel | H27: =res_share_state_target*'LEAP Statewide'!H27*1000 -> 1.553424719 | I27: =res_share_state_target*'LEAP Statewide'!I27*1000 -> 1.553424719 | J27: =res_share_state_target*'LEAP Statewide'!J27*1000 -> 0 | K27: =res_share_state_target*'LEAP Statewide'!K27*1000 -> 0
A28: Biodiesel | B28: =res_share_state_target*'LEAP Statewide'!B28*1000 -> 0 | C28: =res_share_state_target*'LEAP Statewide'!C28*1000 -> 0 | D28: =res_share_state_target*'LEAP Statewide'!D28*1000 -> 0 | E28: =res_share_state_target*'LEAP Statewide'!E28*1000 -> 0 | G28: Biodiesel | H28: =res_share_state_target*'LEAP Statewide'!H28*1000 -> 0 | I28: =res_share_state_target*'LEAP Statewide'!I28*1000 -> 0 | J28: =res_share_state_target*'LEAP Statewide'!J28*1000 -> 1.553424719 | K28: =res_share_state_target*'LEAP Statewide'!K28*1000 -> 1.553424719
A29: Hydrogen | B29: =res_share_state_target*'LEAP Statewide'!B29*1000 -> 0 | C29: =res_share_state_target*'LEAP Statewide'!C29*1000 -> 0 | D29: =res_share_state_target*'LEAP Statewide'!D29*1000 -> 0 | E29: =res_share_state_target*'LEAP Statewide'!E29*1000 -> 0 | G29: Hydrogen | H29: =res_share_state_target*'LEAP Statewide'!H29*1000 -> 0 | I29: =res_share_state_target*'LEAP Statewide'!I29*1000 -> 0 | J29: =res_share_state_target*'LEAP Statewide'!J29*1000 -> 0 | K29: =res_share_state_target*'LEAP Statewide'!K29*1000 -> 0
A30: Total | B30: =SUM(B24:B29) -> 51.26301572 | C30: =SUM(C24:C29) -> 41.94246741 | D30: =SUM(D24:D29) -> 37.28219325 | E30: =SUM(E24:E29) -> 31.06849438 | G30: Total | H30: =SUM(H24:H29) -> 51.26301572 | I30: =SUM(I24:I29) -> 41.94246741 | J30: =SUM(J24:J29) -> 23.30137078 | K30: =SUM(K24:K29) -> 10.87397303
A33: Reference Scenario Electric Consumption by Branch | G33: 90x50 Scenario Electric Consumption by Branch
A34: Branches | B34: 2015 | C34: 2025 | D34: 2035 | E34: 2050 | G34: Branches | H34: 2015 | I34: 2025 | J34: 2035 | K34: 2050
A35: Cooling | B35: 0.3 | C35: 0.4 | D35: 0.5 | E35: 0.6 | G35: Cooling | H35: 0.3 | I35: 0.4 | J35: 0.6 | K35: 0.7
A36: Electric Appliances | B36: 0.9 | C36: 1 | D36: 1.2 | E36: 1.5 | G36: Electric Appliances | H36: 0.9 | I36: 0.9 | J36: 1 | K36: 1.1
A37: Electric CDs etc | B37: 0.4 | C37: 0.4 | D37: 0.4 | E37: 0.3 | G37: Electric CDs etc | H37: 0.5 | I37: 0.5 | J37: 0.4 | K37: 0.4
A38: Electric Kitchen Range | B38: 0.1 | C38: 0.1 | D38: 0.1 | E38: 0.1 | G38: Electric Kitchen Range | H38: 0.1 | I38: 0.1 | J38: 0.1 | K38: 0.1
A39: Electric Lighting | B39: 1.8 | C39: 1.6 | D39: 1.4 | E39: 1.3 | G39: Electric Lighting | H39: 1.7 | I39: 1.3 | J39: 0.9 | K39: 0.6
A40: Misc Electric | B40: 2.5 | C40: 3.5 | D40: 4.6 | E40: 6.1 | G40: Misc Electric | H40: 2.1 | I40: 2.2 | J40: 2.2 | K40: 2.2
A41: Plug Load | B41: 0.2 | C41: 0.2 | D41: 0.2 | E41: 0.2 | G41: Plug Load | H41: 0.2 | I41: 0.2 | J41: 0.2 | K41: 0.2
A42: Total | B42: =SUM(B35:B41) -> 6.2 | C42: =SUM(C35:C41) -> 7.2 | D42: =SUM(D35:D41) -> 8.4 | E42: =SUM(E35:E41) -> 10.1 | G42: Total | H42: =SUM(H35:H41) -> 5.8 | I42: =SUM(I35:I41) -> 5.6 | J42: =SUM(J35:J41) -> 5.4 | K42: =SUM(K35:K41) -> 5.3
A48: 9) 90 % Renewable by 2050 vs Reference Residential Non-Thermal Electric Consumption, Thousand MWh | B48: 2015 | C48: 2025 | D48: 2035 | E48: 2050
B49: =res_share_state_target*'LEAP Statewide'!B49 -> 0.160002746 | C49: =res_share_state_target*'LEAP Statewide'!C49 -> 0.7658383864 | D49: =res_share_state_target*'LEAP Statewide'!D49 -> 1.328178135 | E49: =res_share_state_target*'LEAP Statewide'!E49 -> 2.190328853

Sheet LEAP Region (hidden)
A1: APPLIES TOWN POP/EST SHARES OF REGION TO REGIONAL RESULTS
A2: 1) Reference Scenario Total Regional Residential Heating Consumption Thousand MMBTUs | G2: 2) 90x50 Scenario Total Regional Residential Heating Consumption Thousand MMBTUs | M2: 3) Reference Scenario Total Regional Commercial Consumption Thousand MMBTUs | S2: 4) 90x50 Scenario Total Regional Commercial Consumption Thousand MMBTUs
A3: Branches | B3: 2015 | C3: 2025 | D3: 2035 | E3: 2050 | G3: Branches | H3: 2015 | I3: 2025 | J3: 2035 | K3: 2050 | M3: Branches | N3: 2015 | O3: 2025 | P3: 2035 | Q3: 2050 | S3: Branches | T3: 2015 | U3: 2025 | V3: 2035 | W3: 2050
A4: Biodistillates | B4: =res_share_region_target*'LEAP Scenario'!B4 -> 0 | C4: =res_share_region_target*'LEAP Scenario'!C4 -> 0 | D4: =res_share_region_target*'LEAP Scenario'!D4 -> 0 | E4: =res_share_region_target*'LEAP Scenario'!E4 -> 0 | G4: Biodistillates | H4: =res_share_region_target*'LEAP Scenario'!H4 -> 0.2111937984 | I4: =res_share_region_target*'LEAP Scenario'!I4 -> 0.7542635659 | J4: =res_share_region_target*'LEAP Scenario'!J4 -> 1.236992248 | K4: =res_share_region_target*'LEAP Scenario'!K4 -> 1.915829457 | M4: Biofuel | N4: =com_share_region_target*'LEAP Scenario'!N4 -> 0 | O4: =com_share_region_target*'LEAP Scenario'!O4 -> 0 | P4: =com_share_region_target*'LEAP Scenario'!P4 -> 0 | Q4: =com_share_region_target*'LEAP Scenario'!Q4 -> 0 | S4: Biofuel | T4: =com_share_region_target*'LEAP Scenario'!T4 -> 0.04934886909 | U4: =com_share_region_target*'LEAP Scenario'!U4 -> 0.3022618232 | V4: =com_share_region_target*'LEAP Scenario'!V4 -> 0.5675119945 | W4: =com_share_region_target*'LEAP Scenario'!W4 -> 1.011651816
A5: Cord Wood | B5: =res_share_region_target*'LEAP Scenario'!B5 -> 28.51116279 | C5: =res_share_region_target*'LEAP Scenario'!C5 -> 23.65370543 | D5: =res_share_region_target*'LEAP Scenario'!D5 -> 19.62593798 | E5: =res_share_region_target*'LEAP Scenario'!E5 -> 14.94950388 | G5: Cord Wood | H5: =res_share_region_target*'LEAP Scenario'!H5 -> 28.04351938 | I5: =res_share_region_target*'LEAP Scenario'!I5 -> 22.17534884 | J5: =res_share_region_target*'LEAP Scenario'!J5 -> 17.01618605 | K5: =res_share_region_target*'LEAP Scenario'!K5 -> 11.31395349 | M5: Distillate Fuel Oil | N5: =com_share_region_target*'LEAP Scenario'!N5 -> 2.547635367 | O5: =com_share_region_target*'LEAP Scenario'!O5 -> 2.091158328 | P5: =com_share_region_target*'LEAP Scenario'!P5 -> 1.560657985 | Q5: =com_share_region_target*'LEAP Scenario'!Q5 -> 0.7278958191 | S5: Distillate Fuel Oil | T5: =com_share_region_target*'LEAP Scenario'!T5 -> 2.516792324 | U5: =com_share_region_target*'LEAP Scenario'!U5 -> 1.875257025 | V5: =com_share_region_target*'LEAP Scenario'!V5 -> 1.153529815 | W5: =com_share_region_target*'LEAP Scenario'!W5 -> 0.006168608636
A6: Electric Resistance | B6: =res_share_region_target*'LEAP Scenario'!B6 -> 2.881286822 | C6: =res_share_region_target*'LEAP Scenario'!C6 -> 2.142108527 | D6: =res_share_region_target*'LEAP Scenario'!D6 -> 1.236992248 | E6: =res_share_region_target*'LEAP Scenario'!E6 -> 0.3620465116 | G6: Electric Resistance | H6: =res_share_region_target*'LEAP Scenario'!H6 -> 3.122651163 | I6: =res_share_region_target*'LEAP Scenario'!I6 -> 2.820945736 | J6: =res_share_region_target*'LEAP Scenario'!J6 -> 1.538697674 | K6: =res_share_region_target*'LEAP Scenario'!K6 -> 0.4676434109 | M6: Electric Use | N6: =com_share_region_target*'LEAP Scenario'!N6 -> 4.651130912 | O6: =com_share_region_target*'LEAP Scenario'!O6 -> 4.947224126 | P6: =com_share_region_target*'LEAP Scenario'!P6 -> 5.163125428 | Q6: =com_share_region_target*'LEAP Scenario'!Q6 -> 5.619602467 | S6: Electric Use | T6: =com_share_region_target*'LEAP Scenario'!T6 -> 4.589444825 | U6: =com_share_region_target*'LEAP Scenario'!U6 -> 4.546264565 | V6: =com_share_region_target*'LEAP Scenario'!V6 -> 4.404386566 | W6: =com_share_region_target*'LEAP Scenario'!W6 -> 4.268677176
A7: Heat Pump | B7: =res_share_region_target*'LEAP Scenario'!B7 -> 0.3922170543 | C7: =res_share_region_target*'LEAP Scenario'!C7 -> 1.855488372 | D7: =res_share_region_target*'LEAP Scenario'!D7 -> 2.881286822 | E7: =res_share_region_target*'LEAP Scenario'!E7 -> 3.620465116 | G7: Heat Pump | H7: =res_share_region_target*'LEAP Scenario'!H7 -> 0.3469612403 | I7: =res_share_region_target*'LEAP Scenario'!I7 -> 1.659379845 | J7: =res_share_region_target*'LEAP Scenario'!J7 -> 3.394186047 | K7: =res_share_region_target*'LEAP Scenario'!K7 -> 4.073023256 | M7: LPG | N7: =com_share_region_target*'LEAP Scenario'!N7 -> 1.918437286 | O7: =com_share_region_target*'LEAP Scenario'!O7 -> 2.072652502 | P7: =com_share_region_target*'LEAP Scenario'!P7 -> 2.189856066 | Q7: =com_share_region_target*'LEAP Scenario'!Q7 -> 2.430431803 | S7: LPG | T7: =com_share_region_target*'LEAP Scenario'!T7 -> 1.844413982 | U7: =com_share_region_target*'LEAP Scenario'!U7 -> 1.591501028 | V7: =com_share_region_target*'LEAP Scenario'!V7 -> 1.289239205 | W7: =com_share_region_target*'LEAP Scenario'!W7 -> 0.8204249486
A8: Heat Pump Water Heater | B8: =res_share_region_target*'LEAP Scenario'!B8 -> 0.04525581395 | C8: =res_share_region_target*'LEAP Scenario'!C8 -> 0.1961085271 | D8: =res_share_region_target*'LEAP Scenario'!D8 -> 0.7090077519 | E8: =res_share_region_target*'LEAP Scenario'!E8 -> 1.704635659 | G8: Heat Pump Water Heater | H8: =res_share_region_target*'LEAP Scenario'!H8 -> 0.2413643411 | I8: =res_share_region_target*'LEAP Scenario'!I8 -> 0.6939224806 | J8: =res_share_region_target*'LEAP Scenario'!J8 -> 1.357674419 | K8: =res_share_region_target*'LEAP Scenario'!K8 -> 1.900744186 | M8: Natural Gas | N8: =com_share_region_target*'LEAP Scenario'!N8 -> 0 | O8: =com_share_region_target*'LEAP Scenario'!O8 -> 0 | P8: =com_share_region_target*'LEAP Scenario'!P8 -> 0 | Q8: =com_share_region_target*'LEAP Scenario'!Q8 -> 0 | S8: Natural Gas | T8: =com_share_region_target*'LEAP Scenario'!T8 -> 0 | U8: =com_share_region_target*'LEAP Scenario'!U8 -> 0 | V8: =com_share_region_target*'LEAP Scenario'!V8 -> 0 | W8: =com_share_region_target*'LEAP Scenario'!W8 -> 0
A9: Kerosene | B9: =res_share_region_target*'LEAP Scenario'!B9 -> 1.946 | C9: =res_share_region_target*'LEAP Scenario'!C9 -> 2.473984496 | D9: =res_share_region_target*'LEAP Scenario'!D9 -> 3.032139535 | E9: =res_share_region_target*'LEAP Scenario'!E9 -> 0.7693488372 | G9: Kerosene | H9: =res_share_region_target*'LEAP Scenario'!H9 -> 1.810232558 | I9: =res_share_region_target*'LEAP Scenario'!I9 -> 2.096852713 | J9: =res_share_region_target*'LEAP Scenario'!J9 -> 2.428728682 | K9: =res_share_region_target*'LEAP Scenario'!K9 -> 0 | M9: Residual Fuel Oil | N9: =com_share_region_target*'LEAP Scenario'!N9 -> 0.2590815627 | O9: =com_share_region_target*'LEAP Scenario'!O9 -> 0.1912268677 | P9: =com_share_region_target*'LEAP Scenario'!P9 -> 0.1172035641 | Q9: =com_share_region_target*'LEAP Scenario'!Q9 -> 0 | S9: Residual Fuel Oil | T9: =com_share_region_target*'LEAP Scenario'!T9 -> 0.2590815627 | U9: =com_share_region_target*'LEAP Scenario'!U9 -> 0.1912268677 | V9: =com_share_region_target*'LEAP Scenario'!V9 -> 0.1172035641 | W9: =com_share_region_target*'LEAP Scenario'!W9 -> 0
A10: LPG | B10: =res_share_region_target*'LEAP Scenario'!B10 -> 10.90665116 | C10: =res_share_region_target*'LEAP Scenario'!C10 -> 8.900310078 | D10: =res_share_region_target*'LEAP Scenario'!D10 -> 7.120248062 | E10: =res_share_region_target*'LEAP Scenario'!E10 -> 4.766945736 | G10: LPG | H10: =res_share_region_target*'LEAP Scenario'!H10 -> 10.66528682 | I10: =res_share_region_target*'LEAP Scenario'!I10 -> 8.342155039 | J10: =res_share_region_target*'LEAP Scenario'!J10 -> 5.340186047 | K10: =res_share_region_target*'LEAP Scenario'!K10 -> 1.870573643 | M10: Wood and wood waste consumption | N10: =com_share_region_target*'LEAP Scenario'!N10 -> 0.8327621659 | O10: =com_share_region_target*'LEAP Scenario'!O10 -> 0.931459904 | P10: =com_share_region_target*'LEAP Scenario'!P10 -> 1.023989034 | Q10: =com_share_region_target*'LEAP Scenario'!Q10 -> 1.184372858 | S10: Wood and wood waste consumption | T10: =com_share_region_target*'LEAP Scenario'!T10 -> 0.8697738177 | U10: =com_share_region_target*'LEAP Scenario'!U10 -> 1.190541467 | V10: =com_share_region_target*'LEAP Scenario'!V10 -> 1.505140507 | W10: =com_share_region_target*'LEAP Scenario'!W10 -> 2.047978067
A11: Natural Gas | B11: =res_share_region_target*'LEAP Scenario'!B11 -> 0 | C11: =res_share_region_target*'LEAP Scenario'!C11 -> 0 | D11: =res_share_region_target*'LEAP Scenario'!D11 -> 0 | E11: =res_share_region_target*'LEAP Scenario'!E11 -> 0 | G11: Natural Gas | H11: =res_share_region_target*'LEAP Scenario'!H11 -> 0 | I11: =res_share_region_target*'LEAP Scenario'!I11 -> 0 | J11: =res_share_region_target*'LEAP Scenario'!J11 -> 0 | K11: =res_share_region_target*'LEAP Scenario'!K11 -> 0 | M11: Total | N11: =SUM(N4:N10) -> 10.20904729 | O11: =SUM(O4:O10) -> 10.23372173 | P11: =SUM(P4:P10) -> 10.05483208 | Q11: =SUM(Q4:Q10) -> 9.962302947 | S11: Total | T11: =SUM(T4:T10) -> 10.12885538 | U11: =SUM(U4:U10) -> 9.697052776 | V11: =SUM(V4:V10) -> 9.037011652 | W11: =SUM(W4:W10) -> 8.154900617
A12: Oil | B12: =res_share_region_target*'LEAP Scenario'!B12 -> 26.56516279 | C12: =res_share_region_target*'LEAP Scenario'!C12 -> 20.24443411 | D12: =res_share_region_target*'LEAP Scenario'!D12 -> 14.18015504 | E12: =res_share_region_target*'LEAP Scenario'!E12 -> 6.200046512 | G12: Oil | H12: =res_share_region_target*'LEAP Scenario'!H12 -> 25.55444961 | I12: =res_share_region_target*'LEAP Scenario'!I12 -> 17.16703876 | J12: =res_share_region_target*'LEAP Scenario'!J12 -> 9.066248062 | K12: =res_share_region_target*'LEAP Scenario'!K12 -> 0
A13: Wood pellets | B13: =res_share_region_target*'LEAP Scenario'!B13 -> 5.49103876 | C13: =res_share_region_target*'LEAP Scenario'!C13 -> 4.872542636 | D13: =res_share_region_target*'LEAP Scenario'!D13 -> 4.374728682 | E13: =res_share_region_target*'LEAP Scenario'!E13 -> 3.907085271 | G13: Wood pellets | H13: =res_share_region_target*'LEAP Scenario'!H13 -> 4.766945736 | I13: =res_share_region_target*'LEAP Scenario'!I13 -> 5.325100775 | J13: =res_share_region_target*'LEAP Scenario'!J13 -> 4.782031008 | K13: =res_share_region_target*'LEAP Scenario'!K13 -> 4.46524031
A14: Total | B14: =SUM(B4:B13) -> 76.73877519 | C14: =SUM(C4:C13) -> 64.33868217 | D14: =SUM(D4:D13) -> 53.16049612 | E14: =SUM(E4:E13) -> 36.28007752 | G14: Total | H14: =SUM(H4:H13) -> 74.76260465 | I14: =SUM(I4:I13) -> 61.03500775 | J14: =SUM(J4:J13) -> 46.16093023 | K14: =SUM(K4:K13) -> 26.00700775
A22: 5) Reference Scenario Total Regional Light Duty Vehicle Consumption Thousand MMBTUs | G22: 6) 90x50 Scenario Total Regional Light Duty Vehicle Consumption Thousand MMBTUs
A23: Branches | B23: 2015 | C23: 2025 | D23: 2035 | E23: 2050 | G23: Branches | H23: 2015 | I23: 2025 | J23: 2035 | K23: 2050
A24: Gasoline | B24: =res_share_region_target*'LEAP Scenario'!B24 -> 43.92831008 | C24: =res_share_region_target*'LEAP Scenario'!C24 -> 35.75209302 | D24: =res_share_region_target*'LEAP Scenario'!D24 -> 30.47224806 | E24: =res_share_region_target*'LEAP Scenario'!E24 -> 25.58462016 | G24: Gasoline | H24: =res_share_region_target*'LEAP Scenario'!H24 -> 44.09424806 | I24: =res_share_region_target*'LEAP Scenario'!I24 -> 31.58855814 | J24: =res_share_region_target*'LEAP Scenario'!J24 -> 17.58942636 | K24: =res_share_region_target*'LEAP Scenario'!K24 -> 1.37275969
A25: Ethanol | B25: =res_share_region_target*'LEAP Scenario'!B25 -> 5.958682171 | C25: =res_share_region_target*'LEAP Scenario'!C25 -> 4.81220155 | D25: =res_share_region_target*'LEAP Scenario'!D25 -> 4.073023256 | E25: =res_share_region_target*'LEAP Scenario'!E25 -> 3.379100775 | G25: Ethanol | H25: =res_share_region_target*'LEAP Scenario'!H25 -> 5.883255814 | I25: =res_share_region_target*'LEAP Scenario'!I25 -> 3.922170543 | J25: =res_share_region_target*'LEAP Scenario'!J25 -> 2.127023256 | K25: =res_share_region_target*'LEAP Scenario'!K25 -> 0.2413643411
A26: Electricity | B26: =res_share_region_target*'LEAP Scenario'!B26 -> 0.04525581395 | C26: =res_share_region_target*'LEAP Scenario'!C26 -> 0.1357674419 | D26: =res_share_region_target*'LEAP Scenario'!D26 -> 0.2111937984 | E26: =res_share_region_target*'LEAP Scenario'!E26 -> 0.3167906977 | G26: Electricity | H26: =res_share_region_target*'LEAP Scenario'!H26 -> 0.04525581395 | I26: =res_share_region_target*'LEAP Scenario'!I26 -> 1.236992248 | J26: =res_share_region_target*'LEAP Scenario'!J26 -> 3.590294574 | K26: =res_share_region_target*'LEAP Scenario'!K26 -> 6.954310078
A27: Diesel | B27: =res_share_region_target*'LEAP Scenario'!B27 -> 1.59903876 | C27: =res_share_region_target*'LEAP Scenario'!C27 -> 1.508527132 | D27: =res_share_region_target*'LEAP Scenario'!D27 -> 1.478356589 | E27: =res_share_region_target*'LEAP Scenario'!E27 -> 1.463271318 | G27: Diesel | H27: =res_share_region_target*'LEAP Scenario'!H27 -> 1.478356589 | I27: =res_share_region_target*'LEAP Scenario'!I27 -> 0.9202015504 | J27: =res_share_region_target*'LEAP Scenario'!J27 -> 0.4978139535 | K27: =res_share_region_target*'LEAP Scenario'!K27 -> 0.01508527132
A28: Biodiesel | B28: =res_share_region_target*'LEAP Scenario'!B28 -> 0.01508527132 | C28: =res_share_region_target*'LEAP Scenario'!C28 -> 0.01508527132 | D28: =res_share_region_target*'LEAP Scenario'!D28 -> 0.01508527132 | E28: =res_share_region_target*'LEAP Scenario'!E28 -> 0 | G28: Biodiesel | H28: =res_share_region_target*'LEAP Scenario'!H28 -> 0.1206821705 | I28: =res_share_region_target*'LEAP Scenario'!I28 -> 0.5732403101 | J28: =res_share_region_target*'LEAP Scenario'!J28 -> 0.9202015504 | K28: =res_share_region_target*'LEAP Scenario'!K28 -> 1.312418605
A29: Hydrogen | B29: =res_share_region_target*'LEAP Scenario'!B29 -> 0 | C29: =res_share_region_target*'LEAP Scenario'!C29 -> 0 | D29: =res_share_region_target*'LEAP Scenario'!D29 -> 0 | E29: =res_share_region_target*'LEAP Scenario'!E29 -> 0 | G29: Hydrogen | H29: =res_share_region_target*'LEAP Scenario'!H29 -> 0 | I29: =res_share_region_target*'LEAP Scenario'!I29 -> 0 | J29: =res_share_region_target*'LEAP Scenario'!J29 -> 0 | K29: =res_share_region_target*'LEAP Scenario'!K29 -> 0
A30: Total | B30: =SUM(B24:B29) -> 51.54637209 | C30: =SUM(C24:C29) -> 42.22367442 | D30: =SUM(D24:D29) -> 36.24990698 | E30: =SUM(E24:E29) -> 30.74378295 | G30: Total | H30: =SUM(H24:H29) -> 51.62179845 | I30: =SUM(I24:I29) -> 38.24116279 | J30: =SUM(J24:J29) -> 24.72475969 | K30: =SUM(K24:K29) -> 9.895937984
A33: Reference Scenario Electric Consumption by Branch | G33: 90x50 Scenario Electric Consumption by Branch
A34: Branches | B34: 2015 | C34: 2025 | D34: 2035 | E34: 2050 | G34: Branches | H34: 2015 | I34: 2025 | J34: 2035 | K34: 2050
A35: Cooling | B35: 0.3 | C35: 0.4 | D35: 0.5 | E35: 0.6 | G35: Cooling | H35: 0.3 | I35: 0.4 | J35: 0.6 | K35: 0.7
A36: Electric Appliances | B36: 0.9 | C36: 1 | D36: 1.2 | E36: 1.5 | G36: Electric Appliances | H36: 0.9 | I36: 0.9 | J36: 1 | K36: 1.1
A37: Electric CDs etc | B37: 0.4 | C37: 0.4 | D37: 0.4 | E37: 0.3 | G37: Electric CDs etc | H37: 0.5 | I37: 0.5 | J37: 0.4 | K37: 0.4
A38: Electric Kitchen Range | B38: 0.1 | C38: 0.1 | D38: 0.1 | E38: 0.1 | G38: Electric Kitchen Range | H38: 0.1 | I38: 0.1 | J38: 0.1 | K38: 0.1
A39: Electric Lighting | B39: 1.8 | C39: 1.6 | D39: 1.4 | E39: 1.3 | G39: Electric Lighting | H39: 1.7 | I39: 1.3 | J39: 0.9 | K39: 0.6
A40: Misc Electric | B40: 2.5 | C40: 3.5 | D40: 4.6 | E40: 6.1 | G40: Misc Electric | H40: 2.1 | I40: 2.2 | J40: 2.2 | K40: 2.2
A41: Plug Load | B41: 0.2 | C41: 0.2 | D41: 0.2 | E41: 0.2 | G41: Plug Load | H41: 0.2 | I41: 0.2 | J41: 0.2 | K41: 0.2
A42: Total | B42: =SUM(B35:B41) -> 6.2 | C42: =SUM(C35:C41) -> 7.2 | D42: =SUM(D35:D41) -> 8.4 | E42: =SUM(E35:E41) -> 10.1 | G42: Total | H42: =SUM(H35:H41) -> 5.8 | I42: =SUM(I35:I41) -> 5.6 | J42: =SUM(J35:J41) -> 5.4 | K42: =SUM(K35:K41) -> 5.3
A48: 9) 90 % Renewable by 2050 vs Reference Residential Non-Thermal Electric Consumption, Thousand MWh | B48: 2015 | C48: 2025 | D48: 2035 | E48: 2050
B49: =res_share_region_target*'LEAP Scenario'!B49 -> 0.1810232558 | C49: =res_share_region_target*'LEAP Scenario'!C49 -> 0.8447751938 | D49: =res_share_region_target*'LEAP Scenario'!D49 -> 1.327503876 | E49: =res_share_region_target*'LEAP Scenario'!E49 -> 1.946

Sheet Exchange Example
B4: 1) Reference Scenario Total Regional Residential Heating Consumption Thousand MMBTUs | H4: 2) 90x50 Scenario Total Regional Residential Heating Consumption Thousand MMBTUs | N4: 2) 90x50 Scenario Total Regional Residential Heating Consumption Thousand MMBTUs
B5: Branches | C5: 2015 | D5: 2025 | E5: 2035 | F5: 2050 | H5: Branches | I5: 2015 | J5: 2025 | K5: 2035 | L5: 2050 | N5: Branches | O5: 2015 | P5: 2025 | Q5: 2035 | R5: 2050
B6: Biodistillates | C6: 0 | D6: 0 | E6: 0 | F6: 0 | H6: Biodistillates | I6: 2.113607554 | J6: 12.83084115 | K6: 24.31891985 | L6: 45.20633567 | N6: Biodistillates | O6: =I6-0.5-0.45+5 -> 6.163607554 | P6: =J6-0.5-0.45+5 -> 16.88084115 | Q6: =K6-0.5-0.45+5 -> 28.36891985 | R6: =L6-0.5-0.45+5 -> 49.25633567 | T6: 500 MMBtu of additional weatherization savings is matched with 450 MMBtu reduction in consumption of Biofuel heat energy. 5,000 MMBtu added in exchange for 5,000 MMBtu reduction in consumption of Wood heat energy
B7: Cord Wood | C7: 174.509386 | D7: 161.554215 | E7: 151.5332286 | F7: 139.4980985 | H7: Cord Wood | I7: 175.0564374 | J7: 165.2592447 | K7: 155.3625882 | L7: 150.3893939 | N7: Cord Wood | O7: =I7-5 -> 170.0564374 | P7: =J7-5 -> 160.2592447 | Q7: =K7-5 -> 150.3625882 | R7: =L7-5 -> 145.3893939 | T7: Reduced by 5,000 MMBtu in exchange for 5,000 MMBtu increase in consumption of Biofuel heat energy above
B8: Electric Resistance | C8: 29.66510366 | D8: 24.0205282 | E8: 16.06341741 | F8: 6.216492804 | H8: Electric Resistance | I8: 29.93862935 | J8: 24.9654351 | K8: 14.24820151 | L8: 4.326678992 | N8: Electric Resistance | O8: =I8 -> 29.93862935 | P8: =J8 -> 24.9654351 | Q8: =K8 -> 14.24820151 | R8: =L8 -> 4.326678992
B9: Heat Pump | C9: 2.760122805 | D9: 15.74015978 | E9: 30.43594877 | F9: 41.99862539 | H9: Heat Pump | I9: 4.749400503 | J9: 27.05417668 | K9: 54.20781725 | L9: 75.31902682 | N9: Heat Pump | O9: =I9 -> 4.749400503 | P9: =J9-5-2 -> 20.05417668 | Q9: =K9-5-2 -> 47.20781725 | R9: =L9-5-2 -> 68.31902682 | T9: 5,000 MMBtu of additional weatherization savings is matched with a 2,000 MMBtu reduction in consumption of Heat Pump electricity
B10: Heat Pump Water Heater | C10: 0.3232576258 | D10: 2.387133237 | E10: 8.305234387 | F10: 17.33158194 | H10: Heat Pump Water Heater | I10: 1.317896475 | J10: 8.305234387 | K10: 18.82354021 | L10: 31.23165985 | N10: Heat Pump Water Heater | O10: =I10 -> 1.317896475 | P10: =J10 -> 8.305234387 | Q10: 18.82354021 | R10: 31.23165985
B11: Kerosene | C11: 24.91570316 | D11: 20.09170474 | E11: 15.24284036 | F11: 7.136533739 | H11: Kerosene | I11: 24.39351776 | J11: 17.38131388 | K11: 10.59290374 | L11: 0 | N11: Kerosene | O11: =I11 -> 24.39351776 | P11: 17.38131388 | Q11: 10.59290374 | R11: 0
B12: LPG | C12: 134.3508425 | D12: 108.5150984 | E12: 81.212262 | F12: 30.68460848 | H12: LPG | I12: 132.7345544 | J12: 102.0748118 | K12: 72.08645056 | L12: 25.4876205 | N12: LPG | O12: =I12 -> 132.7345544 | P12: 102.0748118 | Q12: 72.08645056 | R12: 25.4876205
B13: Natural Gas | C13: 116.5716731 | D13: 151.2845689 | E13: 195.1232761 | F13: 288.7685238 | H13: Natural Gas | I13: 106.7993464 | J13: 87.37902286 | K13: 48.2897161 | L13: 6.93760597 | N13: Natural Gas | O13: =I13-2.5 -> 104.2993464 | P13: =J13-2.5 -> 84.87902286 | Q13: =K13-2.5 -> 45.7897161 | R13: =L13-2.5 -> 4.43760597 | T13: 2,500 MMBtu of additional weatherization savings is matched below with a 2,250 MMBtu reduction in consumption of Wood heat energy
B14: Oil | C14: 253.7075043 | D14: 201.4889648 | E14: 133.9529869 | F14: 39.58662618 | H14: Oil | I14: 248.3861865 | J14: 178.5625393 | K14: 110.578974 | L14: 0 | N14: Oil | O14: =I14 -> 248.3861865 | P14: =J14 -> 178.5625393 | Q14: =K14 -> 110.578974 | R14: =L14 -> 0
B15: Wood pellets | C15: 16.83426251 | D15: 21.90692064 | E15: 26.55685726 | F15: 33.37013337 | H15: Wood pellets | I15: 19.49492143 | J15: 35.43400899 | K15: 47.04641754 | L15: 56.42088869 | N15: Wood pellets | O15: =I15-2.25 -> 17.24492143 | P15: =J15-2.25 -> 33.18400899 | Q15: =K15-2.25 -> 44.79641754 | R15: =L15-2.25 -> 54.17088869 | T15: Reduced 2,250 MMBtu in exchange for the above 2,500 MMBtu of additional weatherization savings for Residences using Natural Gas
B16: Total | C16: =SUM(C6:C15) -> 753.6378557 | D16: =SUM(D6:D15) -> 706.9892937 | E16: =SUM(E6:E15) -> 658.4260519 | F16: =SUM(F6:F15) -> 604.5912242 | H16: Total | I16: =SUM(I6:I15) -> 744.9844977 | J16: =SUM(J6:J15) -> 659.2466289 | K16: =SUM(K6:K15) -> 555.5555289 | L16: =SUM(L6:L15) -> 395.3192104 | N16: Total | O16: =SUM(O6:O15) -> 739.2844977 | P16: =SUM(P6:P15) -> 646.5466289 | Q16: =SUM(Q6:Q15) -> 542.8555289 | R16: =SUM(R6:R15) -> 382.6192104
H18: Interpreting the scale of residential weatherization, pre-adjustment | N18: Interpreting the scale of residential weatherization, post-adjustment
I20: ='2.Heat Targets'!B23 -> 2015 | J20: ='2.Heat Targets'!C23 -> 2025 | K20: ='2.Heat Targets'!D23 -> 2035 | L20: ='2.Heat Targets'!E23 -> 2050 | O20: 2015 | P20: 2025 | Q20: 2035 | R20: 2050
I21: ='2.Heat Targets'!B24 -> 76738.77519 | J21: ='2.Heat Targets'!C24 -> 64338.68217 | K21: ='2.Heat Targets'!D24 -> 53160.49612 | L21: ='2.Heat Targets'!E24 -> 36280.07752 | O21: =C16*1000 -> 753637.8557 | P21: =D16*1000 -> 706989.2937 | Q21: =E16*1000 -> 658426.0519 | R21: =F16*1000 -> 604591.2242 | T21: ='2.Heat Targets'!G24 -> Total heat energy consumed by Residential buildings in the Reference Scenario, in millions of Btu (taken from Table 1)
I22: ='2.Heat Targets'!B25 -> 612.4620155 | J22: ='2.Heat Targets'!C25 -> 3282.555039 | K22: ='2.Heat Targets'!D25 -> 6462.530233 | L22: ='2.Heat Targets'!E25 -> 6922.631008 | O22: =(C9+C10)*(2.4-1)*1000 -> 4316.732603 | P22: =(D9+D10)*(2.6-1)*1000 -> 29003.66883 | Q22: =(E9+E10)*(2.8-1)*1000 -> 69734.12968 | R22: =(F9+F10)*(3-1)*1000 -> 118660.4147 | T22: ='2.Heat Targets'!G25 -> This is an adjustment that must be made to account for the superior efficiency of heat pump technology compared to combustion based heating technology. It assumes moderate increases in equipment efficiency
I23: ='2.Heat Targets'!B26 -> 74762.60465 | J23: ='2.Heat Targets'!C26 -> 61035.00775 | K23: ='2.Heat Targets'!D26 -> 46160.93023 | L23: ='2.Heat Targets'!E26 -> 26007.00775 | O23: =O16*1000 -> 739284.4977 | P23: =P16*1000 -> 646546.6289 | Q23: =Q16*1000 -> 542855.5289 | R23: =R16*1000 -> 382619.2104 | T23: ='2.Heat Targets'!G26 -> Total heat energy consumed by Residential buildings in 90x50 Scenario, in millions of Btu (taken from Table 2)
I24: ='2.Heat Targets'!B27 -> 823.655814 | J24: ='2.Heat Targets'!C27 -> 3765.283721 | K24: ='2.Heat Targets'!D27 -> 8553.348837 | L24: ='2.Heat Targets'!E27 -> 11947.53488 | O24: =(O9+O10)*(2.4-1)*1000 -> 8494.215768 | P24: =(P9+P10)*(2.6-1)*1000 -> 45375.05771 | Q24: =(Q9+Q10)*(2.8-1)*1000 -> 118856.4434 | R24: =(R9+R10)*(3-1)*1000 -> 199101.3733 | T24: ='2.Heat Targets'!G27 -> This is an adjustment that must be made to account for the superior efficiency of heat pump technology compared to combustion based heating technology. It assumes moderate increases in equipment efficiency
I25: ='2.Heat Targets'!B28 -> 1764.976744 | J25: ='2.Heat Targets'!C28 -> 2820.945736 | K25: ='2.Heat Targets'!D28 -> 4908.747287 | L25: ='2.Heat Targets'!E28 -> 5248.165891 | O25: =O21+O22-O23-O24 -> 10175.87482 | P25: =P21+P22-P23-P24 -> 44071.27585 | Q25: =Q21+Q22-Q23-Q24 -> 66448.20917 | R25: =R21+R22-R23-R24 -> 141531.0551 | T25: ='2.Heat Targets'!G28 -> Total heat energy saved through weatherization of Residential buildings, in millions of Btu
I26: ='2.Heat Targets'!B29 -> 32.055 | J26: ='2.Heat Targets'!C29 -> 0 | K26: ='2.Heat Targets'!D29 -> 0 | L26: ='2.Heat Targets'!E29 -> 0 | O26: ='2.Heat Targets'!B29 -> 32.055 | T26: ='2.Heat Targets'!G29 -> Enter an estimate of the typical amount of heat energy that will be saved through future Residential weatherization investments, in millions of Btu. Historically, savings of 20 to 30 per cent are typical.
I27: ='2.Heat Targets'!B30 -> 55.06088736 | J27: ='2.Heat Targets'!C30 -> 88.00329859 | K27: ='2.Heat Targets'!D30 -> 153.1351517 | L27: ='2.Heat Targets'!E30 -> 163.7237839 | O27: =O25/$O$26 -> 317.4504701 | P27: =P25/$O$26 -> 1374.864322 | Q27: =Q25/$O$26 -> 2072.943665 | R27: =R25/$O$26 -> 4415.256749 | T27: ='2.Heat Targets'!G30 -> This formula computes a projection of the number of area residences weatherized, based on the value inputed above. It will be higher or lower depending on the assumption of "typical" weatherization savings.
I28: ='2.Heat Targets'!B31 -> 406 | J28: ='2.Heat Targets'!C31 -> 430.36 | K28: ='2.Heat Targets'!D31 -> 456.1816 | L28: ='2.Heat Targets'!E31 -> 483.552496 | O28: ='2.Heat Targets'!B31 -> 406 | P28: ='2.Heat Targets'!C31 -> 430.36 | Q28: ='2.Heat Targets'!D31 -> 456.1816 | R28: ='2.Heat Targets'!E31 -> 483.552496 | T28: ='2.Heat Targets'!G31 -> Enter a projection of the number of future residences in the area by each year.
I29: ='2.Heat Targets'!B32 -> 0.1356179492 | J29: ='2.Heat Targets'!C32 -> 0.204487635 | K29: ='2.Heat Targets'!D32 -> 0.3356890144 | L29: ='2.Heat Targets'!E32 -> 0.338585335 | O29: =O27/O28 -> 0.7818977096 | P29: =P27/P28 -> 3.19468427 | Q29: =Q27/Q28 -> 4.544119414 | R29: =R27/R28 -> 9.13087366 | T29: ='2.Heat Targets'!G32 -> This formula computes the estimated percentage of area residences weatherized by each year based on the values inputed above and on the "1.Current Heat" tab. If Planners would like to increase the percentage of weatherized residences, adjustments can be made to Table 2 using the exchange rates above. See the "Exchange Example" tab for an example of how to make such adjustments.
H31: Interpreting the scale of Residential fuel-switching, pre-adjustment | N31: Interpreting the scale of Residential fuel-switching, post-adjustment
I33: ='2.Heat Targets'!B53 -> 2015 | J33: ='2.Heat Targets'!C53 -> 2025 | K33: ='2.Heat Targets'!D53 -> 2035 | L33: ='2.Heat Targets'!E53 -> 2050 | O33: 2015 | P33: 2025 | Q33: 2035 | R33: 2050
I34: ='2.Heat Targets'!B54 -> 128.22 | J34: ='2.Heat Targets'!C54 -> 121.6651489 | K34: ='2.Heat Targets'!D54 -> 117.4594886 | L34: ='2.Heat Targets'!E54 -> 117.3666471 | O34: ='1.Current Heat'!B10 -> 128.22 | P34: =P29*($O$34-$O$26)+(1-P29)*$O$34 -> 25.81439573 | Q34: =Q29*($O$34-$O$26)+(1-Q29)*$O$34 -> -17.4417478 | R34: =R29*($O$34-$O$26)+(1-R29)*$O$34 -> -164.4701552 | T34: ='2.Heat Targets'!G54 -> This is a projection of the average area residential heating load, in millions of Btu, computed based on values inputted above and in the "1.Current Heat" tab
I35: ='2.Heat Targets'!B55 -> 27575.87597 | J35: ='2.Heat Targets'!C55 -> 20018.15504 | K35: ='2.Heat Targets'!D55 -> 12731.96899 | L35: ='2.Heat Targets'!E55 -> 1915.829457 | O35: =(O6+O11+O14)*1000 -> 278943.3118 | P35: =(P6+P11+P14)*1000 -> 212824.6943 | Q35: =(Q6+Q11+Q14)*1000 -> 149540.7976 | R35: =(R6+R11+R14)*1000 -> 49256.33567 | T35: ='2.Heat Targets'!G55 -> Total biofuel-blended heat energy consumed by Residences in 90x50 Scenario, in millions of Btu (taken from Table 2)
I36: ='2.Heat Targets'!B56 -> 0.007658643326 | J36: ='2.Heat Targets'!C56 -> 0.03767897513 | K36: ='2.Heat Targets'!D56 -> 0.0971563981 | L36: ='2.Heat Targets'!E56 -> 1 | O36: =O6*1000/O35 -> 0.02209627294 | P36: =P6*1000/P35 -> 0.07931805658 | Q36: =Q6*1000/Q35 -> 0.1897068914 | R36: =R6*1000/R35 -> 1 | T36: ='2.Heat Targets'!G56 -> This formula computes the biofuel share of biofuel-blended heat consumed by Residences in the 90x50 scenario.
I37: ='2.Heat Targets'!B57 -> 215.0668848 | J37: ='2.Heat Targets'!C57 -> 164.5348337 | K37: ='2.Heat Targets'!D57 -> 108.3945549 | L37: ='2.Heat Targets'!E57 -> 16.32345734 | O37: =O35/O34 -> 2175.505473 | P37: =P35/P34 -> 8244.418988 | Q37: =Q35/Q34 -> -8573.727776 | R37: =R35/R34 -> -299.4849468 | T37: ='2.Heat Targets'!G57 -> This formula computes an estimate the number of residences using biofuel-blended heat energy in the 90x50 scenario based on values inputted in the "1.Current Heat" tab.
I38: ='2.Heat Targets'!B58 -> 0.5297213911 | J38: ='2.Heat Targets'!C58 -> 0.3823190671 | K38: ='2.Heat Targets'!D58 -> 0.237612729 | L38: ='2.Heat Targets'!E58 -> 0.03375736343 | O38: =O37/O28 -> 5.358387866 | P38: =P37/P28 -> 19.15702897 | Q38: =Q37/Q28 -> -18.79454975 | R38: =R37/R28 -> -0.6193431929 | T38: ='2.Heat Targets'!G58 -> This formula computes the estimated share of area residences using biofuel blends in the 90x50 scenario based on values inputted above and in the "1.Current Heat" tab. If Planners find that this percentage is too high or low for the area, adjustments can be made to Table 2 using the exchange rates above. See the "Heat Exchange" tab for an example of how to make such adjustments.
I39: ='2.Heat Targets'!B59 -> 32810.46512 | J39: ='2.Heat Targets'!C59 -> 27500.44961 | K39: ='2.Heat Targets'!D59 -> 21798.21705 | L39: ='2.Heat Targets'!E59 -> 15779.1938 | O39: =(O7+O15)*1000 -> 187301.3588 | P39: =(P7+P15)*1000 -> 193443.2537 | Q39: =(Q7+Q15)*1000 -> 195159.0057 | R39: =(R7+R15)*1000 -> 199560.2826 | T39: ='2.Heat Targets'!G59 -> Total wood heat energy consumed by area residences in 90x50 Scenario, in millions of Btu (taken from Table 2)
I40: ='2.Heat Targets'!B60 -> 255.8919444 | J40: ='2.Heat Targets'!C60 -> 226.0339125 | K40: ='2.Heat Targets'!D60 -> 185.5807249 | L40: ='2.Heat Targets'!E60 -> 134.4435936 | O40: =O39/O34 -> 1460.781148 | P40: =P39/P34 -> 7493.619285 | Q40: =Q39/Q34 -> -11189.1886 | R40: =R39/R34 -> -1213.352553 | T40: ='2.Heat Targets'!G60 -> This formula computes an estimate of the number of area residences using Wood heat energy in the 90x50 scenario based on values inputted above and in the "1.Current Heat" tab.
I41: ='2.Heat Targets'!B61 -> 0.6302757252 | J41: ='2.Heat Targets'!C61 -> 0.5252205421 | K41: ='2.Heat Targets'!D61 -> 0.4068132624 | L41: ='2.Heat Targets'!E61 -> 0.2780330878 | O41: =O40/O28 -> 3.597983123 | P41: =P40/P28 -> 17.41244373 | Q41: =Q40/Q28 -> -24.52792616 | R41: =R40/R28 -> -2.509246799 | T41: ='2.Heat Targets'!G61 -> This formula computes the estimated share of area residences using Wood heat in the 90x50 scenario, based on values inputted in the "1.Current Heat" tab.
I42: ='2.Heat Targets'!B62 -> 588.3255814 | J42: ='2.Heat Targets'!C62 -> 2353.302326 | K42: ='2.Heat Targets'!D62 -> 4751.860465 | L42: ='2.Heat Targets'!E62 -> 5973.767442 | O42: =(O9+O10)*1000 -> 6067.296977 | P42: =(P9+P10)*1000 -> 28359.41107 | Q42: =(Q9+Q10)*1000 -> 66031.35747 | R42: =(R9+R10)*1000 -> 99550.68667 | T42: ='2.Heat Targets'!G62 -> Total heat pump energy consumed by area residences in 90x50 Scenario, in millions of Btu (taken from Table 2)
I43: ='2.Heat Targets'!B63 -> 15.7316821 | J43: ='2.Heat Targets'!C63 -> 67.05383427 | K43: ='2.Heat Targets'!D63 -> 141.5935981 | L43: ='2.Heat Targets'!E63 -> 179.641198 | O43: =O42/((0.7*O34)/2.4) -> 162.2380367 | P43: =P42/((0.75*P34)/2.6) -> 3808.44185 | Q43: =Q42/((0.8*Q34)/2.8) -> -13250.37799 | R43: =R42/((0.85*R34)/3) -> -2136.286455 | T43: ='2.Heat Targets'!G63 -> This formula computes an estimate the number of area residences using Heat Pumps in the 90x50 scenario based on values inputted in the "1.Current Heat" tab. It assumes moderate increases in equipment efficiency
I44: ='2.Heat Targets'!B64 -> 0.03874798547 | J44: ='2.Heat Targets'!C64 -> 0.155808705 | K44: ='2.Heat Targets'!D64 -> 0.3103886656 | L44: ='2.Heat Targets'!E64 -> 0.3715029898 | O44: =O43/O28 -> 0.3996010756 | P44: =P43/P28 -> 8.849432684 | Q44: =Q43/Q28 -> -29.04627891 | R44: =R43/R28 -> -4.417899758 | T44: ='2.Heat Targets'!G64 -> This formula computes the estimated share of area residences using Heat Pumps in the 90x50 scenario based on values inputted above and in the "1.Current Heat" tab.
I45: ='2.Heat Targets'!B65 -> 10665.28682 | J45: ='2.Heat Targets'!C65 -> 8342.155039 | K45: ='2.Heat Targets'!D65 -> 5340.186047 | L45: ='2.Heat Targets'!E65 -> 1870.573643 | O45: =(O12+O13)*1000 -> 237033.9007 | P45: =(P12+P13)*1000 -> 186953.8347 | Q45: =(Q12+Q13)*1000 -> 117876.1667 | R45: =(R12+R13)*1000 -> 29925.22647 | T45: ='2.Heat Targets'!G65 -> Total fossil heat energy consumed by Residences in 90x50 Scenario, in millions of Btu (taken from Table 2)
I46: ='2.Heat Targets'!B66 -> 83.17958838 | J46: ='2.Heat Targets'!C66 -> 68.56651323 | K46: ='2.Heat Targets'!D66 -> 45.46406687 | L46: ='2.Heat Targets'!E66 -> 15.93786386 | O46: =O45/O34 -> 1848.649982 | P46: =P45/P34 -> 7242.231685 | Q46: =Q45/Q34 -> -6758.27721 | R46: =R45/R34 -> -181.9492809 | T46: ='2.Heat Targets'!G66 -> This formula computes the estimates number of area residences using fossil heat in the 90x50 scenario based on values inputted in the "1.Current Heat" tab.
I47: ='2.Heat Targets'!B67 -> 0.2048758334 | J47: ='2.Heat Targets'!C67 -> 0.1593236203 | K47: ='2.Heat Targets'!D67 -> 0.099662211 | L47: ='2.Heat Targets'!E67 -> 0.0329599454 | O47: =O46/O28 -> 4.55332508 | P47: =P46/P28 -> 16.82831045 | Q47: =Q46/Q28 -> -14.81488339 | R47: =R46/R28 -> -0.3762761695 | T47: ='2.Heat Targets'!G67 -> This formula computes the estimated share of area residences using fossil heat in the 90x50 scenario based on values inputted above and in the "1.Current Heat" tab.

Sheet Population
A1: Municipality | B1: Regional Planning Commission | C1: 2014 Population | D1: Pop Share of State | E1: Pop Share of Region | G1: Regional Planning Commission | H1: Pop Share of State
A2: Addison | B2: Addison County Regional Planning Commission | C2: 1415 | D2: =C2/SUM($C$2:$C$256) -> 0.002259091446 | E2: =town_population[[#This Row],[Pop Share of State]]/(INDEX(regional_population[Pop Share of State],MATCH(town_population[[#This Row],[Regional Planning Commission]],regional_population[Regional Planning Commission],0))) -> 0.03911000553 | G2: Addison County Regional Planning Commission | H2: =SUMIF(town_population[Regional Planning Commission],G2,town_population[Pop Share of State]) -> 0.05776249365
A3: Albany | B3: Northeastern Vermont Development Association | C3: 893 | D3: 0.001425702234 | E3: =town_population[[#This Row],[Pop Share of State]]/(INDEX(regional_population[Pop Share of State],MATCH(town_population[[#This Row],[Regional Planning Commission]],regional_population[Regional Planning Commission],0))) -> 0.01384496124 | G3: Bennington County Regional Commission | H3: =SUMIF(town_population[Regional Planning Commission],G3,town_population[Pop Share of State]) -> 0.05621545506
A4: Alburgh | B4: Northwest Regional Planning Commission | C4: 1623 | D4: 0.002591169906 | E4: =town_population[[#This Row],[Pop Share of State]]/(INDEX(regional_population[Pop Share of State],MATCH(town_population[[#This Row],[Regional Planning Commission]],regional_population[Regional Planning Commission],0))) -> 0.02939951091 | G4: Central Vermont Regional Planning Commission | H4: =SUMIF(town_population[Regional Planning Commission],G4,town_population[Pop Share of State]) -> 0.1035270564
A5: Andover | B5: Southern Windsor County Regional Planning Commission | C5: 425 | D5: 0.0006785256994 | E5: =town_population[[#This Row],[Pop Share of State]]/(INDEX(regional_population[Pop Share of State],MATCH(town_population[[#This Row],[Regional Planning Commission]],regional_population[Regional Planning Commission],0))) -> 0.01702997275 | G5: Chittenden County Regional Planning Commission | H5: =SUMIF(town_population[Regional Planning Commission],G5,town_population[Pop Share of State]) -> 0.2533471274
A6: Arlington | B6: Bennington County Regional Commission | C6: 2354 | D6: 0.003758234109 | E6: =town_population[[#This Row],[Pop Share of State]]/(INDEX(regional_population[Pop Share of State],MATCH(town_population[[#This Row],[Regional Planning Commission]],regional_population[Regional Planning Commission],0))) -> 0.06685410809 | G6: Lamoille County Planning Commission | H6: =SUMIF(town_population[Regional Planning Commission],G6,town_population[Pop Share of State]) -> 0.03966262106
A7: Athens | B7: Windham Regional Commission | C7: 402 | D7: 0.000641805485 | E7: =town_population[[#This Row],[Pop Share of State]]/(INDEX(regional_population[Pop Share of State],MATCH(town_population[[#This Row],[Regional Planning Commission]],regional_population[Regional Planning Commission],0))) -> 0.008705821206 | G7: Northeastern Vermont Development Association | H7: =SUMIF(town_population[Regional Planning Commission],G7,town_population[Pop Share of State]) -> 0.1029762532
A8: Averill | B8: Northeastern Vermont Development Association | C8: 19 | D8: 3.033409009e-05 | E8: =town_population[[#This Row],[Pop Share of State]]/(INDEX(regional_population[Pop Share of State],MATCH(town_population[[#This Row],[Regional Planning Commission]],regional_population[Regional Planning Commission],0))) -> 0.0002945736434 | G8: Northwest Regional Planning Commission | H8: =SUMIF(town_population[Regional Planning Commission],G8,town_population[Pop Share of State]) -> 0.08813649702
A9: Averys Gore | B9: Northeastern Vermont Development Association | C9: 0 | D9: 0 | E9: =town_population[[#This Row],[Pop Share of State]]/(INDEX(regional_population[Pop Share of State],MATCH(town_population[[#This Row],[Regional Planning Commission]],regional_population[Regional Planning Commission],0))) -> 0 | G9: Rutland Regional Planning Commission | H9: =SUMIF(town_population[Regional Planning Commission],G9,town_population[Pop Share of State]) -> 0.09618620661
A10: Bakersfield | B10: Northwest Regional Planning Commission | C10: 1551 | D10: 0.00247621967 | E10: =town_population[[#This Row],[Pop Share of State]]/(INDEX(regional_population[Pop Share of State],MATCH(town_population[[#This Row],[Regional Planning Commission]],regional_population[Regional Planning Commission],0))) -> 0.02809528122 | G10: Southern Windsor County Regional Planning Commission | H10: =SUMIF(town_population[Regional Planning Commission],G10,town_population[Pop Share of State]) -> 0.03984302907
A11: Baltimore | B11: Southern Windsor County Regional Planning Commission | C11: 234 | D11: 0.0003735882674 | E11: =town_population[[#This Row],[Pop Share of State]]/(INDEX(regional_population[Pop Share of State],MATCH(town_population[[#This Row],[Regional Planning Commission]],regional_population[Regional Planning Commission],0))) -> 0.009376502645 | G11: Two Rivers-Ottauquechee Regional Commission | H11: =SUMIF(town_population[Regional Planning Commission],G11,town_population[Pop Share of State]) -> 0.08862184246
A12: Barnard | B12: Two Rivers-Ottauquechee Regional Commission | C12: 899 | D12: 0.001435281421 | E12: =town_population[[#This Row],[Pop Share of State]]/(INDEX(regional_population[Pop Share of State],MATCH(town_population[[#This Row],[Regional Planning Commission]],regional_population[Regional Planning Commission],0))) -> 0.01619557189 | G12: Windham Regional Commission | H12: =SUMIF(town_population[Regional Planning Commission],G12,town_population[Pop Share of State]) -> 0.0737214181
A13: Barnet | B13: Northeastern Vermont Development Association | C13: 1648 | D13: 0.002631083182 | E13: =town_population[[#This Row],[Pop Share of State]]/(INDEX(regional_population[Pop Share of State],MATCH(town_population[[#This Row],[Regional Planning Commission]],regional_population[Regional Planning Commission],0))) -> 0.0255503876
A14: Barre | B14: Central Vermont Regional Planning Commission | C14: 7908 | D14: 0.0126253676 | E14: =town_population[[#This Row],[Pop Share of State]]/(INDEX(regional_population[Pop Share of State],MATCH(town_population[[#This Row],[Regional Planning Commission]],regional_population[Regional Planning Commission],0))) -> 0.1219523479
A15: Barre City | B15: Central Vermont Regional Planning Commission | C15: 8955 | D15: 0.01429693562 | E15: =town_population[[#This Row],[Pop Share of State]]/(INDEX(regional_population[Pop Share of State],MATCH(town_population[[#This Row],[Regional Planning Commission]],regional_population[Regional Planning Commission],0))) -> 0.1380985427
A16: Barton | B16: Northeastern Vermont Development Association | C16: 2766 | D16: 0.004416004905 | E16: =town_population[[#This Row],[Pop Share of State]]/(INDEX(regional_population[Pop Share of State],MATCH(town_population[[#This Row],[Regional Planning Commission]],regional_population[Regional Planning Commission],0))) -> 0.04288372093
A17: Belvidere | B17: Lamoille County Planning Commission | C17: 364 | D17: 0.0005811373049 | E17: =town_population[[#This Row],[Pop Share of State]]/(INDEX(regional_population[Pop Share of State],MATCH(town_population[[#This Row],[Regional Planning Commission]],regional_population[Regional Planning Commission],0))) -> 0.01465201465
A18: Bennington | B18: Bennington County Regional Commission | C18: 15575 | D18: 0.02486597122 | E18: =town_population[[#This Row],[Pop Share of State]]/(INDEX(regional_population[Pop Share of State],MATCH(town_population[[#This Row],[Regional Planning Commission]],regional_population[Regional Planning Commission],0))) -> 0.4423333617
A19: Benson | B19: Rutland Regional Planning Commission | C19: 1065 | D19: 0.001700305576 | E19: =town_population[[#This Row],[Pop Share of State]]/(INDEX(regional_population[Pop Share of State],MATCH(town_population[[#This Row],[Regional Planning Commission]],regional_population[Regional Planning Commission],0))) -> 0.01767722874
A20: Berkshire | B20: Northwest Regional Planning Commission | C20: 1760 | D20: 0.002809894661 | E20: =town_population[[#This Row],[Pop Share of State]]/(INDEX(regional_population[Pop Share of State],MATCH(town_population[[#This Row],[Regional Planning Commission]],regional_population[Regional Planning Commission],0))) -> 0.03188117018
A21: Berlin | B21: Central Vermont Regional Planning Commission | C21: 2869 | D21: 0.004580447603 | E21: =town_population[[#This Row],[Pop Share of State]]/(INDEX(regional_population[Pop Share of State],MATCH(town_population[[#This Row],[Regional Planning Commission]],regional_population[Regional Planning Commission],0))) -> 0.04424396638
A22: Bethel | B22: Two Rivers-Ottauquechee Regional Commission | C22: 1919 | D22: 0.003063743099 | E22: =town_population[[#This Row],[Pop Share of State]]/(INDEX(regional_population[Pop Share of State],MATCH(town_population[[#This Row],[Regional Planning Commission]],regional_population[Regional Planning Commission],0))) -> 0.03457097047
A23: Bloomfield | B23: Northeastern Vermont Development Association | C23: 207 | D23: 0.0003304819289 | E23: =town_population[[#This Row],[Pop Share of State]]/(INDEX(regional_population[Pop Share of State],MATCH(town_population[[#This Row],[Regional Planning Commission]],regional_population[Regional Planning Commission],0))) -> 0.003209302326
A24: Bolton | B24: Chittenden County Regional Planning Commission | C24: 1247 | D24: 0.001990874228 | E24: =town_population[[#This Row],[Pop Share of State]]/(INDEX(regional_population[Pop Share of State],MATCH(town_population[[#This Row],[Regional Planning Commission]],regional_population[Regional Planning Commission],0))) -> 0.007858286175
A25: Bradford | B25: Two Rivers-Ottauquechee Regional Commission | C25: 2776 | D25: 0.004431970215 | E25: =town_population[[#This Row],[Pop Share of State]]/(INDEX(regional_population[Pop Share of State],MATCH(town_population[[#This Row],[Regional Planning Commission]],regional_population[Regional Planning Commission],0))) -> 0.0500099083
A26: Braintree | B26: Two Rivers-Ottauquechee Regional Commission | C26: 1238 | D26: 0.001976505449 | E26: =town_population[[#This Row],[Pop Share of State]]/(INDEX(regional_population[Pop Share of State],MATCH(town_population[[#This Row],[Regional Planning Commission]],regional_population[Regional Planning Commission],0))) -> 0.02230268965
A27: Brandon | B27: Rutland Regional Planning Commission | C27: 3906 | D27: 0.00623605031 | E27: =town_population[[#This Row],[Pop Share of State]]/(INDEX(regional_population[Pop Share of State],MATCH(town_population[[#This Row],[Regional Planning Commission]],regional_population[Regional Planning Commission],0))) -> 0.06483310372
A28: Brattleboro | B28: Windham Regional Commission | C28: 11876 | D28: 0.01896040284 | E28: =town_population[[#This Row],[Pop Share of State]]/(INDEX(regional_population[Pop Share of State],MATCH(town_population[[#This Row],[Regional Planning Commission]],regional_population[Regional Planning Commission],0))) -> 0.2571898822
A29: Bridgewater | B29: Two Rivers-Ottauquechee Regional Commission | C29: 710 | D29: 0.001133537051 | E29: =town_population[[#This Row],[Pop Share of State]]/(INDEX(regional_population[Pop Share of State],MATCH(town_population[[#This Row],[Regional Planning Commission]],regional_population[Regional Planning Commission],0))) -> 0.01279071862
A30: Bridport | B30: Addison County Regional Planning Commission | C30: 1180 | D30: 0.001883906648 | E30: =town_population[[#This Row],[Pop Share of State]]/(INDEX(regional_population[Pop Share of State],MATCH(town_population[[#This Row],[Regional Planning Commission]],regional_population[Regional Planning Commission],0))) -> 0.03261470426
A31: Brighton | B31: Northeastern Vermont Development Association | C31: 939 | D31: 0.001499142663 | E31: =town_population[[#This Row],[Pop Share of State]]/(INDEX(regional_population[Pop Share of State],MATCH(town_population[[#This Row],[Regional Planning Commission]],regional_population[Regional Planning Commission],0))) -> 0.01455813953
A32: Bristol | B32: Addison County Regional Planning Commission | C32: 3896 | D32: 0.006220084999 | E32: =town_population[[#This Row],[Pop Share of State]]/(INDEX(regional_population[Pop Share of State],MATCH(town_population[[#This Row],[Regional Planning Commission]],regional_population[Regional Planning Commission],0))) -> 0.1076838032
A33: Brookfield | B33: Two Rivers-Ottauquechee Regional Commission | C33: 1297 | D33: 0.002070700781 | E33: =town_population[[#This Row],[Pop Share of State]]/(INDEX(regional_population[Pop Share of State],MATCH(town_population[[#This Row],[Regional Planning Commission]],regional_population[Regional Planning Commission],0))) -> 0.02336558036
A34: Brookline | B34: Windham Regional Commission | C34: 567 | D34: 0.0009052331095 | E34: =town_population[[#This Row],[Pop Share of State]]/(INDEX(regional_population[Pop Share of State],MATCH(town_population[[#This Row],[Regional Planning Commission]],regional_population[Regional Planning Commission],0))) -> 0.01227910603
A35: Brownington | B35: Northeastern Vermont Development Association | C35: 973 | D35: 0.001553424719 | E35: =town_population[[#This Row],[Pop Share of State]]/(INDEX(regional_population[Pop Share of State],MATCH(town_population[[#This Row],[Regional Planning Commission]],regional_population[Regional Planning Commission],0))) -> 0.01508527132
A36: Brunswick | B36: Northeastern Vermont Development Association | C36: 84 | D36: 0.0001341086088 | E36: =town_population[[#This Row],[Pop Share of State]]/(INDEX(regional_population[Pop Share of State],MATCH(town_population[[#This Row],[Regional Planning Commission]],regional_population[Regional Planning Commission],0))) -> 0.001302325581
A37: Buel's Gore | B37: Chittenden County Regional Planning Commission | C37: 43 | D37: 6.865083546e-05 | E37: =town_population[[#This Row],[Pop Share of State]]/(INDEX(regional_population[Pop Share of State],MATCH(town_population[[#This Row],[Regional Planning Commission]],regional_population[Regional Planning Commission],0))) -> 0.0002709753854
A38: Burke | B38: Northeastern Vermont Development Association | C38: 1711 | D38: 0.002731664639 | E38: =town_population[[#This Row],[Pop Share of State]]/(INDEX(regional_population[Pop Share of State],MATCH(town_population[[#This Row],[Regional Planning Commission]],regional_population[Regional Planning Commission],0))) -> 0.02652713178
A39: Burlington | B39: Chittenden County Regional Planning Commission | C39: 42342 | D39: 0.06760031803 | E39: =town_population[[#This Row],[Pop Share of State]]/(INDEX(regional_population[Pop Share of State],MATCH(town_population[[#This Row],[Regional Planning Commission]],regional_population[Regional Planning Commission],0))) -> 0.2668288318
A40: Cabot | B40: Central Vermont Regional Planning Commission | C40: 1393 | D40: 0.002223967763 | E40: =town_population[[#This Row],[Pop Share of State]]/(INDEX(regional_population[Pop Share of State],MATCH(town_population[[#This Row],[Regional Planning Commission]],regional_population[Regional Planning Commission],0))) -> 0.02148199553
A41: Calais | B41: Central Vermont Regional Planning Commission | C41: 1556 | D41: 0.002484202325 | E41: =town_population[[#This Row],[Pop Share of State]]/(INDEX(regional_population[Pop Share of State],MATCH(town_population[[#This Row],[Regional Planning Commission]],regional_population[Regional Planning Commission],0))) -> 0.02399568201
A42: Cambridge | B42: Lamoille County Planning Commission | C42: 3713 | D42: 0.005927919816 | E42: =town_population[[#This Row],[Pop Share of State]]/(INDEX(regional_population[Pop Share of State],MATCH(town_population[[#This Row],[Regional Planning Commission]],regional_population[Regional Planning Commission],0))) -> 0.1494586
A43: Canaan | B43: Northeastern Vermont Development Association | C43: 1164 | D43: 0.001858362151 | E43: =town_population[[#This Row],[Pop Share of State]]/(INDEX(regional_population[Pop Share of State],MATCH(town_population[[#This Row],[Regional Planning Commission]],regional_population[Regional Planning Commission],0))) -> 0.01804651163
A44: Castleton | B44: Rutland Regional Planning Commission | C44: 4669 | D44: 0.007454203507 | E44: =town_population[[#This Row],[Pop Share of State]]/(INDEX(regional_population[Pop Share of State],MATCH(town_population[[#This Row],[Regional Planning Commission]],regional_population[Regional Planning Commission],0))) -> 0.07749763474
A45: Cavendish | B45: Southern Windsor County Regional Planning Commission | C45: 1587 | D45: 0.002533694788 | E45: =town_population[[#This Row],[Pop Share of State]]/(INDEX(regional_population[Pop Share of State],MATCH(town_population[[#This Row],[Regional Planning Commission]],regional_population[Regional Planning Commission],0))) -> 0.06359192178
A46: Charleston | B46: Northeastern Vermont Development Association | C46: 939 | D46: 0.001499142663 | E46: =town_population[[#This Row],[Pop Share of State]]/(INDEX(regional_population[Pop Share of State],MATCH(town_population[[#This Row],[Regional Planning Commission]],regional_population[Regional Planning Commission],0))) -> 0.01455813953
A47: Charlotte | B47: Chittenden County Regional Planning Commission | C47: 3810 | D47: 0.006082783328 | E47: =town_population[[#This Row],[Pop Share of State]]/(INDEX(regional_population[Pop Share of State],MATCH(town_population[[#This Row],[Regional Planning Commission]],regional_population[Regional Planning Commission],0))) -> 0.02400967949
A48: Chelsea | B48: Two Rivers-Ottauquechee Regional Commission | C48: 1430 | D48: 0.002283039412 | E48: =town_population[[#This Row],[Pop Share of State]]/(INDEX(regional_population[Pop Share of State],MATCH(town_population[[#This Row],[Regional Planning Commission]],regional_population[Regional Planning Commission],0))) -> 0.02576158821
A49: Chester | B49: Southern Windsor County Regional Planning Commission | C49: 3128 | D49: 0.004993949147 | E49: =town_population[[#This Row],[Pop Share of State]]/(INDEX(regional_population[Pop Share of State],MATCH(town_population[[#This Row],[Regional Planning Commission]],regional_population[Regional Planning Commission],0))) -> 0.1253405995
A50: Chittenden | B50: Rutland Regional Planning Commission | C50: 1198 | D50: 0.001912644207 | E50: =town_population[[#This Row],[Pop Share of State]]/(INDEX(regional_population[Pop Share of State],MATCH(town_population[[#This Row],[Regional Planning Commission]],regional_population[Regional Planning Commission],0))) -> 0.01988480754
A51: Clarendon | B51: Rutland Regional Planning Commission | C51: 2535 | D51: 0.00404720623 | E51: =town_population[[#This Row],[Pop Share of State]]/(INDEX(regional_population[Pop Share of State],MATCH(town_population[[#This Row],[Regional Planning Commission]],regional_population[Regional Planning Commission],0))) -> 0.04207678391
A52: Colchester | B52: Chittenden County Regional Planning Commission | C52: 17249 | D52: 0.02753856421 | E52: =town_population[[#This Row],[Pop Share of State]]/(INDEX(regional_population[Pop Share of State],MATCH(town_population[[#This Row],[Regional Planning Commission]],regional_population[Regional Planning Commission],0))) -> 0.10869894
A53: Concord | B53: Northeastern Vermont Development Association | C53: 1203 | D53: 0.001920626862 | E53: =town_population[[#This Row],[Pop Share of State]]/(INDEX(regional_population[Pop Share of State],MATCH(town_population[[#This Row],[Regional Planning Commission]],regional_population[Regional Planning Commission],0))) -> 0.01865116279
A54: Corinth | B54: Two Rivers-Ottauquechee Regional Commission | C54: 1302 | D54: 0.002078683437 | E54: =town_population[[#This Row],[Pop Share of State]]/(INDEX(regional_population[Pop Share of State],MATCH(town_population[[#This Row],[Regional Planning Commission]],regional_population[Regional Planning Commission],0))) -> 0.02345565584
A55: Cornwall | B55: Addison County Regional Planning Commission | C55: 1089 | D55: 0.001738622321 | E55: =town_population[[#This Row],[Pop Share of State]]/(INDEX(regional_population[Pop Share of State],MATCH(town_population[[#This Row],[Regional Planning Commission]],regional_population[Regional Planning Commission],0))) -> 0.03009950249
A56: Coventry | B56: Northeastern Vermont Development Association | C56: 1123 | D56: 0.001792904377 | E56: =town_population[[#This Row],[Pop Share of State]]/(INDEX(regional_population[Pop Share of State],MATCH(town_population[[#This Row],[Regional Planning Commission]],regional_population[Regional Planning Commission],0))) -> 0.01741085271
A57: Craftsbury | B57: Northeastern Vermont Development Association | C57: 1238 | D57: 0.001976505449 | E57: =town_population[[#This Row],[Pop Share of State]]/(INDEX(regional_population[Pop Share of State],MATCH(town_population[[#This Row],[Regional Planning Commission]],regional_population[Regional Planning Commission],0))) -> 0.01919379845
A58: Danby | B58: Rutland Regional Planning Commission | C58: 1366 | D58: 0.002180861424 | E58: =town_population[[#This Row],[Pop Share of State]]/(INDEX(regional_population[Pop Share of State],MATCH(town_population[[#This Row],[Regional Planning Commission]],regional_population[Regional Planning Commission],0))) -> 0.02267332813
A59: Danville | B59: Northeastern Vermont Development Association | C59: 2247 | D59: 0.003587405286 | E59: =town_population[[#This Row],[Pop Share of State]]/(INDEX(regional_population[Pop Share of State],MATCH(town_population[[#This Row],[Regional Planning Commission]],regional_population[Regional Planning Commission],0))) -> 0.0348372093
A60: Derby | B60: Northeastern Vermont Development Association | C60: 4561 | D60: 0.007281778152 | E60: =town_population[[#This Row],[Pop Share of State]]/(INDEX(regional_population[Pop Share of State],MATCH(town_population[[#This Row],[Regional Planning Commission]],regional_population[Regional Planning Commission],0))) -> 0.07071317829
A61: Dorset | B61: Bennington County Regional Commission | C61: 2118 | D61: 0.003381452779 | E61: =town_population[[#This Row],[Pop Share of State]]/(INDEX(regional_population[Pop Share of State],MATCH(town_population[[#This Row],[Regional Planning Commission]],regional_population[Regional Planning Commission],0))) -> 0.06015165715
A62: Dover | B62: Windham Regional Commission | C62: 1335 | D62: 0.002131368962 | E62: =town_population[[#This Row],[Pop Share of State]]/(INDEX(regional_population[Pop Share of State],MATCH(town_population[[#This Row],[Regional Planning Commission]],regional_population[Regional Planning Commission],0))) -> 0.02891112266
A63: Dummerston | B63: Windham Regional Commission | C63: 1933 | D63: 0.003086094534 | E63: =town_population[[#This Row],[Pop Share of State]]/(INDEX(regional_population[Pop Share of State],MATCH(town_population[[#This Row],[Regional Planning Commission]],regional_population[Regional Planning Commission],0))) -> 0.04186157311
A64: Duxbury | B64: Central Vermont Regional Planning Commission | C64: 1409 | D64: 0.00224951226 | E64: =town_population[[#This Row],[Pop Share of State]]/(INDEX(regional_population[Pop Share of State],MATCH(town_population[[#This Row],[Regional Planning Commission]],regional_population[Regional Planning Commission],0))) -> 0.02172873776
A65: East Haven | B65: Northeastern Vermont Development Association | C65: 338 | D65: 0.0005396274974 | E65: =town_population[[#This Row],[Pop Share of State]]/(INDEX(regional_population[Pop Share of State],MATCH(town_population[[#This Row],[Regional Planning Commission]],regional_population[Regional Planning Commission],0))) -> 0.005240310078
A66: East Montpelier | B66: Central Vermont Regional Planning Commission | C66: 2601 | D66: =C66/SUM($C$2:$C$256) -> 0.00415257728 | E66: =town_population[[#This Row],[Pop Share of State]]/(INDEX(regional_population[Pop Share of State],MATCH(town_population[[#This Row],[Regional Planning Commission]],regional_population[Regional Planning Commission],0))) -> 0.040111034
A67: Eden | B67: Lamoille County Planning Commission | C67: 1353 | D67: 0.002160106521 | E67: =town_population[[#This Row],[Pop Share of State]]/(INDEX(regional_population[Pop Share of State],MATCH(town_population[[#This Row],[Regional Planning Commission]],regional_population[Regional Planning Commission],0))) -> 0.05446202149
A68: Elmore | B68: Lamoille County Planning Commission | C68: 946 | D68: 0.00151031838 | E68: =town_population[[#This Row],[Pop Share of State]]/(INDEX(regional_population[Pop Share of State],MATCH(town_population[[#This Row],[Regional Planning Commission]],regional_population[Regional Planning Commission],0))) -> 0.03807913698
A69: Enosburg Falls | B69: Northwest Regional Planning Commission | C69: 2771 | D69: 0.00442398756 | E69: =town_population[[#This Row],[Pop Share of State]]/(INDEX(regional_population[Pop Share of State],MATCH(town_population[[#This Row],[Regional Planning Commission]],regional_population[Regional Planning Commission],0))) -> 0.05019472874
A70: Essex | B70: Chittenden County Regional Planning Commission | C70: 20172 | D70: 0.03220522449 | E70: =town_population[[#This Row],[Pop Share of State]]/(INDEX(regional_population[Pop Share of State],MATCH(town_population[[#This Row],[Regional Planning Commission]],regional_population[Regional Planning Commission],0))) -> 0.1271189645
A71: Fair Haven | B71: Rutland Regional Planning Commission | C71: 2694 | D71: 0.004301054668 | E71: =town_population[[#This Row],[Pop Share of State]]/(INDEX(regional_population[Pop Share of State],MATCH(town_population[[#This Row],[Regional Planning Commission]],regional_population[Regional Planning Commission],0))) -> 0.04471591946
A72: Fairfax | B72: Northwest Regional Planning Commission | C72: 4397 | D72: 0.007019947059 | E72: =town_population[[#This Row],[Pop Share of State]]/(INDEX(regional_population[Pop Share of State],MATCH(town_population[[#This Row],[Regional Planning Commission]],regional_population[Regional Planning Commission],0))) -> 0.07964858256
A73: Fairfield | B73: Northwest Regional Planning Commission | C73: 1856 | D73: 0.002963161642 | E73: =town_population[[#This Row],[Pop Share of State]]/(INDEX(regional_population[Pop Share of State],MATCH(town_population[[#This Row],[Regional Planning Commission]],regional_population[Regional Planning Commission],0))) -> 0.0336201431
A74: Fairlee | B74: Two Rivers-Ottauquechee Regional Commission | C74: 1029 | D74: 0.001642830458 | E74: =town_population[[#This Row],[Pop Share of State]]/(INDEX(regional_population[Pop Share of State],MATCH(town_population[[#This Row],[Regional Planning Commission]],regional_population[Regional Planning Commission],0))) -> 0.01853753445
A75: Fayston | B75: Central Vermont Regional Planning Commission | C75: 1314 | D75: 0.002097841809 | E75: =town_population[[#This Row],[Pop Share of State]]/(INDEX(regional_population[Pop Share of State],MATCH(town_population[[#This Row],[Regional Planning Commission]],regional_population[Regional Planning Commission],0))) -> 0.02026370576
A76: Ferdinand | B76: Northeastern Vermont Development Association | C76: 28 | D76: 4.47028696e-05 | E76: =town_population[[#This Row],[Pop Share of State]]/(INDEX(regional_population[Pop Share of State],MATCH(town_population[[#This Row],[Regional Planning Commission]],regional_population[Regional Planning Commission],0))) -> 0.0004341085271
A77: Ferrisburgh | B77: Addison County Regional Planning Commission | C77: 2779 | D77: 0.004436759808 | E77: =town_population[[#This Row],[Pop Share of State]]/(INDEX(regional_population[Pop Share of State],MATCH(town_population[[#This Row],[Regional Planning Commission]],regional_population[Regional Planning Commission],0))) -> 0.07681039248
A78: Fletcher | B78: Northwest Regional Planning Commission | C78: 1244 | D78: 0.001986084635 | E78: =town_population[[#This Row],[Pop Share of State]]/(INDEX(regional_population[Pop Share of State],MATCH(town_population[[#This Row],[Regional Planning Commission]],regional_population[Regional Planning Commission],0))) -> 0.02253419074
A79: Franklin | B79: Northwest Regional Planning Commission | C79: 1240 | D79: 0.001979698511 | E79: =town_population[[#This Row],[Pop Share of State]]/(INDEX(regional_population[Pop Share of State],MATCH(town_population[[#This Row],[Regional Planning Commission]],regional_population[Regional Planning Commission],0))) -> 0.02246173354
A80: Georgia | B80: Northwest Regional Planning Commission | C80: 4610 | D80: 0.007360008174 | E80: =town_population[[#This Row],[Pop Share of State]]/(INDEX(regional_population[Pop Share of State],MATCH(town_population[[#This Row],[Regional Planning Commission]],regional_population[Regional Planning Commission],0))) -> 0.08350692872
A81: Glastenbury | B81: Bennington County Regional Commission | C81: 9 | D81: 1.436877952e-05 | E81: =town_population[[#This Row],[Pop Share of State]]/(INDEX(regional_population[Pop Share of State],MATCH(town_population[[#This Row],[Regional Planning Commission]],regional_population[Regional Planning Commission],0))) -> 0.0002556019426
A82: Glover | B82: Northeastern Vermont Development Association | C82: 1072 | D82: 0.001711481293 | E82: =town_population[[#This Row],[Pop Share of State]]/(INDEX(regional_population[Pop Share of State],MATCH(town_population[[#This Row],[Regional Planning Commission]],regional_population[Regional Planning Commission],0))) -> 0.01662015504
A83: Goshen | B83: Addison County Regional Planning Commission | C83: 135 | D83: 0.0002155316927 | E83: =town_population[[#This Row],[Pop Share of State]]/(INDEX(regional_population[Pop Share of State],MATCH(town_population[[#This Row],[Regional Planning Commission]],regional_population[Regional Planning Commission],0))) -> 0.003731343284
A84: Grafton | B84: Windham Regional Commission | C84: 609 | D84: 0.0009722874139 | E84: =town_population[[#This Row],[Pop Share of State]]/(INDEX(regional_population[Pop Share of State],MATCH(town_population[[#This Row],[Regional Planning Commission]],regional_population[Regional Planning Commission],0))) -> 0.01318866944
A85: Granby | B85: Northeastern Vermont Development Association | C85: 85 | D85: 0.0001357051399 | E85: =town_population[[#This Row],[Pop Share of State]]/(INDEX(regional_population[Pop Share of State],MATCH(town_population[[#This Row],[Regional Planning Commission]],regional_population[Regional Planning Commission],0))) -> 0.001317829457
A86: Grand Isle | B86: Northwest Regional Planning Commission | C86: 2264 | D86: 0.003614546314 | E86: =town_population[[#This Row],[Pop Share of State]]/(INDEX(regional_population[Pop Share of State],MATCH(town_population[[#This Row],[Regional Planning Commission]],regional_population[Regional Planning Commission],0))) -> 0.04101077801
A87: Granville | B87: Two Rivers-Ottauquechee Regional Commission | C87: 308 | D87: 0.0004917315657 | E87: =town_population[[#This Row],[Pop Share of State]]/(INDEX(regional_population[Pop Share of State],MATCH(town_population[[#This Row],[Regional Planning Commission]],regional_population[Regional Planning Commission],0))) -> 0.005548649769
A88: Greensboro | B88: Northeastern Vermont Development Association | C88: 723 | D88: 0.001154291954 | E88: =town_population[[#This Row],[Pop Share of State]]/(INDEX(regional_population[Pop Share of State],MATCH(town_population[[#This Row],[Regional Planning Commission]],regional_population[Regional Planning Commission],0))) -> 0.01120930233
A89: Groton | B89: Northeastern Vermont Development Association | C89: 1013 | D89: 0.001617285961 | E89: =town_population[[#This Row],[Pop Share of State]]/(INDEX(regional_population[Pop Share of State],MATCH(town_population[[#This Row],[Regional Planning Commission]],regional_population[Regional Planning Commission],0))) -> 0.01570542636
A90: Guildhall | B90: Northeastern Vermont Development Association | C90: 209 | D90: 0.000333674991 | E90: =town_population[[#This Row],[Pop Share of State]]/(INDEX(regional_population[Pop Share of State],MATCH(town_population[[#This Row],[Regional Planning Commission]],regional_population[Regional Planning Commission],0))) -> 0.003240310078
A91: Guilford | B91: Windham Regional Commission | C91: 2151 | D91: 0.003434138304 | E91: =town_population[[#This Row],[Pop Share of State]]/(INDEX(regional_population[Pop Share of State],MATCH(town_population[[#This Row],[Regional Planning Commission]],regional_population[Regional Planning Commission],0))) -> 0.04658264033
A92: Halifax | B92: Windham Regional Commission | C92: 692 | D92: 0.001104799492 | E92: =town_population[[#This Row],[Pop Share of State]]/(INDEX(regional_population[Pop Share of State],MATCH(town_population[[#This Row],[Regional Planning Commission]],regional_population[Regional Planning Commission],0))) -> 0.01498613999
A93: Hancock | B93: Two Rivers-Ottauquechee Regional Commission | C93: 395 | D93: 0.0006306297676 | E93: =town_population[[#This Row],[Pop Share of State]]/(INDEX(regional_population[Pop Share of State],MATCH(town_population[[#This Row],[Regional Planning Commission]],regional_population[Regional Planning Commission],0))) -> 0.007115963177
A94: Hardwick | B94: Northeastern Vermont Development Association | C94: 2976 | D94: 0.004751276427 | E94: =town_population[[#This Row],[Pop Share of State]]/(INDEX(regional_population[Pop Share of State],MATCH(town_population[[#This Row],[Regional Planning Commission]],regional_population[Regional Planning Commission],0))) -> 0.04613953488
A95: Hartford | B95: Two Rivers-Ottauquechee Regional Commission | C95: 9869 | D95: 0.015756165 | E95: =town_population[[#This Row],[Pop Share of State]]/(INDEX(regional_population[Pop Share of State],MATCH(town_population[[#This Row],[Regional Planning Commission]],regional_population[Regional Planning Commission],0))) -> 0.1777909888
A96: Hartland | B96: Two Rivers-Ottauquechee Regional Commission | C96: 3397 | D96: 0.005423416002 | E96: =town_population[[#This Row],[Pop Share of State]]/(INDEX(regional_population[Pop Share of State],MATCH(town_population[[#This Row],[Regional Planning Commission]],regional_population[Regional Planning Commission],0))) -> 0.06119728332
A97: Highgate | B97: Northwest Regional Planning Commission | C97: 3576 | D97: 0.005709195061 | E97: =town_population[[#This Row],[Pop Share of State]]/(INDEX(regional_population[Pop Share of State],MATCH(town_population[[#This Row],[Regional Planning Commission]],regional_population[Regional Planning Commission],0))) -> 0.06477674124
A98: Hinesburg | B98: Chittenden County Regional Planning Commission | C98: 4451 | D98: 0.007106159736 | E98: =town_population[[#This Row],[Pop Share of State]]/(INDEX(regional_population[Pop Share of State],MATCH(town_population[[#This Row],[Regional Planning Commission]],regional_population[Regional Planning Commission],0))) -> 0.02804910326
A99: Holland | B99: Northeastern Vermont Development Association | C99: 689 | D99: 0.001100009898 | E99: =town_population[[#This Row],[Pop Share of State]]/(INDEX(regional_population[Pop Share of State],MATCH(town_population[[#This Row],[Regional Planning Commission]],regional_population[Regional Planning Commission],0))) -> 0.01068217054
A100: Hubbardton | B100: Rutland Regional Planning Commission | C100: 624 | D100: 0.0009962353798 | E100: =town_population[[#This Row],[Pop Share of State]]/(INDEX(regional_population[Pop Share of State],MATCH(town_population[[#This Row],[Regional Planning Commission]],regional_population[Regional Planning Commission],0))) -> 0.01035736219
A101: Huntington | B101: Chittenden County Regional Planning Commission | C101: 1924 | D101: 0.003071725754 | E101: =town_population[[#This Row],[Pop Share of State]]/(INDEX(regional_population[Pop Share of State],MATCH(town_population[[#This Row],[Regional Planning Commission]],regional_population[Regional Planning Commission],0))) -> 0.01212457306
A102: Hyde Park | B102: Lamoille County Planning Commission | C102: 3011 | D102: 0.004807155014 | E102: =town_population[[#This Row],[Pop Share of State]]/(INDEX(regional_population[Pop Share of State],MATCH(town_population[[#This Row],[Regional Planning Commission]],regional_population[Regional Planning Commission],0))) -> 0.1212011432
A103: Ira | B103: Rutland Regional Planning Commission | C103: 441 | D103: 0.0007040701963 | E103: =town_population[[#This Row],[Pop Share of State]]/(INDEX(regional_population[Pop Share of State],MATCH(town_population[[#This Row],[Regional Planning Commission]],regional_population[Regional Planning Commission],0))) -> 0.007319866549
A104: Irasburg | B104: Northeastern Vermont Development Association | C104: 1195 | D104: 0.001907854613 | E104: =town_population[[#This Row],[Pop Share of State]]/(INDEX(regional_population[Pop Share of State],MATCH(town_population[[#This Row],[Regional Planning Commission]],regional_population[Regional Planning Commission],0))) -> 0.01852713178
A105: Isle La Motte | B105: Northwest Regional Planning Commission | C105: 577 | D105: 0.0009211984201 | E105: =town_population[[#This Row],[Pop Share of State]]/(INDEX(regional_population[Pop Share of State],MATCH(town_population[[#This Row],[Regional Planning Commission]],regional_population[Regional Planning Commission],0))) -> 0.01045195182
A106: Jamaica | B106: Windham Regional Commission | C106: 899 | D106: 0.001435281421 | E106: =town_population[[#This Row],[Pop Share of State]]/(INDEX(regional_population[Pop Share of State],MATCH(town_population[[#This Row],[Regional Planning Commission]],regional_population[Regional Planning Commission],0))) -> 0.01946898822
A107: Jay | B107: Northeastern Vermont Development Association | C107: 818 | D107: 0.001305962405 | E107: =town_population[[#This Row],[Pop Share of State]]/(INDEX(regional_population[Pop Share of State],MATCH(town_population[[#This Row],[Regional Planning Commission]],regional_population[Regional Planning Commission],0))) -> 0.01268217054
A108: Jericho | B108: Chittenden County Regional Planning Commission | C108: 5040 | D108: 0.008046516529 | E108: =town_population[[#This Row],[Pop Share of State]]/(INDEX(regional_population[Pop Share of State],MATCH(town_population[[#This Row],[Regional Planning Commission]],regional_population[Regional Planning Commission],0))) -> 0.03176083586
A109: Johnson | B109: Lamoille County Planning Commission | C109: 3491 | D109: 0.005573489921 | E109: =town_population[[#This Row],[Pop Share of State]]/(INDEX(regional_population[Pop Share of State],MATCH(town_population[[#This Row],[Regional Planning Commission]],regional_population[Regional Planning Commission],0))) -> 0.1405224812
A110: Killington | B110: Rutland Regional Planning Commission | C110: 896 | D110: 0.001430491827 | E110: =town_population[[#This Row],[Pop Share of State]]/(INDEX(regional_population[Pop Share of State],MATCH(town_population[[#This Row],[Regional Planning Commission]],regional_population[Regional Planning Commission],0))) -> 0.01487210981
A111: Kirby | B111: Northeastern Vermont Development Association | C111: 435 | D111: 0.0006944910099 | E111: =town_population[[#This Row],[Pop Share of State]]/(INDEX(regional_population[Pop Share of State],MATCH(town_population[[#This Row],[Regional Planning Commission]],regional_population[Regional Planning Commission],0))) -> 0.006744186047
A112: Landgrove | B112: Bennington County Regional Commission | C112: 132 | D112: 0.0002107420996 | E112: =town_population[[#This Row],[Pop Share of State]]/(INDEX(regional_population[Pop Share of State],MATCH(town_population[[#This Row],[Regional Planning Commission]],regional_population[Regional Planning Commission],0))) -> 0.003748828491
A113: Leicester | B113: Addison County Regional Planning Commission | C113: 1226 | D113: 0.001957347076 | E113: =town_population[[#This Row],[Pop Share of State]]/(INDEX(regional_population[Pop Share of State],MATCH(town_population[[#This Row],[Regional Planning Commission]],regional_population[Regional Planning Commission],0))) -> 0.03388612493
A114: Lemington | B114: Northeastern Vermont Development Association | C114: 134 | D114: 0.0002139351617 | E114: =town_population[[#This Row],[Pop Share of State]]/(INDEX(regional_population[Pop Share of State],MATCH(town_population[[#This Row],[Regional Planning Commission]],regional_population[Regional Planning Commission],0))) -> 0.00207751938
A115: Lewis | B115: Northeastern Vermont Development Association | C115: 0 | D115: 0 | E115: =town_population[[#This Row],[Pop Share of State]]/(INDEX(regional_population[Pop Share of State],MATCH(town_population[[#This Row],[Regional Planning Commission]],regional_population[Regional Planning Commission],0))) -> 0
A116: Lincoln | B116: Addison County Regional Planning Commission | C116: 1221 | D116: 0.001949364421 | E116: =town_population[[#This Row],[Pop Share of State]]/(INDEX(regional_population[Pop Share of State],MATCH(town_population[[#This Row],[Regional Planning Commission]],regional_population[Regional Planning Commission],0))) -> 0.03374792703
A117: Londonderry | B117: Windham Regional Commission | C117: 1596 | D117: 0.002548063567 | E117: =town_population[[#This Row],[Pop Share of State]]/(INDEX(regional_population[Pop Share of State],MATCH(town_population[[#This Row],[Regional Planning Commission]],regional_population[Regional Planning Commission],0))) -> 0.03456340956
A118: Lowell | B118: Northeastern Vermont Development Association | C118: 810 | D118: 0.001293190156 | E118: =town_population[[#This Row],[Pop Share of State]]/(INDEX(regional_population[Pop Share of State],MATCH(town_population[[#This Row],[Regional Planning Commission]],regional_population[Regional Planning Commission],0))) -> 0.01255813953
A119: Ludlow | B119: Southern Windsor County Regional Planning Commission | C119: 2131 | D119: 0.003402207683 | E119: =town_population[[#This Row],[Pop Share of State]]/(INDEX(regional_population[Pop Share of State],MATCH(town_population[[#This Row],[Regional Planning Commission]],regional_population[Regional Planning Commission],0))) -> 0.0853902869
A120: Lunenburg | B120: Northeastern Vermont Development Association | C120: 1331 | D120: 0.002124982837 | E120: =town_population[[#This Row],[Pop Share of State]]/(INDEX(regional_population[Pop Share of State],MATCH(town_population[[#This Row],[Regional Planning Commission]],regional_population[Regional Planning Commission],0))) -> 0.02063565891
A121: Lyndon | B121: Northeastern Vermont Development Association | C121: 5966 | D121: 0.009524904288 | E121: =town_population[[#This Row],[Pop Share of State]]/(INDEX(regional_population[Pop Share of State],MATCH(town_population[[#This Row],[Regional Planning Commission]],regional_population[Regional Planning Commission],0))) -> 0.09249612403
A122: Maidstone | B122: Northeastern Vermont Development Association | C122: 217 | D122: 0.0003464472394 | E122: =town_population[[#This Row],[Pop Share of State]]/(INDEX(regional_population[Pop Share of State],MATCH(town_population[[#This Row],[Regional Planning Commission]],regional_population[Regional Planning Commission],0))) -> 0.003364341085
A123: Manchester | B123: Bennington County Regional Commission | C123: 4352 | D123: 0.006948103161 | E123: =town_population[[#This Row],[Pop Share of State]]/(INDEX(regional_population[Pop Share of State],MATCH(town_population[[#This Row],[Regional Planning Commission]],regional_population[Regional Planning Commission],0))) -> 0.1235977393
A124: Marlboro | B124: Windham Regional Commission | C124: 1196 | D124: 0.001909451145 | E124: =town_population[[#This Row],[Pop Share of State]]/(INDEX(regional_population[Pop Share of State],MATCH(town_population[[#This Row],[Regional Planning Commission]],regional_population[Regional Planning Commission],0))) -> 0.0259009009
A125: Marshfield | B125: Central Vermont Regional Planning Commission | C125: 1724 | D125: 0.002752419543 | E125: =town_population[[#This Row],[Pop Share of State]]/(INDEX(regional_population[Pop Share of State],MATCH(town_population[[#This Row],[Regional Planning Commission]],regional_population[Regional Planning Commission],0))) -> 0.02658647544
A126: Mendon | B126: Rutland Regional Planning Commission | C126: 862 | D126: 0.001376209771 | E126: =town_population[[#This Row],[Pop Share of State]]/(INDEX(regional_population[Pop Share of State],MATCH(town_population[[#This Row],[Regional Planning Commission]],regional_population[Regional Planning Commission],0))) -> 0.01430776636
A127: Middlebury | B127: Addison County Regional Planning Commission | C127: 8505 | D127: 0.01357849664 | E127: =town_population[[#This Row],[Pop Share of State]]/(INDEX(regional_population[Pop Share of State],MATCH(town_population[[#This Row],[Regional Planning Commission]],regional_population[Regional Planning Commission],0))) -> 0.2350746269
A128: Middlesex | B128: Central Vermont Regional Planning Commission | C128: 1899 | D128: 0.003031812478 | E128: =town_population[[#This Row],[Pop Share of State]]/(INDEX(regional_population[Pop Share of State],MATCH(town_population[[#This Row],[Regional Planning Commission]],regional_population[Regional Planning Commission],0))) -> 0.0292852186
A129: Middletown Springs | B129: Rutland Regional Planning Commission | C129: 731 | D129: 0.001167064203 | E129: =town_population[[#This Row],[Pop Share of State]]/(INDEX(regional_population[Pop Share of State],MATCH(town_population[[#This Row],[Regional Planning Commission]],regional_population[Regional Planning Commission],0))) -> 0.01213338423
A130: Milton | B130: Chittenden County Regional Planning Commission | C130: 10533 | D130: =C130/SUM($C$2:$C$256) -> 0.01681626163 | E130: =town_population[[#This Row],[Pop Share of State]]/(INDEX(regional_population[Pop Share of State],MATCH(town_population[[#This Row],[Regional Planning Commission]],regional_population[Regional Planning Commission],0))) -> 0.0663763659
A131: Monkton | B131: Addison County Regional Planning Commission | C131: 2043 | D131: 0.00326171295 | E131: =town_population[[#This Row],[Pop Share of State]]/(INDEX(regional_population[Pop Share of State],MATCH(town_population[[#This Row],[Regional Planning Commission]],regional_population[Regional Planning Commission],0))) -> 0.05646766169
A132: Montgomery | B132: Northwest Regional Planning Commission | C132: 1084 | D132: 0.001730639666 | E132: =town_population[[#This Row],[Pop Share of State]]/(INDEX(regional_population[Pop Share of State],MATCH(town_population[[#This Row],[Regional Planning Commission]],regional_population[Regional Planning Commission],0))) -> 0.01963590255
A133: Montpelier | B133: Central Vermont Regional Planning Commission | C133: 7760 | D133: 0.012389081 | E133: =town_population[[#This Row],[Pop Share of State]]/(INDEX(regional_population[Pop Share of State],MATCH(town_population[[#This Row],[Regional Planning Commission]],regional_population[Regional Planning Commission],0))) -> 0.1196699823
A134: Moretown | B134: Central Vermont Regional Planning Commission | C134: 1653 | D134: 0.002639065838 | E134: =town_population[[#This Row],[Pop Share of State]]/(INDEX(regional_population[Pop Share of State],MATCH(town_population[[#This Row],[Regional Planning Commission]],regional_population[Regional Planning Commission],0))) -> 0.02549155679
A135: Morgan | B135: Northeastern Vermont Development Association | C135: 721 | D135: 0.001151098892 | E135: =town_population[[#This Row],[Pop Share of State]]/(INDEX(regional_population[Pop Share of State],MATCH(town_population[[#This Row],[Regional Planning Commission]],regional_population[Regional Planning Commission],0))) -> 0.01117829457
A136: Morristown | B136: Lamoille County Planning Commission | C136: 5314 | D136: 0.008483966039 | E136: =town_population[[#This Row],[Pop Share of State]]/(INDEX(regional_population[Pop Share of State],MATCH(town_population[[#This Row],[Regional Planning Commission]],regional_population[Regional Planning Commission],0))) -> 0.2139033128
A137: Mount Holly | B137: Rutland Regional Planning Commission | C137: 1258 | D137: 0.00200843607 | E137: =town_population[[#This Row],[Pop Share of State]]/(INDEX(regional_population[Pop Share of State],MATCH(town_population[[#This Row],[Regional Planning Commission]],regional_population[Regional Planning Commission],0))) -> 0.02088070775
A138: Mount Tabor | B138: Rutland Regional Planning Commission | C138: 271 | D138: 0.0004326599165 | E138: =town_population[[#This Row],[Pop Share of State]]/(INDEX(regional_population[Pop Share of State],MATCH(town_population[[#This Row],[Regional Planning Commission]],regional_population[Regional Planning Commission],0))) -> 0.004498149285
A139: New Haven | B139: Addison County Regional Planning Commission | C139: 1648 | D139: 0.002631083182 | E139: =town_population[[#This Row],[Pop Share of State]]/(INDEX(regional_population[Pop Share of State],MATCH(town_population[[#This Row],[Regional Planning Commission]],regional_population[Regional Planning Commission],0))) -> 0.04555002764
A140: Newark | B140: Northeastern Vermont Development Association | C140: 534 | D140: 0.0008525475846 | E140: =town_population[[#This Row],[Pop Share of State]]/(INDEX(regional_population[Pop Share of State],MATCH(town_population[[#This Row],[Regional Planning Commission]],regional_population[Regional Planning Commission],0))) -> 0.008279069767
A141: Newbury | B141: Two Rivers-Ottauquechee Regional Commission | C141: 2155 | D141: 0.003440524429 | E141: =town_population[[#This Row],[Pop Share of State]]/(INDEX(regional_population[Pop Share of State],MATCH(town_population[[#This Row],[Regional Planning Commission]],regional_population[Regional Planning Commission],0))) -> 0.03882253328
A142: Newfane | B142: Windham Regional Commission | C142: 1819 | D142: 0.002904089993 | E142: =town_population[[#This Row],[Pop Share of State]]/(INDEX(regional_population[Pop Share of State],MATCH(town_population[[#This Row],[Regional Planning Commission]],regional_population[Regional Planning Commission],0))) -> 0.03939275814
A143: Newport | B143: Northeastern Vermont Development Association | C143: 1764 | D143: 0.002816280785 | E143: =town_population[[#This Row],[Pop Share of State]]/(INDEX(regional_population[Pop Share of State],MATCH(town_population[[#This Row],[Regional Planning Commission]],regional_population[Regional Planning Commission],0))) -> 0.02734883721
A144: Newport City | B144: Northeastern Vermont Development Association | C144: 4535 | D144: 0.007240268345 | E144: =town_population[[#This Row],[Pop Share of State]]/(INDEX(regional_population[Pop Share of State],MATCH(town_population[[#This Row],[Regional Planning Commission]],regional_population[Regional Planning Commission],0))) -> 0.07031007752
A145: North Hero | B145: Northwest Regional Planning Commission | C145: 939 | D145: 0.001499142663 | E145: =town_population[[#This Row],[Pop Share of State]]/(INDEX(regional_population[Pop Share of State],MATCH(town_population[[#This Row],[Regional Planning Commission]],regional_population[Regional Planning Commission],0))) -> 0.01700932887
A146: Northfield | B146: Central Vermont Regional Planning Commission | C146: 6175 | D146: 0.009858579279 | E146: =town_population[[#This Row],[Pop Share of State]]/(INDEX(regional_population[Pop Share of State],MATCH(town_population[[#This Row],[Regional Planning Commission]],regional_population[Regional Planning Commission],0))) -> 0.09522707996
A147: Norton | B147: Northeastern Vermont Development Association | C147: 161 | D147: 0.0002570415002 | E147: =town_population[[#This Row],[Pop Share of State]]/(INDEX(regional_population[Pop Share of State],MATCH(town_population[[#This Row],[Regional Planning Commission]],regional_population[Regional Planning Commission],0))) -> 0.002496124031
A148: Norwich | B148: Two Rivers-Ottauquechee Regional Commission | C148: 3400 | D148: 0.005428205595 | E148: =town_population[[#This Row],[Pop Share of State]]/(INDEX(regional_population[Pop Share of State],MATCH(town_population[[#This Row],[Regional Planning Commission]],regional_population[Regional Planning Commission],0))) -> 0.06125132861
A149: Orange | B149: Central Vermont Regional Planning Commission | C149: 1048 | D149: 0.001673164548 | E149: =town_population[[#This Row],[Pop Share of State]]/(INDEX(regional_population[Pop Share of State],MATCH(town_population[[#This Row],[Regional Planning Commission]],regional_population[Regional Planning Commission],0))) -> 0.01616161616
A150: Orwell | B150: Addison County Regional Planning Commission | C150: 1242 | D150: 0.001982891573 | E150: =town_population[[#This Row],[Pop Share of State]]/(INDEX(regional_population[Pop Share of State],MATCH(town_population[[#This Row],[Regional Planning Commission]],regional_population[Regional Planning Commission],0))) -> 0.03432835821
A151: Panton | B151: Addison County Regional Planning Commission | C151: 740 | D151: 0.001181432982 | E151: =town_population[[#This Row],[Pop Share of State]]/(INDEX(regional_population[Pop Share of State],MATCH(town_population[[#This Row],[Regional Planning Commission]],regional_population[Regional Planning Commission],0))) -> 0.02045328911
A152: Pawlet | B152: Rutland Regional Planning Commission | C152: 1440 | D152: 0.002299004723 | E152: =town_population[[#This Row],[Pop Share of State]]/(INDEX(regional_population[Pop Share of State],MATCH(town_population[[#This Row],[Regional Planning Commission]],regional_population[Regional Planning Commission],0))) -> 0.02390160506
A153: Peacham | B153: Northeastern Vermont Development Association | C153: 695 | D153: 0.001109589085 | E153: =town_population[[#This Row],[Pop Share of State]]/(INDEX(regional_population[Pop Share of State],MATCH(town_population[[#This Row],[Regional Planning Commission]],regional_population[Regional Planning Commission],0))) -> 0.0107751938
A154: Peru | B154: Bennington County Regional Commission | C154: 348 | D154: 0.0005555928079 | E154: =town_population[[#This Row],[Pop Share of State]]/(INDEX(regional_population[Pop Share of State],MATCH(town_population[[#This Row],[Regional Planning Commission]],regional_population[Regional Planning Commission],0))) -> 0.009883275113
A155: Pittsfield | B155: Two Rivers-Ottauquechee Regional Commission | C155: 617 | D155: 0.0009850596624 | E155: =town_population[[#This Row],[Pop Share of State]]/(INDEX(regional_population[Pop Share of State],MATCH(town_population[[#This Row],[Regional Planning Commission]],regional_population[Regional Planning Commission],0))) -> 0.01111531463
A156: Pittsford | B156: Rutland Regional Planning Commission | C156: 2940 | D156: 0.004693801309 | E156: =town_population[[#This Row],[Pop Share of State]]/(INDEX(regional_population[Pop Share of State],MATCH(town_population[[#This Row],[Regional Planning Commission]],regional_population[Regional Planning Commission],0))) -> 0.04879911033
A157: Plainfield | B157: Central Vermont Regional Planning Commission | C157: 1304 | D157: 0.002081876499 | E157: =town_population[[#This Row],[Pop Share of State]]/(INDEX(regional_population[Pop Share of State],MATCH(town_population[[#This Row],[Regional Planning Commission]],regional_population[Regional Planning Commission],0))) -> 0.02010949187
A158: Plymouth | B158: Two Rivers-Ottauquechee Regional Commission | C158: 471 | D158: 0.000751966128 | E158: =town_population[[#This Row],[Pop Share of State]]/(INDEX(regional_population[Pop Share of State],MATCH(town_population[[#This Row],[Regional Planning Commission]],regional_population[Regional Planning Commission],0))) -> 0.008485110523
A159: Pomfret | B159: Two Rivers-Ottauquechee Regional Commission | C159: 963 | D159: 0.001537459408 | E159: =town_population[[#This Row],[Pop Share of State]]/(INDEX(regional_population[Pop Share of State],MATCH(town_population[[#This Row],[Regional Planning Commission]],regional_population[Regional Planning Commission],0))) -> 0.01734853807
A160: Poultney | B160: Rutland Regional Planning Commission | C160: 3382 | D160: 0.005399468036 | E160: =town_population[[#This Row],[Pop Share of State]]/(INDEX(regional_population[Pop Share of State],MATCH(town_population[[#This Row],[Regional Planning Commission]],regional_population[Regional Planning Commission],0))) -> 0.05613557522
A161: Pownal | B161: Bennington County Regional Commission | C161: 3495 | D161: 0.005579876045 | E161: =town_population[[#This Row],[Pop Share of State]]/(INDEX(regional_population[Pop Share of State],MATCH(town_population[[#This Row],[Regional Planning Commission]],regional_population[Regional Planning Commission],0))) -> 0.09925875437
A162: Proctor | B162: Rutland Regional Planning Commission | C162: 1650 | D162: 0.002634276245 | E162: =town_population[[#This Row],[Pop Share of State]]/(INDEX(regional_population[Pop Share of State],MATCH(town_population[[#This Row],[Regional Planning Commission]],regional_population[Regional Planning Commission],0))) -> 0.0273872558
A163: Putney | B163: Windham Regional Commission | C163: 2696 | D163: 0.004304247731 | E163: =town_population[[#This Row],[Pop Share of State]]/(INDEX(regional_population[Pop Share of State],MATCH(town_population[[#This Row],[Regional Planning Commission]],regional_population[Regional Planning Commission],0))) -> 0.05838530839
A164: Randolph | B164: Two Rivers-Ottauquechee Regional Commission | C164: 4768 | D164: 0.007612260081 | E164: =town_population[[#This Row],[Pop Share of State]]/(INDEX(regional_population[Pop Share of State],MATCH(town_population[[#This Row],[Regional Planning Commission]],regional_population[Regional Planning Commission],0))) -> 0.08589598083
A165: Reading | B165: Southern Windsor County Regional Planning Commission | C165: 739 | D165: 0.001179836451 | E165: =town_population[[#This Row],[Pop Share of State]]/(INDEX(regional_population[Pop Share of State],MATCH(town_population[[#This Row],[Regional Planning Commission]],regional_population[Regional Planning Commission],0))) -> 0.02961211733
A166: Readsboro | B166: Windham Regional Commission | C166: 777 | D166: 0.001240504632 | E166: =town_population[[#This Row],[Pop Share of State]]/(INDEX(regional_population[Pop Share of State],MATCH(town_population[[#This Row],[Regional Planning Commission]],regional_population[Regional Planning Commission],0))) -> 0.01682692308
A167: Richford | B167: Northwest Regional Planning Commission | C167: 2329 | D167: 0.003718320832 | E167: =town_population[[#This Row],[Pop Share of State]]/(INDEX(regional_population[Pop Share of State],MATCH(town_population[[#This Row],[Regional Planning Commission]],regional_population[Regional Planning Commission],0))) -> 0.04218820759
A168: Richmond | B168: Chittenden County Regional Planning Commission | C168: 4114 | D168: 0.00656812877 | E168: =town_population[[#This Row],[Pop Share of State]]/(INDEX(regional_population[Pop Share of State],MATCH(town_population[[#This Row],[Regional Planning Commission]],regional_population[Regional Planning Commission],0))) -> 0.02592541245
A169: Ripton | B169: Addison County Regional Planning Commission | C169: 650 | D169: 0.001037745187 | E169: =town_population[[#This Row],[Pop Share of State]]/(INDEX(regional_population[Pop Share of State],MATCH(town_population[[#This Row],[Regional Planning Commission]],regional_population[Regional Planning Commission],0))) -> 0.01796572692
A170: Rochester | B170: Two Rivers-Ottauquechee Regional Commission | C170: 1095 | D170: 0.001748201508 | E170: =town_population[[#This Row],[Pop Share of State]]/(INDEX(regional_population[Pop Share of State],MATCH(town_population[[#This Row],[Regional Planning Commission]],regional_population[Regional Planning Commission],0))) -> 0.01972653083
A171: Rockingham | B171: Windham Regional Commission | C171: 5190 | D171: 0.008285996187 | E171: =town_population[[#This Row],[Pop Share of State]]/(INDEX(regional_population[Pop Share of State],MATCH(town_population[[#This Row],[Regional Planning Commission]],regional_population[Regional Planning Commission],0))) -> 0.1123960499
A172: Roxbury | B172: Central Vermont Regional Planning Commission | C172: 684 | D172: 0.001092027243 | E172: =town_population[[#This Row],[Pop Share of State]]/(INDEX(regional_population[Pop Share of State],MATCH(town_population[[#This Row],[Regional Planning Commission]],regional_population[Regional Planning Commission],0))) -> 0.0105482304
A173: Royalton | B173: Two Rivers-Ottauquechee Regional Commission | C173: 2778 | D173: 0.004435163277 | E173: =town_population[[#This Row],[Pop Share of State]]/(INDEX(regional_population[Pop Share of State],MATCH(town_population[[#This Row],[Regional Planning Commission]],regional_population[Regional Planning Commission],0))) -> 0.0500459385
A174: Rupert | B174: Bennington County Regional Commission | C174: 620 | D174: 0.0009898492555 | E174: =town_population[[#This Row],[Pop Share of State]]/(INDEX(regional_population[Pop Share of State],MATCH(town_population[[#This Row],[Regional Planning Commission]],regional_population[Regional Planning Commission],0))) -> 0.01760813382
A175: Rutland | B175: Rutland Regional Planning Commission | C175: 16217 | D175: 0.02589094416 | E175: =town_population[[#This Row],[Pop Share of State]]/(INDEX(regional_population[Pop Share of State],MATCH(town_population[[#This Row],[Regional Planning Commission]],regional_population[Regional Planning Commission],0))) -> 0.2691752286
A176: Rutland City | B176: Rutland Regional Planning Commission | C176: 4048 | D176: 0.00646275772 | E176: =town_population[[#This Row],[Pop Share of State]]/(INDEX(regional_population[Pop Share of State],MATCH(town_population[[#This Row],[Regional Planning Commission]],regional_population[Regional Planning Commission],0))) -> 0.06719006756
A177: Ryegate | B177: Northeastern Vermont Development Association | C177: 1118 | D177: 0.001784921722 | E177: =town_population[[#This Row],[Pop Share of State]]/(INDEX(regional_population[Pop Share of State],MATCH(town_population[[#This Row],[Regional Planning Commission]],regional_population[Regional Planning Commission],0))) -> 0.01733333333
A178: Saint Albans | B178: Northwest Regional Planning Commission | C178: 6157 | D178: 0.00982984172 | E178: =town_population[[#This Row],[Pop Share of State]]/(INDEX(regional_population[Pop Share of State],MATCH(town_population[[#This Row],[Regional Planning Commission]],regional_population[Regional Planning Commission],0))) -> 0.1115297527
A179: Saint Albans City | B179: Northwest Regional Planning Commission | C179: 6889 | D179: 0.01099850245 | E179: =town_population[[#This Row],[Pop Share of State]]/(INDEX(regional_population[Pop Share of State],MATCH(town_population[[#This Row],[Regional Planning Commission]],regional_population[Regional Planning Commission],0))) -> 0.1247894212
A180: Saint George | B180: Chittenden County Regional Planning Commission | C180: 772 | D180: 0.001232521976 | E180: =town_population[[#This Row],[Pop Share of State]]/(INDEX(regional_population[Pop Share of State],MATCH(town_population[[#This Row],[Regional Planning Commission]],regional_population[Regional Planning Commission],0))) -> 0.00486495343
A181: Saint Johnsbury | B181: Northeastern Vermont Development Association | C181: 7573 | D181: 0.0120905297 | E181: =town_population[[#This Row],[Pop Share of State]]/(INDEX(regional_population[Pop Share of State],MATCH(town_population[[#This Row],[Regional Planning Commission]],regional_population[Regional Planning Commission],0))) -> 0.1174108527
A182: Salisbury | B182: Addison County Regional Planning Commission | C182: 1142 | D182: 0.001823238467 | E182: =town_population[[#This Row],[Pop Share of State]]/(INDEX(regional_population[Pop Share of State],MATCH(town_population[[#This Row],[Regional Planning Commission]],regional_population[Regional Planning Commission],0))) -> 0.03156440022
A183: Sandgate | B183: Bennington County Regional Commission | C183: 516 | D183: 0.0008238100256 | E183: =town_population[[#This Row],[Pop Share of State]]/(INDEX(regional_population[Pop Share of State],MATCH(town_population[[#This Row],[Regional Planning Commission]],regional_population[Regional Planning Commission],0))) -> 0.01465451137
A184: Searsburg | B184: Windham Regional Commission | C184: 97 | D184: 0.0001548635126 | E184: =town_population[[#This Row],[Pop Share of State]]/(INDEX(regional_population[Pop Share of State],MATCH(town_population[[#This Row],[Regional Planning Commission]],regional_population[Regional Planning Commission],0))) -> 0.002100658351
A185: Shaftsbury | B185: Bennington County Regional Commission | C185: 3558 | D185: 0.005680457502 | E185: =town_population[[#This Row],[Pop Share of State]]/(INDEX(regional_population[Pop Share of State],MATCH(town_population[[#This Row],[Regional Planning Commission]],regional_population[Regional Planning Commission],0))) -> 0.101047968
A186: Sharon | B186: Two Rivers-Ottauquechee Regional Commission | C186: 1521 | D186: 0.002428323738 | E186: =town_population[[#This Row],[Pop Share of State]]/(INDEX(regional_population[Pop Share of State],MATCH(town_population[[#This Row],[Regional Planning Commission]],regional_population[Regional Planning Commission],0))) -> 0.02740096201
A187: Sheffield | B187: Northeastern Vermont Development Association | C187: 568 | D187: 0.0009068296406 | E187: =town_population[[#This Row],[Pop Share of State]]/(INDEX(regional_population[Pop Share of State],MATCH(town_population[[#This Row],[Regional Planning Commission]],regional_population[Regional Planning Commission],0))) -> 0.00880620155
A188: Shelburne | B188: Chittenden County Regional Planning Commission | C188: 7452 | D188: 0.01189734944 | E188: =town_population[[#This Row],[Pop Share of State]]/(INDEX(regional_population[Pop Share of State],MATCH(town_population[[#This Row],[Regional Planning Commission]],regional_population[Regional Planning Commission],0))) -> 0.04696066446
A189: Sheldon | B189: Northwest Regional Planning Commission | C189: 2329 | D189: 0.003718320832 | E189: =town_population[[#This Row],[Pop Share of State]]/(INDEX(regional_population[Pop Share of State],MATCH(town_population[[#This Row],[Regional Planning Commission]],regional_population[Regional Planning Commission],0))) -> 0.04218820759
A190: Shoreham | B190: Addison County Regional Planning Commission | C190: 1179 | D190: 0.001882310117 | E190: =town_population[[#This Row],[Pop Share of State]]/(INDEX(regional_population[Pop Share of State],MATCH(town_population[[#This Row],[Regional Planning Commission]],regional_population[Regional Planning Commission],0))) -> 0.03258706468
A191: Shrewsbury | B191: Rutland Regional Planning Commission | C191: 1158 | D191: 0.001848782964 | E191: =town_population[[#This Row],[Pop Share of State]]/(INDEX(regional_population[Pop Share of State],MATCH(town_population[[#This Row],[Regional Planning Commission]],regional_population[Regional Planning Commission],0))) -> 0.01922087407
A192: Somerset | B192: Windham Regional Commission | C192: 7 | D192: 1.11757174e-05 | E192: =town_population[[#This Row],[Pop Share of State]]/(INDEX(regional_population[Pop Share of State],MATCH(town_population[[#This Row],[Regional Planning Commission]],regional_population[Regional Planning Commission],0))) -> 0.0001515939016
A193: South Burlington | B193: Chittenden County Regional Planning Commission | C193: 18378 | D193: 0.02934104777 | E193: =town_population[[#This Row],[Pop Share of State]]/(INDEX(regional_population[Pop Share of State],MATCH(town_population[[#This Row],[Regional Planning Commission]],regional_population[Regional Planning Commission],0))) -> 0.1158136193
A194: South Hero | B194: Northwest Regional Planning Commission | C194: 1576 | D194: =C194/SUM($C$2:$C$256) -> 0.002516132946 | E194: =town_population[[#This Row],[Pop Share of State]]/(INDEX(regional_population[Pop Share of State],MATCH(town_population[[#This Row],[Regional Planning Commission]],regional_population[Regional Planning Commission],0))) -> 0.02854813876
A195: Springfield | B195: Southern Windsor County Regional Planning Commission | C195: 9301 | D195: 0.01484933536 | E195: =town_population[[#This Row],[Pop Share of State]]/(INDEX(regional_population[Pop Share of State],MATCH(town_population[[#This Row],[Regional Planning Commission]],regional_population[Regional Planning Commission],0))) -> 0.3726959449
A196: Stamford | B196: Bennington County Regional Commission | C196: 878 | D196: 0.001401754268 | E196: =town_population[[#This Row],[Pop Share of State]]/(INDEX(regional_population[Pop Share of State],MATCH(town_population[[#This Row],[Regional Planning Commission]],regional_population[Regional Planning Commission],0))) -> 0.02493538951
A197: Stannard | B197: Northeastern Vermont Development Association | C197: 278 | D197: 0.0004438356339 | E197: =town_population[[#This Row],[Pop Share of State]]/(INDEX(regional_population[Pop Share of State],MATCH(town_population[[#This Row],[Regional Planning Commission]],regional_population[Regional Planning Commission],0))) -> 0.004310077519
A198: Starksboro | B198: Addison County Regional Planning Commission | C198: 1762 | D198: 0.002813087723 | E198: =town_population[[#This Row],[Pop Share of State]]/(INDEX(regional_population[Pop Share of State],MATCH(town_population[[#This Row],[Regional Planning Commission]],regional_population[Regional Planning Commission],0))) -> 0.04870093975
A199: Stockbridge | B199: Two Rivers-Ottauquechee Regional Commission | C199: 735 | D199: 0.001173450327 | E199: =town_population[[#This Row],[Pop Share of State]]/(INDEX(regional_population[Pop Share of State],MATCH(town_population[[#This Row],[Regional Planning Commission]],regional_population[Regional Planning Commission],0))) -> 0.01324109604
A200: Stowe | B200: Lamoille County Planning Commission | C200: 4371 | D200: 0.006978437252 | E200: =town_population[[#This Row],[Pop Share of State]]/(INDEX(regional_population[Pop Share of State],MATCH(town_population[[#This Row],[Regional Planning Commission]],regional_population[Regional Planning Commission],0))) -> 0.1759449342
... 56 more rows

Sheet Establishments
C1: count | R1: share of buildings in town
A2: Municipality | B2: Regional Planning Commission | C2: 42. Wholesale trade | D2: 44-45. Retail trade | E2: 48-49. Transportation and warehousing | F2: 51. Information | G2: 52. Finance and insurance | H2: 53. Real estate and rental and leasing | I2: 54. Professional and technical services | J2: 55. Management of companies and enterprises | K2: 56. Administrative and waste services | L2: 61. Educational services | M2: 62. Health care and social assistance | N2: 71. Arts, entertainment, and recreation | O2: 72. Accommodation and food services | P2: 81. Other services, except public administration | Q2: TOTAL | R2: 42. Wholesale trade2 | S2: 44-45. Retail trade3 | T2: 48-49. Transportation and warehousing4 | U2: 51. Information5 | V2: 52. Finance and insurance6 | W2: 53. Real estate and rental and leasing7 | X2: 54. Professional and technical services8 | Y2: 55. Management of companies and enterprises9 | Z2: 56. Administrative and waste services10 | AA2: 61. Educational services11 | AB2: 62. Health care and social assistance12 | AC2: 71. Arts, entertainment, and recreation13 | AD2: 72. Accommodation and food services14 | AE2: 81. Other services, except public administration15 | AF2: share of state establishments | AG2: share of state establishments (no residual) | AH2: share of regional establishments | AJ2: Regional Planning Commission | AK2: share of state establishments
A3: Addison | B3: =INDEX(town_population[Regional Planning Commission],MATCH(town_establishments[[#This Row],[Municipality]],town_population[Municipality],0)) -> Addison County Regional Planning Commission | C3: 4 | D3: 5 | F3: 1 | I3: 4 | K3: 2 | L3: 1 | M3: 1 | N3: 1 | O3: 3 | P3: 5 | Q3: =SUM(C3:P3) -> 27 | R3: =IF($Q3<>0,C3/$Q3,0) -> 0.1481481481 | S3: =IF($Q3<>0,D3/$Q3,0) -> 0.1851851852 | T3: 0 | U3: 0.03703703704 | V3: 0 | W3: 0 | X3: 0.1481481481 | Y3: 0 | Z3: 0.07407407407 | AA3: 0.03703703704 | AB3: 0.03703703704 | AC3: 0.03703703704 | AD3: 0.1111111111 | AE3: 0.1851851852 | AF3: =Q3/Q$250 -> 0.001417918286 | AG3: =town_establishments[[#This Row],[share of state establishments]]/($AF$250-$AF$249) -> 0.00146667391 | AH3: =town_establishments[[#This Row],[share of state establishments (no residual)]]/(INDEX(regional_establishments[share of state establishments],MATCH(town_establishments[[#This Row],[Regional Planning Commission]],regional_establishments[Regional Planning Commission],0))) -> 0.02884615385 | AJ3: Addison County Regional Planning Commission | AK3: =SUMIF(town_establishments[Regional Planning Commission],AJ3,town_establishments[share of state establishments (no residual)]) -> 0.05084469553
A4: Albany | B4: =INDEX(town_population[Regional Planning Commission],MATCH(town_establishments[[#This Row],[Municipality]],town_population[Municipality],0)) -> Northeastern Vermont Development Association | E4: 1 | I4: 2 | K4: 1 | L4: 1 | M4: 2 | Q4: =SUM(C4:P4) -> 7 | R4: =IF($Q4<>0,C4/$Q4,0) -> 0 | S4: 0 | T4: 0.1428571429 | U4: 0 | V4: 0 | W4: 0 | X4: 0.2857142857 | Y4: 0 | Z4: 0.1428571429 | AA4: 0.1428571429 | AB4: 0.2857142857 | AC4: 0 | AD4: 0 | AE4: 0 | AF4: =Q4/Q$250 -> 0.0003676084445 | AG4: =town_establishments[[#This Row],[share of state establishments]]/($AF$250-$AF$249) -> 0.0003802487914 | AH4: =town_establishments[[#This Row],[share of state establishments (no residual)]]/(INDEX(regional_establishments[share of state establishments],MATCH(town_establishments[[#This Row],[Regional Planning Commission]],regional_establishments[Regional Planning Commission],0))) -> 0.004797806717 | AJ4: Bennington County Regional Commission | AK4: =SUMIF(town_establishments[Regional Planning Commission],AJ4,town_establishments[share of state establishments (no residual)]) -> 0.06230648053
A5: Alburgh | B5: =INDEX(town_population[Regional Planning Commission],MATCH(town_establishments[[#This Row],[Municipality]],town_population[Municipality],0)) -> Northwest Regional Planning Commission | C5: 4 | D5: 8 | E5: 5 | G5: 2 | H5: 1 | I5: 2 | K5: 3 | L5: 1 | M5: 1 | N5: 1 | O5: 5 | P5: 2 | Q5: 35 | R5: 0.1142857143 | S5: 0.2285714286 | T5: 0.1428571429 | U5: 0 | V5: 0.05714285714 | W5: 0.02857142857 | X5: 0.05714285714 | Y5: 0 | Z5: 0.08571428571 | AA5: 0.02857142857 | AB5: 0.02857142857 | AC5: 0.02857142857 | AD5: 0.1428571429 | AE5: 0.05714285714 | AF5: 0.001838042222 | AG5: =town_establishments[[#This Row],[share of state establishments]]/($AF$250-$AF$249) -> 0.001901243957 | AH5: =town_establishments[[#This Row],[share of state establishments (no residual)]]/(INDEX(regional_establishments[share of state establishments],MATCH(town_establishments[[#This Row],[Regional Planning Commission]],regional_establishments[Regional Planning Commission],0))) -> 0.03424657534 | AJ5: Central Vermont Regional Planning Commission | AK5: =SUMIF(town_establishments[Regional Planning Commission],AJ5,town_establishments[share of state establishments (no residual)]) -> 0.1102178282
A6: Andover | B6: =INDEX(town_population[Regional Planning Commission],MATCH(town_establishments[[#This Row],[Municipality]],town_population[Municipality],0)) -> Southern Windsor County Regional Planning Commission | C6: 1 | D6: 1 | K6: 1 | O6: 1 | P6: 1 | Q6: 5 | R6: 0.2 | S6: 0.2 | T6: 0 | U6: 0 | V6: 0 | W6: 0 | X6: 0 | Y6: 0 | Z6: 0.2 | AA6: 0 | AB6: 0 | AC6: 0 | AD6: 0.2 | AE6: 0.2 | AF6: 0.0002625774604 | AG6: =town_establishments[[#This Row],[share of state establishments]]/($AF$250-$AF$249) -> 0.0002716062795 | AH6: =town_establishments[[#This Row],[share of state establishments (no residual)]]/(INDEX(regional_establishments[share of state establishments],MATCH(town_establishments[[#This Row],[Regional Planning Commission]],regional_establishments[Regional Planning Commission],0))) -> 0.007936507937 | AJ6: Chittenden County Regional Planning Commission | AK6: =SUMIF(town_establishments[Regional Planning Commission],AJ6,town_establishments[share of state establishments (no residual)]) -> 0.2943668858
A7: Arlington | B7: =INDEX(town_population[Regional Planning Commission],MATCH(town_establishments[[#This Row],[Municipality]],town_population[Municipality],0)) -> Bennington County Regional Commission | C7: 6 | D7: 12 | E7: 3 | F7: 1 | G7: 2 | H7: 5 | I7: 15 | K7: 9 | L7: 2 | M7: 5 | N7: 1 | O7: 10 | P7: 5 | Q7: 76 | R7: 0.07894736842 | S7: 0.1578947368 | T7: 0.03947368421 | U7: 0.01315789474 | V7: 0.02631578947 | W7: 0.06578947368 | X7: 0.1973684211 | Y7: 0 | Z7: 0.1184210526 | AA7: 0.02631578947 | AB7: 0.06578947368 | AC7: 0.01315789474 | AD7: 0.1315789474 | AE7: 0.06578947368 | AF7: 0.003991177397 | AG7: =town_establishments[[#This Row],[share of state establishments]]/($AF$250-$AF$249) -> 0.004128415449 | AH7: =town_establishments[[#This Row],[share of state establishments (no residual)]]/(INDEX(regional_establishments[share of state establishments],MATCH(town_establishments[[#This Row],[Regional Planning Commission]],regional_establishments[Regional Planning Commission],0))) -> 0.0662598082 | AJ7: Lamoille County Planning Commission | AK7: =SUMIF(town_establishments[Regional Planning Commission],AJ7,town_establishments[share of state establishments (no residual)]) -> 0.04432614482
A8: Athens | B8: =INDEX(town_population[Regional Planning Commission],MATCH(town_establishments[[#This Row],[Municipality]],town_population[Municipality],0)) -> Windham Regional Commission | K8: 1 | P8: 1 | Q8: 2 | R8: 0 | S8: 0 | T8: 0 | U8: 0 | V8: 0 | W8: 0 | X8: 0 | Y8: 0 | Z8: 0.5 | AA8: 0 | AB8: 0 | AC8: 0 | AD8: 0 | AE8: 0.5 | AF8: 0.0001050309841 | AG8: =town_establishments[[#This Row],[share of state establishments]]/($AF$250-$AF$249) -> 0.0001086425118 | AH8: =town_establishments[[#This Row],[share of state establishments (no residual)]]/(INDEX(regional_establishments[share of state establishments],MATCH(town_establishments[[#This Row],[Regional Planning Commission]],regional_establishments[Regional Planning Commission],0))) -> 0.001287830006 | AJ8: Northeastern Vermont Development Association | AK8: =SUMIF(town_establishments[Regional Planning Commission],AJ8,town_establishments[share of state establishments (no residual)]) -> 0.07925471237
A9: Averill | B9: =INDEX(town_population[Regional Planning Commission],MATCH(town_establishments[[#This Row],[Municipality]],town_population[Municipality],0)) -> Northeastern Vermont Development Association | L9: 1 | O9: 1 | Q9: 2 | R9: 0 | S9: 0 | T9: 0 | U9: 0 | V9: 0 | W9: 0 | X9: 0 | Y9: 0 | Z9: 0 | AA9: 0.5 | AB9: 0 | AC9: 0 | AD9: 0.5 | AE9: 0 | AF9: 0.0001050309841 | AG9: =town_establishments[[#This Row],[share of state establishments]]/($AF$250-$AF$249) -> 0.0001086425118 | AH9: =town_establishments[[#This Row],[share of state establishments (no residual)]]/(INDEX(regional_establishments[share of state establishments],MATCH(town_establishments[[#This Row],[Regional Planning Commission]],regional_establishments[Regional Planning Commission],0))) -> 0.001370801919 | AJ9: Northwest Regional Planning Commission | AK9: =SUMIF(town_establishments[Regional Planning Commission],AJ9,town_establishments[share of state establishments (no residual)]) -> 0.05551632354
A10: Bakersfield | B10: =INDEX(town_population[Regional Planning Commission],MATCH(town_establishments[[#This Row],[Municipality]],town_population[Municipality],0)) -> Northwest Regional Planning Commission | C10: 1 | D10: 1 | E10: 1 | I10: 1 | K10: 2 | L10: 1 | N10: 1 | P10: 1 | Q10: 9 | R10: 0.1111111111 | S10: 0.1111111111 | T10: 0.1111111111 | U10: 0 | V10: 0 | W10: 0 | X10: 0.1111111111 | Y10: 0 | Z10: 0.2222222222 | AA10: 0.1111111111 | AB10: 0 | AC10: 0.1111111111 | AD10: 0 | AE10: 0.1111111111 | AF10: 0.0004726394286 | AG10: =town_establishments[[#This Row],[share of state establishments]]/($AF$250-$AF$249) -> 0.0004888913032 | AH10: =town_establishments[[#This Row],[share of state establishments (no residual)]]/(INDEX(regional_establishments[share of state establishments],MATCH(town_establishments[[#This Row],[Regional Planning Commission]],regional_establishments[Regional Planning Commission],0))) -> 0.008806262231 | AJ10: Rutland Regional Planning Commission | AK10: =SUMIF(town_establishments[Regional Planning Commission],AJ10,town_establishments[share of state establishments (no residual)]) -> 0.096583193
A11: Baltimore | B11: =INDEX(town_population[Regional Planning Commission],MATCH(town_establishments[[#This Row],[Municipality]],town_population[Municipality],0)) -> Southern Windsor County Regional Planning Commission | I11: 1 | Q11: 1 | R11: 0 | S11: 0 | T11: 0 | U11: 0 | V11: 0 | W11: 0 | X11: 1 | Y11: 0 | Z11: 0 | AA11: 0 | AB11: 0 | AC11: 0 | AD11: 0 | AE11: 0 | AF11: 5.251549207e-05 | AG11: =town_establishments[[#This Row],[share of state establishments]]/($AF$250-$AF$249) -> 5.432125591e-05 | AH11: =town_establishments[[#This Row],[share of state establishments (no residual)]]/(INDEX(regional_establishments[share of state establishments],MATCH(town_establishments[[#This Row],[Regional Planning Commission]],regional_establishments[Regional Planning Commission],0))) -> 0.001587301587 | AJ11: Southern Windsor County Regional Planning Commission | AK11: =SUMIF(town_establishments[Regional Planning Commission],AJ11,town_establishments[share of state establishments (no residual)]) -> 0.03422239122
A12: Barnard | B12: =INDEX(town_population[Regional Planning Commission],MATCH(town_establishments[[#This Row],[Municipality]],town_population[Municipality],0)) -> Two Rivers-Ottauquechee Regional Commission | C12: 2 | D12: 1 | E12: 1 | H12: 2 | I12: 1 | K12: 4 | L12: 1 | M12: 0 | N12: 1 | O12: 4 | P12: 2 | Q12: 19 | R12: 0.1052631579 | S12: 0.05263157895 | T12: 0.05263157895 | U12: 0 | V12: 0 | W12: 0.1052631579 | X12: 0.05263157895 | Y12: 0 | Z12: 0.2105263158 | AA12: 0.05263157895 | AB12: 0 | AC12: 0.05263157895 | AD12: 0.2105263158 | AE12: 0.1052631579 | AF12: 0.0009977943493 | AG12: =town_establishments[[#This Row],[share of state establishments]]/($AF$250-$AF$249) -> 0.001032103862 | AH12: =town_establishments[[#This Row],[share of state establishments (no residual)]]/(INDEX(regional_establishments[share of state establishments],MATCH(town_establishments[[#This Row],[Regional Planning Commission]],regional_establishments[Regional Planning Commission],0))) -> 0.01172839506 | AJ12: Two Rivers-Ottauquechee Regional Commission | AK12: =SUMIF(town_establishments[Regional Planning Commission],AJ12,town_establishments[share of state establishments (no residual)]) -> 0.08800043457
A13: Barnet | B13: =INDEX(town_population[Regional Planning Commission],MATCH(town_establishments[[#This Row],[Municipality]],town_population[Municipality],0)) -> Northeastern Vermont Development Association | C13: 1 | D13: 5 | E13: 3 | F13: 1 | H13: 1 | I13: 3 | L13: 1 | M13: 1 | O13: 1 | P13: 1 | Q13: 18 | R13: 0.05555555556 | S13: 0.2777777778 | T13: 0.1666666667 | U13: 0.05555555556 | V13: 0 | W13: 0.05555555556 | X13: 0.1666666667 | Y13: 0 | Z13: 0 | AA13: 0.05555555556 | AB13: 0.05555555556 | AC13: 0 | AD13: 0.05555555556 | AE13: 0.05555555556 | AF13: 0.0009452788573 | AG13: =town_establishments[[#This Row],[share of state establishments]]/($AF$250-$AF$249) -> 0.0009777826063 | AH13: =town_establishments[[#This Row],[share of state establishments (no residual)]]/(INDEX(regional_establishments[share of state establishments],MATCH(town_establishments[[#This Row],[Regional Planning Commission]],regional_establishments[Regional Planning Commission],0))) -> 0.01233721727 | AJ13: Windham Regional Commission | AK13: =SUMIF(town_establishments[Regional Planning Commission],AJ13,town_establishments[share of state establishments (no residual)]) -> 0.08436091042
A14: Barre | B14: =INDEX(town_population[Regional Planning Commission],MATCH(town_establishments[[#This Row],[Municipality]],town_population[Municipality],0)) -> Central Vermont Regional Planning Commission | C14: 31 | D14: 73 | E14: 8 | F14: 5 | G14: 22 | H14: 10 | I14: 60 | J14: 1 | K14: 15 | L14: 3 | M14: 49 | N14: 6 | O14: 28 | P14: 37 | Q14: 348 | R14: 0.08908045977 | S14: 0.2097701149 | T14: 0.02298850575 | U14: 0.01436781609 | V14: 0.0632183908 | W14: 0.02873563218 | X14: 0.1724137931 | Y14: 0.002873563218 | Z14: 0.04310344828 | AA14: 0.008620689655 | AB14: 0.1408045977 | AC14: 0.01724137931 | AD14: 0.08045977011 | AE14: 0.1063218391 | AF14: 0.01827539124 | AG14: =town_establishments[[#This Row],[share of state establishments]]/($AF$250-$AF$249) -> 0.01890379706 | AH14: =town_establishments[[#This Row],[share of state establishments (no residual)]]/(INDEX(regional_establishments[share of state establishments],MATCH(town_establishments[[#This Row],[Regional Planning Commission]],regional_establishments[Regional Planning Commission],0))) -> 0.1715130606
A15: Barre City | B15: =INDEX(town_population[Regional Planning Commission],MATCH(town_establishments[[#This Row],[Municipality]],town_population[Municipality],0)) -> Central Vermont Regional Planning Commission | C15: 10 | D15: 18 | E15: 10 | F15: 1 | G15: 4 | H15: 2 | I15: 11 | J15: 1 | K15: 5 | L15: 2 | M15: 3 | N15: 1 | O15: 5 | P15: 11 | Q15: 84 | R15: 0.119047619 | S15: 0.2142857143 | T15: 0.119047619 | U15: 0.0119047619 | V15: 0.04761904762 | W15: 0.02380952381 | X15: 0.130952381 | Y15: 0.0119047619 | Z15: 0.05952380952 | AA15: 0.02380952381 | AB15: 0.03571428571 | AC15: 0.0119047619 | AD15: 0.05952380952 | AE15: 0.130952381 | AF15: 0.004411301334 | AG15: =town_establishments[[#This Row],[share of state establishments]]/($AF$250-$AF$249) -> 0.004562985496 | AH15: =town_establishments[[#This Row],[share of state establishments (no residual)]]/(INDEX(regional_establishments[share of state establishments],MATCH(town_establishments[[#This Row],[Regional Planning Commission]],regional_establishments[Regional Planning Commission],0))) -> 0.04139970429
A16: Barton | B16: =INDEX(town_population[Regional Planning Commission],MATCH(town_establishments[[#This Row],[Municipality]],town_population[Municipality],0)) -> Northeastern Vermont Development Association | C16: 8 | D16: 15 | E16: 7 | F16: 4 | G16: 6 | H16: 1 | I16: 7 | K16: 1 | L16: 4 | M16: 6 | N16: 3 | O16: 7 | P16: 9 | Q16: 78 | R16: 0.1025641026 | S16: 0.1923076923 | T16: 0.08974358974 | U16: 0.05128205128 | V16: 0.07692307692 | W16: 0.01282051282 | X16: 0.08974358974 | Y16: 0 | Z16: 0.01282051282 | AA16: 0.05128205128 | AB16: 0.07692307692 | AC16: 0.03846153846 | AD16: 0.08974358974 | AE16: 0.1153846154 | AF16: 0.004096208381 | AG16: =town_establishments[[#This Row],[share of state establishments]]/($AF$250-$AF$249) -> 0.004237057961 | AH16: =town_establishments[[#This Row],[share of state establishments (no residual)]]/(INDEX(regional_establishments[share of state establishments],MATCH(town_establishments[[#This Row],[Regional Planning Commission]],regional_establishments[Regional Planning Commission],0))) -> 0.05346127485
A17: Belvidere | B17: =INDEX(town_population[Regional Planning Commission],MATCH(town_establishments[[#This Row],[Municipality]],town_population[Municipality],0)) -> Lamoille County Planning Commission | E17: 1 | F17: 1 | I17: 1 | L17: 1 | P17: 1 | Q17: 5 | R17: 0 | S17: 0 | T17: 0.2 | U17: 0.2 | V17: 0 | W17: 0 | X17: 0.2 | Y17: 0 | Z17: 0 | AA17: 0.2 | AB17: 0 | AC17: 0 | AD17: 0 | AE17: 0.2 | AF17: 0.0002625774604 | AG17: =town_establishments[[#This Row],[share of state establishments]]/($AF$250-$AF$249) -> 0.0002716062795 | AH17: =town_establishments[[#This Row],[share of state establishments (no residual)]]/(INDEX(regional_establishments[share of state establishments],MATCH(town_establishments[[#This Row],[Regional Planning Commission]],regional_establishments[Regional Planning Commission],0))) -> 0.00612745098
A18: Bennington | B18: =INDEX(town_population[Regional Planning Commission],MATCH(town_establishments[[#This Row],[Municipality]],town_population[Municipality],0)) -> Bennington County Regional Commission | C18: 21 | D18: 105 | E18: 11 | F18: 17 | G18: 25 | H18: 14 | I18: 52 | J18: 1 | K18: 37 | L18: 11 | M18: 81 | N18: 10 | O18: 51 | P18: 43 | Q18: 479 | R18: 0.04384133612 | S18: 0.2192066806 | T18: 0.02296450939 | U18: 0.03549060543 | V18: 0.05219206681 | W18: 0.02922755741 | X18: 0.108559499 | Y18: 0.002087682672 | Z18: 0.07724425887 | AA18: 0.02296450939 | AB18: 0.1691022965 | AC18: 0.02087682672 | AD18: 0.1064718163 | AE18: 0.08977035491 | AF18: 0.0251549207 | AG18: =town_establishments[[#This Row],[share of state establishments]]/($AF$250-$AF$249) -> 0.02601988158 | AH18: =town_establishments[[#This Row],[share of state establishments (no residual)]]/(INDEX(regional_establishments[share of state establishments],MATCH(town_establishments[[#This Row],[Regional Planning Commission]],regional_establishments[Regional Planning Commission],0))) -> 0.4176111595
A19: Benson | B19: =INDEX(town_population[Regional Planning Commission],MATCH(town_establishments[[#This Row],[Municipality]],town_population[Municipality],0)) -> Rutland Regional Planning Commission | C19: 4 | D19: 3 | F19: 0 | G19: 1 | H19: 0 | I19: 2 | K19: 2 | L19: 1 | O19: 1 | Q19: 14 | R19: 0.2857142857 | S19: =IF($Q19<>0,D19/$Q19,0) -> 0.2142857143 | T19: =IF($Q19<>0,E19/$Q19,0) -> 0 | U19: =IF($Q19<>0,F19/$Q19,0) -> 0 | V19: =IF($Q19<>0,G19/$Q19,0) -> 0.07142857143 | W19: =IF($Q19<>0,H19/$Q19,0) -> 0 | X19: =IF($Q19<>0,I19/$Q19,0) -> 0.1428571429 | Y19: =IF($Q19<>0,J19/$Q19,0) -> 0 | Z19: =IF($Q19<>0,K19/$Q19,0) -> 0.1428571429 | AA19: =IF($Q19<>0,L19/$Q19,0) -> 0.07142857143 | AB19: =IF($Q19<>0,M19/$Q19,0) -> 0 | AC19: =IF($Q19<>0,N19/$Q19,0) -> 0 | AD19: =IF($Q19<>0,O19/$Q19,0) -> 0.07142857143 | AE19: =IF($Q19<>0,P19/$Q19,0) -> 0 | AF19: =Q19/Q$250 -> 0.000735216889 | AG19: =town_establishments[[#This Row],[share of state establishments]]/($AF$250-$AF$249) -> 0.0007604975827 | AH19: =town_establishments[[#This Row],[share of state establishments (no residual)]]/(INDEX(regional_establishments[share of state establishments],MATCH(town_establishments[[#This Row],[Regional Planning Commission]],regional_establishments[Regional Planning Commission],0))) -> 0.007874015748
A20: Berkshire | B20: =INDEX(town_population[Regional Planning Commission],MATCH(town_establishments[[#This Row],[Municipality]],town_population[Municipality],0)) -> Northwest Regional Planning Commission | C20: 1 | D20: 1 | E20: 2 | L20: 1 | O20: 1 | P20: 1 | Q20: 7 | R20: 0.1428571429 | S20: 0.1428571429 | T20: 0.2857142857 | U20: 0 | V20: 0 | W20: 0 | X20: 0 | Y20: 0 | Z20: 0 | AA20: 0.1428571429 | AB20: 0 | AC20: 0 | AD20: 0.1428571429 | AE20: 0.1428571429 | AF20: 0.0003676084445 | AG20: =town_establishments[[#This Row],[share of state establishments]]/($AF$250-$AF$249) -> 0.0003802487914 | AH20: =town_establishments[[#This Row],[share of state establishments (no residual)]]/(INDEX(regional_establishments[share of state establishments],MATCH(town_establishments[[#This Row],[Regional Planning Commission]],regional_establishments[Regional Planning Commission],0))) -> 0.006849315068
A21: Berlin | B21: =INDEX(town_population[Regional Planning Commission],MATCH(town_establishments[[#This Row],[Municipality]],town_population[Municipality],0)) -> Central Vermont Regional Planning Commission | C21: 17 | D21: 47 | E21: 5 | F21: 2 | G21: 12 | H21: 3 | I21: 11 | J21: 1 | K21: 9 | L21: 1 | M21: 39 | N21: 5 | O21: 13 | P21: 17 | Q21: 182 | R21: 0.09340659341 | S21: 0.2582417582 | T21: 0.02747252747 | U21: 0.01098901099 | V21: 0.06593406593 | W21: 0.01648351648 | X21: 0.06043956044 | Y21: 0.005494505495 | Z21: 0.04945054945 | AA21: 0.005494505495 | AB21: 0.2142857143 | AC21: 0.02747252747 | AD21: 0.07142857143 | AE21: 0.09340659341 | AF21: 0.009557819557 | AG21: =town_establishments[[#This Row],[share of state establishments]]/($AF$250-$AF$249) -> 0.009886468575 | AH21: =town_establishments[[#This Row],[share of state establishments (no residual)]]/(INDEX(regional_establishments[share of state establishments],MATCH(town_establishments[[#This Row],[Regional Planning Commission]],regional_establishments[Regional Planning Commission],0))) -> 0.08969935929
A22: Bethel | B22: =INDEX(town_population[Regional Planning Commission],MATCH(town_establishments[[#This Row],[Municipality]],town_population[Municipality],0)) -> Two Rivers-Ottauquechee Regional Commission | C22: 5 | D22: 14 | E22: 1 | F22: 2 | G22: 5 | I22: 9 | K22: 3 | L22: 2 | M22: 3 | N22: 1 | O22: 7 | P22: 4 | Q22: 56 | R22: 0.08928571429 | S22: 0.25 | T22: 0.01785714286 | U22: 0.03571428571 | V22: 0.08928571429 | W22: 0 | X22: 0.1607142857 | Y22: 0 | Z22: 0.05357142857 | AA22: 0.03571428571 | AB22: 0.05357142857 | AC22: 0.01785714286 | AD22: 0.125 | AE22: 0.07142857143 | AF22: 0.002940867556 | AG22: =town_establishments[[#This Row],[share of state establishments]]/($AF$250-$AF$249) -> 0.003041990331 | AH22: =town_establishments[[#This Row],[share of state establishments (no residual)]]/(INDEX(regional_establishments[share of state establishments],MATCH(town_establishments[[#This Row],[Regional Planning Commission]],regional_establishments[Regional Planning Commission],0))) -> 0.03456790123
A23: Bloomfield | B23: =INDEX(town_population[Regional Planning Commission],MATCH(town_establishments[[#This Row],[Municipality]],town_population[Municipality],0)) -> Northeastern Vermont Development Association | G23: 1 | K23: 1 | Q23: 2 | R23: 0 | S23: 0 | T23: 0 | U23: 0 | V23: 0.5 | W23: 0 | X23: 0 | Y23: 0 | Z23: 0.5 | AA23: 0 | AB23: 0 | AC23: 0 | AD23: 0 | AE23: 0 | AF23: 0.0001050309841 | AG23: =town_establishments[[#This Row],[share of state establishments]]/($AF$250-$AF$249) -> 0.0001086425118 | AH23: =town_establishments[[#This Row],[share of state establishments (no residual)]]/(INDEX(regional_establishments[share of state establishments],MATCH(town_establishments[[#This Row],[Regional Planning Commission]],regional_establishments[Regional Planning Commission],0))) -> 0.001370801919
A24: Bolton | B24: =INDEX(town_population[Regional Planning Commission],MATCH(town_establishments[[#This Row],[Municipality]],town_population[Municipality],0)) -> Chittenden County Regional Planning Commission | C24: 1 | D24: 2 | H24: 1 | I24: 5 | K24: 1 | L24: 2 | N24: 1 | O24: 1 | Q24: 14 | R24: 0.07142857143 | S24: 0.1428571429 | T24: 0 | U24: 0 | V24: 0 | W24: 0.07142857143 | X24: 0.3571428571 | Y24: 0 | Z24: 0.07142857143 | AA24: 0.1428571429 | AB24: 0 | AC24: 0.07142857143 | AD24: 0.07142857143 | AE24: 0 | AF24: 0.000735216889 | AG24: =town_establishments[[#This Row],[share of state establishments]]/($AF$250-$AF$249) -> 0.0007604975827 | AH24: =town_establishments[[#This Row],[share of state establishments (no residual)]]/(INDEX(regional_establishments[share of state establishments],MATCH(town_establishments[[#This Row],[Regional Planning Commission]],regional_establishments[Regional Planning Commission],0))) -> 0.002583502491
A25: Bradford | B25: =INDEX(town_population[Regional Planning Commission],MATCH(town_establishments[[#This Row],[Municipality]],town_population[Municipality],0)) -> Two Rivers-Ottauquechee Regional Commission | C25: 2 | D25: 16 | E25: 2 | F25: 2 | G25: 7 | H25: 3 | I25: 6 | J25: 1 | K25: 4 | L25: 2 | M25: 17 | N25: 2 | O25: 9 | P25: 12 | Q25: 85 | R25: 0.02352941176 | S25: 0.1882352941 | T25: 0.02352941176 | U25: 0.02352941176 | V25: 0.08235294118 | W25: 0.03529411765 | X25: 0.07058823529 | Y25: 0.01176470588 | Z25: 0.04705882353 | AA25: 0.02352941176 | AB25: 0.2 | AC25: 0.02352941176 | AD25: 0.1058823529 | AE25: 0.1411764706 | AF25: 0.004463816826 | AG25: =town_establishments[[#This Row],[share of state establishments]]/($AF$250-$AF$249) -> 0.004617306752 | AH25: =town_establishments[[#This Row],[share of state establishments (no residual)]]/(INDEX(regional_establishments[share of state establishments],MATCH(town_establishments[[#This Row],[Regional Planning Commission]],regional_establishments[Regional Planning Commission],0))) -> 0.0524691358
A26: Braintree | B26: =INDEX(town_population[Regional Planning Commission],MATCH(town_establishments[[#This Row],[Municipality]],town_population[Municipality],0)) -> Two Rivers-Ottauquechee Regional Commission | C26: 1 | E26: 0 | I26: 2 | K26: 1 | L26: 1 | O26: 1 | P26: 2 | Q26: 8 | R26: 0.125 | S26: 0 | T26: 0 | U26: 0 | V26: 0 | W26: 0 | X26: 0.25 | Y26: 0 | Z26: 0.125 | AA26: 0.125 | AB26: 0 | AC26: 0 | AD26: 0.125 | AE26: 0.25 | AF26: 0.0004201239366 | AG26: =town_establishments[[#This Row],[share of state establishments]]/($AF$250-$AF$249) -> 0.0004345700473 | AH26: =town_establishments[[#This Row],[share of state establishments (no residual)]]/(INDEX(regional_establishments[share of state establishments],MATCH(town_establishments[[#This Row],[Regional Planning Commission]],regional_establishments[Regional Planning Commission],0))) -> 0.004938271605
A27: Brandon | B27: =INDEX(town_population[Regional Planning Commission],MATCH(town_establishments[[#This Row],[Municipality]],town_population[Municipality],0)) -> Rutland Regional Planning Commission | C27: 7 | D27: 25 | E27: 1 | F27: 4 | G27: 2 | H27: 1 | I27: 6 | K27: 4 | L27: 2 | M27: 9 | N27: 2 | O27: 12 | P27: 11 | Q27: 86 | R27: 0.08139534884 | S27: 0.2906976744 | T27: 0.01162790698 | U27: 0.04651162791 | V27: 0.02325581395 | W27: 0.01162790698 | X27: 0.06976744186 | Y27: 0 | Z27: 0.04651162791 | AA27: 0.02325581395 | AB27: 0.1046511628 | AC27: 0.02325581395 | AD27: 0.1395348837 | AE27: 0.1279069767 | AF27: 0.004516332318 | AG27: =town_establishments[[#This Row],[share of state establishments]]/($AF$250-$AF$249) -> 0.004671628008 | AH27: =town_establishments[[#This Row],[share of state establishments (no residual)]]/(INDEX(regional_establishments[share of state establishments],MATCH(town_establishments[[#This Row],[Regional Planning Commission]],regional_establishments[Regional Planning Commission],0))) -> 0.04836895388
A28: Brattleboro | B28: =INDEX(town_population[Regional Planning Commission],MATCH(town_establishments[[#This Row],[Municipality]],town_population[Municipality],0)) -> Windham Regional Commission | C28: 41 | D28: 109 | E28: 9 | F28: 18 | G28: 27 | H28: 28 | I28: 69 | J28: 2 | K28: 32 | L28: 26 | M28: 97 | N28: 14 | O28: 72 | P28: 62 | Q28: 606 | R28: 0.06765676568 | S28: 0.1798679868 | T28: 0.01485148515 | U28: 0.0297029703 | V28: 0.04455445545 | W28: 0.04620462046 | X28: 0.1138613861 | Y28: 0.003300330033 | Z28: 0.05280528053 | AA28: 0.04290429043 | AB28: 0.1600660066 | AC28: 0.02310231023 | AD28: 0.1188118812 | AE28: 0.102310231 | AF28: 0.03182438819 | AG28: =town_establishments[[#This Row],[share of state establishments]]/($AF$250-$AF$249) -> 0.03291868108 | AH28: =town_establishments[[#This Row],[share of state establishments (no residual)]]/(INDEX(regional_establishments[share of state establishments],MATCH(town_establishments[[#This Row],[Regional Planning Commission]],regional_establishments[Regional Planning Commission],0))) -> 0.390212492
A29: Bridgewater | B29: =INDEX(town_population[Regional Planning Commission],MATCH(town_establishments[[#This Row],[Municipality]],town_population[Municipality],0)) -> Two Rivers-Ottauquechee Regional Commission | D29: 4 | E29: 2 | I29: 4 | K29: 3 | L29: 1 | N29: 1 | O29: 4 | P29: 2 | Q29: 21 | R29: 0 | S29: 0.1904761905 | T29: 0.09523809524 | U29: 0 | V29: 0 | W29: 0 | X29: 0.1904761905 | Y29: 0 | Z29: 0.1428571429 | AA29: 0.04761904762 | AB29: 0 | AC29: 0.04761904762 | AD29: 0.1904761905 | AE29: 0.09523809524 | AF29: 0.001102825333 | AG29: =town_establishments[[#This Row],[share of state establishments]]/($AF$250-$AF$249) -> 0.001140746374 | AH29: =town_establishments[[#This Row],[share of state establishments (no residual)]]/(INDEX(regional_establishments[share of state establishments],MATCH(town_establishments[[#This Row],[Regional Planning Commission]],regional_establishments[Regional Planning Commission],0))) -> 0.01296296296
A30: Bridport | B30: =INDEX(town_population[Regional Planning Commission],MATCH(town_establishments[[#This Row],[Municipality]],town_population[Municipality],0)) -> Addison County Regional Planning Commission | C30: 3 | D30: 4 | E30: 3 | G30: 2 | I30: 7 | K30: 3 | L30: 1 | M30: 1 | Q30: 24 | R30: 0.125 | S30: 0.1666666667 | T30: 0.125 | U30: 0 | V30: 0.08333333333 | W30: 0 | X30: 0.2916666667 | Y30: 0 | Z30: 0.125 | AA30: 0.04166666667 | AB30: 0.04166666667 | AC30: 0 | AD30: 0 | AE30: 0 | AF30: 0.00126037181 | AG30: =town_establishments[[#This Row],[share of state establishments]]/($AF$250-$AF$249) -> 0.001303710142 | AH30: =town_establishments[[#This Row],[share of state establishments (no residual)]]/(INDEX(regional_establishments[share of state establishments],MATCH(town_establishments[[#This Row],[Regional Planning Commission]],regional_establishments[Regional Planning Commission],0))) -> 0.02564102564
A31: Brighton | B31: =INDEX(town_population[Regional Planning Commission],MATCH(town_establishments[[#This Row],[Municipality]],town_population[Municipality],0)) -> Northeastern Vermont Development Association | C31: 3 | D31: 7 | E31: 3 | F31: 2 | G31: 2 | H31: 1 | I31: 1 | K31: 3 | L31: 1 | M31: 4 | N31: 2 | O31: 5 | P31: 2 | Q31: 36 | R31: 0.08333333333 | S31: 0.1944444444 | T31: 0.08333333333 | U31: 0.05555555556 | V31: 0.05555555556 | W31: 0.02777777778 | X31: 0.02777777778 | Y31: 0 | Z31: 0.08333333333 | AA31: 0.02777777778 | AB31: 0.1111111111 | AC31: 0.05555555556 | AD31: 0.1388888889 | AE31: 0.05555555556 | AF31: 0.001890557715 | AG31: =town_establishments[[#This Row],[share of state establishments]]/($AF$250-$AF$249) -> 0.001955565213 | AH31: =town_establishments[[#This Row],[share of state establishments (no residual)]]/(INDEX(regional_establishments[share of state establishments],MATCH(town_establishments[[#This Row],[Regional Planning Commission]],regional_establishments[Regional Planning Commission],0))) -> 0.02467443454
A32: Bristol | B32: =INDEX(town_population[Regional Planning Commission],MATCH(town_establishments[[#This Row],[Municipality]],town_population[Municipality],0)) -> Addison County Regional Planning Commission | C32: 3 | D32: 18 | E32: 3 | F32: 2 | G32: 7 | H32: 1 | I32: 30 | K32: 12 | L32: 2 | M32: 13 | N32: 2 | O32: 10 | P32: 12 | Q32: 115 | R32: 0.02608695652 | S32: 0.1565217391 | T32: 0.02608695652 | U32: 0.01739130435 | V32: 0.06086956522 | W32: 0.008695652174 | X32: 0.2608695652 | Y32: 0 | Z32: 0.1043478261 | AA32: 0.01739130435 | AB32: 0.1130434783 | AC32: 0.01739130435 | AD32: 0.08695652174 | AE32: 0.1043478261 | AF32: 0.006039281588 | AG32: =town_establishments[[#This Row],[share of state establishments]]/($AF$250-$AF$249) -> 0.006246944429 | AH32: =town_establishments[[#This Row],[share of state establishments (no residual)]]/(INDEX(regional_establishments[share of state establishments],MATCH(town_establishments[[#This Row],[Regional Planning Commission]],regional_establishments[Regional Planning Commission],0))) -> 0.1228632479
A33: Brookfield | B33: =INDEX(town_population[Regional Planning Commission],MATCH(town_establishments[[#This Row],[Municipality]],town_population[Municipality],0)) -> Two Rivers-Ottauquechee Regional Commission | E33: 1 | F33: 1 | I33: 5 | K33: 2 | L33: 1 | O33: 1 | P33: 1 | Q33: 12 | R33: 0 | S33: 0 | T33: 0.08333333333 | U33: 0.08333333333 | V33: 0 | W33: 0 | X33: 0.4166666667 | Y33: 0 | Z33: 0.1666666667 | AA33: 0.08333333333 | AB33: 0 | AC33: 0 | AD33: 0.08333333333 | AE33: 0.08333333333 | AF33: 0.0006301859048 | AG33: =town_establishments[[#This Row],[share of state establishments]]/($AF$250-$AF$249) -> 0.0006518550709 | AH33: =town_establishments[[#This Row],[share of state establishments (no residual)]]/(INDEX(regional_establishments[share of state establishments],MATCH(town_establishments[[#This Row],[Regional Planning Commission]],regional_establishments[Regional Planning Commission],0))) -> 0.007407407407
A34: Brookline | B34: =INDEX(town_population[Regional Planning Commission],MATCH(town_establishments[[#This Row],[Municipality]],town_population[Municipality],0)) -> Windham Regional Commission | C34: 1 | D34: 1 | E34: 1 | I34: 3 | K34: 1 | M34: 1 | N34: 1 | Q34: 9 | R34: 0.1111111111 | S34: 0.1111111111 | T34: 0.1111111111 | U34: 0 | V34: 0 | W34: 0 | X34: 0.3333333333 | Y34: 0 | Z34: 0.1111111111 | AA34: 0 | AB34: 0.1111111111 | AC34: 0.1111111111 | AD34: 0 | AE34: 0 | AF34: 0.0004726394286 | AG34: =town_establishments[[#This Row],[share of state establishments]]/($AF$250-$AF$249) -> 0.0004888913032 | AH34: =town_establishments[[#This Row],[share of state establishments (no residual)]]/(INDEX(regional_establishments[share of state establishments],MATCH(town_establishments[[#This Row],[Regional Planning Commission]],regional_establishments[Regional Planning Commission],0))) -> 0.005795235029
A35: Brownington | B35: =INDEX(town_population[Regional Planning Commission],MATCH(town_establishments[[#This Row],[Municipality]],town_population[Municipality],0)) -> Northeastern Vermont Development Association | C35: 1 | D35: 1 | I35: 2 | K35: 1 | L35: 1 | N35: 1 | O35: 1 | P35: 1 | Q35: 9 | R35: 0.1111111111 | S35: 0.1111111111 | T35: 0 | U35: 0 | V35: 0 | W35: 0 | X35: 0.2222222222 | Y35: 0 | Z35: 0.1111111111 | AA35: 0.1111111111 | AB35: 0 | AC35: 0.1111111111 | AD35: 0.1111111111 | AE35: 0.1111111111 | AF35: 0.0004726394286 | AG35: =town_establishments[[#This Row],[share of state establishments]]/($AF$250-$AF$249) -> 0.0004888913032 | AH35: =town_establishments[[#This Row],[share of state establishments (no residual)]]/(INDEX(regional_establishments[share of state establishments],MATCH(town_establishments[[#This Row],[Regional Planning Commission]],regional_establishments[Regional Planning Commission],0))) -> 0.006168608636
A36: Brunswick | B36: =INDEX(town_population[Regional Planning Commission],MATCH(town_establishments[[#This Row],[Municipality]],town_population[Municipality],0)) -> Northeastern Vermont Development Association | Q36: 0 | R36: 0 | S36: 0 | T36: 0 | U36: 0 | V36: 0 | W36: 0 | X36: 0 | Y36: 0 | Z36: 0 | AA36: 0 | AB36: 0 | AC36: 0 | AD36: 0 | AE36: 0 | AF36: 0 | AG36: =town_establishments[[#This Row],[share of state establishments]]/($AF$250-$AF$249) -> 0 | AH36: =town_establishments[[#This Row],[share of state establishments (no residual)]]/(INDEX(regional_establishments[share of state establishments],MATCH(town_establishments[[#This Row],[Regional Planning Commission]],regional_establishments[Regional Planning Commission],0))) -> 0
A37: Burke | B37: =INDEX(town_population[Regional Planning Commission],MATCH(town_establishments[[#This Row],[Municipality]],town_population[Municipality],0)) -> Northeastern Vermont Development Association | C37: 8 | D37: 7 | E37: 1 | H37: 3 | I37: 6 | K37: 4 | L37: 2 | N37: 1 | O37: 8 | P37: 5 | Q37: 45 | R37: 0.1777777778 | S37: 0.1555555556 | T37: 0.02222222222 | U37: 0 | V37: 0 | W37: 0.06666666667 | X37: 0.1333333333 | Y37: 0 | Z37: 0.08888888889 | AA37: 0.04444444444 | AB37: 0 | AC37: 0.02222222222 | AD37: 0.1777777778 | AE37: 0.1111111111 | AF37: 0.002363197143 | AG37: =town_establishments[[#This Row],[share of state establishments]]/($AF$250-$AF$249) -> 0.002444456516 | AH37: =town_establishments[[#This Row],[share of state establishments (no residual)]]/(INDEX(regional_establishments[share of state establishments],MATCH(town_establishments[[#This Row],[Regional Planning Commission]],regional_establishments[Regional Planning Commission],0))) -> 0.03084304318
A38: Burlington | B38: =INDEX(town_population[Regional Planning Commission],MATCH(town_establishments[[#This Row],[Municipality]],town_population[Municipality],0)) -> Chittenden County Regional Planning Commission | C38: 66 | D38: 209 | E38: 23 | F38: 37 | G38: 91 | H38: 63 | I38: 343 | J38: 9 | K38: 92 | L38: 37 | M38: 141 | N38: 32 | O38: 160 | P38: 133 | Q38: 1436 | R38: 0.04596100279 | S38: 0.1455431755 | T38: 0.01601671309 | U38: 0.02576601671 | V38: 0.06337047354 | W38: 0.0438718663 | X38: 0.2388579387 | Y38: 0.006267409471 | Z38: 0.06406685237 | AA38: 0.02576601671 | AB38: 0.09818941504 | AC38: 0.02228412256 | AD38: 0.1114206128 | AE38: 0.0926183844 | AF38: =Q38/Q$250 -> 0.07541224661 | AG38: =town_establishments[[#This Row],[share of state establishments]]/($AF$250-$AF$249) -> 0.07800532348 | AH38: =town_establishments[[#This Row],[share of state establishments (no residual)]]/(INDEX(regional_establishments[share of state establishments],MATCH(town_establishments[[#This Row],[Regional Planning Commission]],regional_establishments[Regional Planning Commission],0))) -> 0.2649935412
A39: Cabot | B39: =INDEX(town_population[Regional Planning Commission],MATCH(town_establishments[[#This Row],[Municipality]],town_population[Municipality],0)) -> Central Vermont Regional Planning Commission | C39: 2 | D39: 2 | E39: 1 | G39: 1 | I39: 4 | L39: 1 | M39: 2 | O39: 1 | P39: 4 | Q39: 18 | R39: 0.1111111111 | S39: 0.1111111111 | T39: 0.05555555556 | U39: 0 | V39: 0.05555555556 | W39: 0 | X39: 0.2222222222 | Y39: 0 | Z39: 0 | AA39: 0.05555555556 | AB39: 0.1111111111 | AC39: 0 | AD39: 0.05555555556 | AE39: 0.2222222222 | AF39: 0.0009452788573 | AG39: =town_establishments[[#This Row],[share of state establishments]]/($AF$250-$AF$249) -> 0.0009777826063 | AH39: =town_establishments[[#This Row],[share of state establishments (no residual)]]/(INDEX(regional_establishments[share of state establishments],MATCH(town_establishments[[#This Row],[Regional Planning Commission]],regional_establishments[Regional Planning Commission],0))) -> 0.008871365205
A40: Calais | B40: =INDEX(town_population[Regional Planning Commission],MATCH(town_establishments[[#This Row],[Municipality]],town_population[Municipality],0)) -> Central Vermont Regional Planning Commission | D40: 3 | E40: 2 | I40: 2 | J40: 1 | K40: 2 | L40: 3 | M40: 1 | N40: 2 | O40: 1 | P40: 3 | Q40: 20 | R40: 0 | S40: 0.15 | T40: 0.1 | U40: 0 | V40: 0 | W40: 0 | X40: 0.1 | Y40: 0.05 | Z40: 0.1 | AA40: 0.15 | AB40: 0.05 | AC40: 0.1 | AD40: 0.05 | AE40: 0.15 | AF40: 0.001050309841 | AG40: =town_establishments[[#This Row],[share of state establishments]]/($AF$250-$AF$249) -> 0.001086425118 | AH40: =town_establishments[[#This Row],[share of state establishments (no residual)]]/(INDEX(regional_establishments[share of state establishments],MATCH(town_establishments[[#This Row],[Regional Planning Commission]],regional_establishments[Regional Planning Commission],0))) -> 0.009857072449
A41: Cambridge | B41: =INDEX(town_population[Regional Planning Commission],MATCH(town_establishments[[#This Row],[Municipality]],town_population[Municipality],0)) -> Lamoille County Planning Commission | C41: 7 | D41: 14 | E41: 2 | F41: 1 | G41: 3 | H41: 1 | I41: 14 | K41: 12 | L41: 1 | M41: 8 | N41: 5 | O41: 14 | P41: 13 | Q41: 95 | R41: 0.07368421053 | S41: 0.1473684211 | T41: 0.02105263158 | U41: 0.01052631579 | V41: 0.03157894737 | W41: 0.01052631579 | X41: 0.1473684211 | Y41: 0 | Z41: 0.1263157895 | AA41: 0.01052631579 | AB41: 0.08421052632 | AC41: 0.05263157895 | AD41: 0.1473684211 | AE41: 0.1368421053 | AF41: 0.004988971747 | AG41: =town_establishments[[#This Row],[share of state establishments]]/($AF$250-$AF$249) -> 0.005160519311 | AH41: =town_establishments[[#This Row],[share of state establishments (no residual)]]/(INDEX(regional_establishments[share of state establishments],MATCH(town_establishments[[#This Row],[Regional Planning Commission]],regional_establishments[Regional Planning Commission],0))) -> 0.1164215686
A42: Canaan | B42: =INDEX(town_population[Regional Planning Commission],MATCH(town_establishments[[#This Row],[Municipality]],town_population[Municipality],0)) -> Northeastern Vermont Development Association | D42: 0 | E42: 1 | G42: 1 | I42: 1 | K42: 2 | L42: 1 | M42: 2 | N42: 2 | O42: 2 | P42: 2 | Q42: 14 | R42: 0 | S42: 0 | T42: 0.07142857143 | U42: 0 | V42: 0.07142857143 | W42: 0 | X42: 0.07142857143 | Y42: 0 | Z42: 0.1428571429 | AA42: 0.07142857143 | AB42: 0.1428571429 | AC42: 0.1428571429 | AD42: 0.1428571429 | AE42: 0.1428571429 | AF42: 0.000735216889 | AG42: =town_establishments[[#This Row],[share of state establishments]]/($AF$250-$AF$249) -> 0.0007604975827 | AH42: =town_establishments[[#This Row],[share of state establishments (no residual)]]/(INDEX(regional_establishments[share of state establishments],MATCH(town_establishments[[#This Row],[Regional Planning Commission]],regional_establishments[Regional Planning Commission],0))) -> 0.009595613434
A43: Castleton | B43: =INDEX(town_population[Regional Planning Commission],MATCH(town_establishments[[#This Row],[Municipality]],town_population[Municipality],0)) -> Rutland Regional Planning Commission | C43: 6 | D43: 20 | E43: 1 | F43: 2 | G43: 5 | H43: 3 | I43: 9 | J43: 1 | K43: 10 | L43: 1 | M43: 11 | N43: 2 | O43: 15 | P43: 15 | Q43: 101 | R43: 0.05940594059 | S43: 0.198019802 | T43: 0.009900990099 | U43: 0.0198019802 | V43: 0.0495049505 | W43: 0.0297029703 | X43: 0.08910891089 | Y43: 0.009900990099 | Z43: 0.09900990099 | AA43: 0.009900990099 | AB43: 0.1089108911 | AC43: 0.0198019802 | AD43: 0.1485148515 | AE43: 0.1485148515 | AF43: 0.005304064699 | AG43: =town_establishments[[#This Row],[share of state establishments]]/($AF$250-$AF$249) -> 0.005486446847 | AH43: =town_establishments[[#This Row],[share of state establishments (no residual)]]/(INDEX(regional_establishments[share of state establishments],MATCH(town_establishments[[#This Row],[Regional Planning Commission]],regional_establishments[Regional Planning Commission],0))) -> 0.05680539933
A44: Cavendish | B44: =INDEX(town_population[Regional Planning Commission],MATCH(town_establishments[[#This Row],[Municipality]],town_population[Municipality],0)) -> Southern Windsor County Regional Planning Commission | C44: 2 | D44: 1 | E44: 1 | H44: 3 | I44: 2 | K44: 6 | L44: 1 | M44: 4 | N44: 1 | O44: 2 | P44: 4 | Q44: 27 | R44: 0.07407407407 | S44: 0.03703703704 | T44: 0.03703703704 | U44: 0 | V44: 0 | W44: 0.1111111111 | X44: 0.07407407407 | Y44: 0 | Z44: 0.2222222222 | AA44: 0.03703703704 | AB44: 0.1481481481 | AC44: 0.03703703704 | AD44: 0.07407407407 | AE44: 0.1481481481 | AF44: 0.001417918286 | AG44: =town_establishments[[#This Row],[share of state establishments]]/($AF$250-$AF$249) -> 0.00146667391 | AH44: =town_establishments[[#This Row],[share of state establishments (no residual)]]/(INDEX(regional_establishments[share of state establishments],MATCH(town_establishments[[#This Row],[Regional Planning Commission]],regional_establishments[Regional Planning Commission],0))) -> 0.04285714286
A45: Charleston | B45: =INDEX(town_population[Regional Planning Commission],MATCH(town_establishments[[#This Row],[Municipality]],town_population[Municipality],0)) -> Northeastern Vermont Development Association | C45: 1 | D45: 1 | E45: 2 | F45: 1 | H45: 2 | K45: 2 | L45: 1 | P45: 3 | Q45: 13 | R45: 0.07692307692 | S45: 0.07692307692 | T45: 0.1538461538 | U45: 0.07692307692 | V45: 0 | W45: 0.1538461538 | X45: 0 | Y45: 0 | Z45: 0.1538461538 | AA45: 0.07692307692 | AB45: 0 | AC45: 0 | AD45: 0 | AE45: 0.2307692308 | AF45: 0.0006827013969 | AG45: =town_establishments[[#This Row],[share of state establishments]]/($AF$250-$AF$249) -> 0.0007061763268 | AH45: =town_establishments[[#This Row],[share of state establishments (no residual)]]/(INDEX(regional_establishments[share of state establishments],MATCH(town_establishments[[#This Row],[Regional Planning Commission]],regional_establishments[Regional Planning Commission],0))) -> 0.008910212474
A46: Charlotte | B46: =INDEX(town_population[Regional Planning Commission],MATCH(town_establishments[[#This Row],[Municipality]],town_population[Municipality],0)) -> Chittenden County Regional Planning Commission | C46: 10 | D46: 9 | E46: 1 | F46: 6 | G46: 2 | H46: 2 | I46: 33 | K46: 12 | L46: 5 | M46: 3 | N46: 4 | O46: 3 | P46: 18 | Q46: 108 | R46: 0.09259259259 | S46: 0.08333333333 | T46: 0.009259259259 | U46: 0.05555555556 | V46: 0.01851851852 | W46: 0.01851851852 | X46: 0.3055555556 | Y46: 0 | Z46: 0.1111111111 | AA46: 0.0462962963 | AB46: 0.02777777778 | AC46: 0.03703703704 | AD46: 0.02777777778 | AE46: 0.1666666667 | AF46: 0.005671673144 | AG46: =town_establishments[[#This Row],[share of state establishments]]/($AF$250-$AF$249) -> 0.005866695638 | AH46: =town_establishments[[#This Row],[share of state establishments (no residual)]]/(INDEX(regional_establishments[share of state establishments],MATCH(town_establishments[[#This Row],[Regional Planning Commission]],regional_establishments[Regional Planning Commission],0))) -> 0.01992987636
A47: Chelsea | B47: =INDEX(town_population[Regional Planning Commission],MATCH(town_establishments[[#This Row],[Municipality]],town_population[Municipality],0)) -> Two Rivers-Ottauquechee Regional Commission | D47: 4 | E47: 1 | G47: 2 | I47: 7 | L47: 1 | M47: 9 | O47: 2 | P47: 5 | Q47: 31 | R47: 0 | S47: 0.1290322581 | T47: 0.03225806452 | U47: 0 | V47: 0.06451612903 | W47: 0 | X47: 0.2258064516 | Y47: 0 | Z47: 0 | AA47: 0.03225806452 | AB47: 0.2903225806 | AC47: 0 | AD47: 0.06451612903 | AE47: 0.1612903226 | AF47: 0.001627980254 | AG47: =town_establishments[[#This Row],[share of state establishments]]/($AF$250-$AF$249) -> 0.001683958933 | AH47: =town_establishments[[#This Row],[share of state establishments (no residual)]]/(INDEX(regional_establishments[share of state establishments],MATCH(town_establishments[[#This Row],[Regional Planning Commission]],regional_establishments[Regional Planning Commission],0))) -> 0.01913580247
A48: Chester | B48: =INDEX(town_population[Regional Planning Commission],MATCH(town_establishments[[#This Row],[Municipality]],town_population[Municipality],0)) -> Southern Windsor County Regional Planning Commission | C48: 1 | D48: 15 | E48: 4 | F48: 1 | G48: 7 | H48: 4 | I48: 13 | J48: 2 | K48: 10 | L48: 2 | M48: 5 | N48: 1 | O48: 10 | P48: 15 | Q48: 90 | R48: 0.01111111111 | S48: 0.1666666667 | T48: 0.04444444444 | U48: 0.01111111111 | V48: 0.07777777778 | W48: 0.04444444444 | X48: 0.1444444444 | Y48: 0.02222222222 | Z48: 0.1111111111 | AA48: 0.02222222222 | AB48: 0.05555555556 | AC48: 0.01111111111 | AD48: 0.1111111111 | AE48: 0.1666666667 | AF48: 0.004726394286 | AG48: =town_establishments[[#This Row],[share of state establishments]]/($AF$250-$AF$249) -> 0.004888913032 | AH48: =town_establishments[[#This Row],[share of state establishments (no residual)]]/(INDEX(regional_establishments[share of state establishments],MATCH(town_establishments[[#This Row],[Regional Planning Commission]],regional_establishments[Regional Planning Commission],0))) -> 0.1428571429
A49: Chittenden | B49: =INDEX(town_population[Regional Planning Commission],MATCH(town_establishments[[#This Row],[Municipality]],town_population[Municipality],0)) -> Rutland Regional Planning Commission | C49: 1 | D49: 2 | E49: 1 | F49: 1 | H49: 1 | I49: 11 | K49: 3 | L49: 1 | N49: 1 | O49: 2 | P49: 3 | Q49: 27 | R49: 0.03703703704 | S49: 0.07407407407 | T49: 0.03703703704 | U49: 0.03703703704 | V49: 0 | W49: 0.03703703704 | X49: 0.4074074074 | Y49: 0 | Z49: 0.1111111111 | AA49: 0.03703703704 | AB49: 0 | AC49: 0.03703703704 | AD49: 0.07407407407 | AE49: 0.1111111111 | AF49: 0.001417918286 | AG49: =town_establishments[[#This Row],[share of state establishments]]/($AF$250-$AF$249) -> 0.00146667391 | AH49: =town_establishments[[#This Row],[share of state establishments (no residual)]]/(INDEX(regional_establishments[share of state establishments],MATCH(town_establishments[[#This Row],[Regional Planning Commission]],regional_establishments[Regional Planning Commission],0))) -> 0.0151856018
A50: Clarendon | B50: =INDEX(town_population[Regional Planning Commission],MATCH(town_establishments[[#This Row],[Municipality]],town_population[Municipality],0)) -> Rutland Regional Planning Commission | C50: 6 | D50: 10 | E50: 4 | F50: 1 | I50: 9 | K50: 8 | L50: 3 | M50: 2 | N50: 2 | O50: 2 | P50: 9 | Q50: 56 | R50: 0.1071428571 | S50: 0.1785714286 | T50: 0.07142857143 | U50: 0.01785714286 | V50: 0 | W50: 0 | X50: 0.1607142857 | Y50: 0 | Z50: 0.1428571429 | AA50: 0.05357142857 | AB50: 0.03571428571 | AC50: 0.03571428571 | AD50: 0.03571428571 | AE50: 0.1607142857 | AF50: 0.002940867556 | AG50: =town_establishments[[#This Row],[share of state establishments]]/($AF$250-$AF$249) -> 0.003041990331 | AH50: =town_establishments[[#This Row],[share of state establishments (no residual)]]/(INDEX(regional_establishments[share of state establishments],MATCH(town_establishments[[#This Row],[Regional Planning Commission]],regional_establishments[Regional Planning Commission],0))) -> 0.03149606299
A51: Colchester | B51: =INDEX(town_population[Regional Planning Commission],MATCH(town_establishments[[#This Row],[Municipality]],town_population[Municipality],0)) -> Chittenden County Regional Planning Commission | C51: 45 | D51: 50 | E51: 14 | F51: 22 | G51: 39 | H51: 34 | I51: 91 | J51: 1 | K51: 53 | L51: 12 | M51: 56 | N51: 14 | O51: 42 | P51: 37 | Q51: 510 | R51: 0.08823529412 | S51: 0.09803921569 | T51: 0.02745098039 | U51: 0.0431372549 | V51: 0.07647058824 | W51: 0.06666666667 | X51: 0.1784313725 | Y51: 0.001960784314 | Z51: 0.1039215686 | AA51: 0.02352941176 | AB51: 0.1098039216 | AC51: 0.02745098039 | AD51: 0.08235294118 | AE51: 0.07254901961 | AF51: 0.02678290096 | AG51: =town_establishments[[#This Row],[share of state establishments]]/($AF$250-$AF$249) -> 0.02770384051 | AH51: =town_establishments[[#This Row],[share of state establishments (no residual)]]/(INDEX(regional_establishments[share of state establishments],MATCH(town_establishments[[#This Row],[Regional Planning Commission]],regional_establishments[Regional Planning Commission],0))) -> 0.09411330504
A52: Concord | B52: =INDEX(town_population[Regional Planning Commission],MATCH(town_establishments[[#This Row],[Municipality]],town_population[Municipality],0)) -> Northeastern Vermont Development Association | C52: 2 | D52: 2 | E52: 2 | K52: 2 | L52: 1 | M52: 3 | O52: 3 | P52: 1 | Q52: 16 | R52: 0.125 | S52: 0.125 | T52: 0.125 | U52: 0 | V52: 0 | W52: 0 | X52: 0 | Y52: 0 | Z52: 0.125 | AA52: 0.0625 | AB52: 0.1875 | AC52: 0 | AD52: 0.1875 | AE52: 0.0625 | AF52: 0.0008402478731 | AG52: =town_establishments[[#This Row],[share of state establishments]]/($AF$250-$AF$249) -> 0.0008691400945 | AH52: =town_establishments[[#This Row],[share of state establishments (no residual)]]/(INDEX(regional_establishments[share of state establishments],MATCH(town_establishments[[#This Row],[Regional Planning Commission]],regional_establishments[Regional Planning Commission],0))) -> 0.01096641535
A53: Corinth | B53: =INDEX(town_population[Regional Planning Commission],MATCH(town_establishments[[#This Row],[Municipality]],town_population[Municipality],0)) -> Two Rivers-Ottauquechee Regional Commission | D53: 2 | E53: 2 | F53: 3 | H53: 1 | I53: 4 | K53: 1 | L53: 1 | M53: 2 | P53: 1 | Q53: 17 | R53: 0 | S53: 0.1176470588 | T53: 0.1176470588 | U53: 0.1764705882 | V53: 0 | W53: 0.05882352941 | X53: 0.2352941176 | Y53: 0 | Z53: 0.05882352941 | AA53: 0.05882352941 | AB53: 0.1176470588 | AC53: 0 | AD53: 0 | AE53: 0.05882352941 | AF53: 0.0008927633652 | AG53: =town_establishments[[#This Row],[share of state establishments]]/($AF$250-$AF$249) -> 0.0009234613504 | AH53: =town_establishments[[#This Row],[share of state establishments (no residual)]]/(INDEX(regional_establishments[share of state establishments],MATCH(town_establishments[[#This Row],[Regional Planning Commission]],regional_establishments[Regional Planning Commission],0))) -> 0.01049382716
A54: Cornwall | B54: =INDEX(town_population[Regional Planning Commission],MATCH(town_establishments[[#This Row],[Municipality]],town_population[Municipality],0)) -> Addison County Regional Planning Commission | C54: 3 | D54: 3 | E54: 1 | F54: 1 | G54: 3 | I54: 6 | K54: 3 | L54: 1 | N54: 1 | P54: 4 | Q54: 26 | R54: 0.1153846154 | S54: 0.1153846154 | T54: 0.03846153846 | U54: 0.03846153846 | V54: 0.1153846154 | W54: 0 | X54: 0.2307692308 | Y54: 0 | Z54: 0.1153846154 | AA54: 0.03846153846 | AB54: 0 | AC54: 0.03846153846 | AD54: 0 | AE54: 0.1538461538 | AF54: 0.001365402794 | AG54: =town_establishments[[#This Row],[share of state establishments]]/($AF$250-$AF$249) -> 0.001412352654 | AH54: =town_establishments[[#This Row],[share of state establishments (no residual)]]/(INDEX(regional_establishments[share of state establishments],MATCH(town_establishments[[#This Row],[Regional Planning Commission]],regional_establishments[Regional Planning Commission],0))) -> 0.02777777778
A55: Coventry | B55: =INDEX(town_population[Regional Planning Commission],MATCH(town_establishments[[#This Row],[Municipality]],town_population[Municipality],0)) -> Northeastern Vermont Development Association | D55: 2 | E55: 2 | F55: 1 | I55: 1 | K55: 1 | L55: 1 | O55: 3 | P55: 1 | Q55: 12 | R55: 0 | S55: 0.1666666667 | T55: 0.1666666667 | U55: 0.08333333333 | V55: 0 | W55: 0 | X55: 0.08333333333 | Y55: 0 | Z55: 0.08333333333 | AA55: 0.08333333333 | AB55: 0 | AC55: 0 | AD55: 0.25 | AE55: 0.08333333333 | AF55: 0.0006301859048 | AG55: =town_establishments[[#This Row],[share of state establishments]]/($AF$250-$AF$249) -> 0.0006518550709 | AH55: =town_establishments[[#This Row],[share of state establishments (no residual)]]/(INDEX(regional_establishments[share of state establishments],MATCH(town_establishments[[#This Row],[Regional Planning Commission]],regional_establishments[Regional Planning Commission],0))) -> 0.008224811515
A56: Craftsbury | B56: =INDEX(town_population[Regional Planning Commission],MATCH(town_establishments[[#This Row],[Municipality]],town_population[Municipality],0)) -> Northeastern Vermont Development Association | C56: 1 | D56: 3 | E56: 2 | F56: 2 | H56: 1 | I56: 2 | K56: 4 | L56: 1 | M56: 2 | O56: 2 | P56: 8 | Q56: 28 | R56: 0.03571428571 | S56: 0.1071428571 | T56: 0.07142857143 | U56: 0.07142857143 | V56: 0 | W56: 0.03571428571 | X56: 0.07142857143 | Y56: 0 | Z56: 0.1428571429 | AA56: 0.03571428571 | AB56: 0.07142857143 | AC56: 0 | AD56: 0.07142857143 | AE56: 0.2857142857 | AF56: 0.001470433778 | AG56: =town_establishments[[#This Row],[share of state establishments]]/($AF$250-$AF$249) -> 0.001520995165 | AH56: =town_establishments[[#This Row],[share of state establishments (no residual)]]/(INDEX(regional_establishments[share of state establishments],MATCH(town_establishments[[#This Row],[Regional Planning Commission]],regional_establishments[Regional Planning Commission],0))) -> 0.01919122687
A57: Danby | B57: =INDEX(town_population[Regional Planning Commission],MATCH(town_establishments[[#This Row],[Municipality]],town_population[Municipality],0)) -> Rutland Regional Planning Commission | C57: 1 | D57: 2 | E57: 1 | F57: 1 | I57: 3 | K57: 1 | L57: 1 | M57: 1 | N57: 2 | P57: 2 | Q57: 15 | R57: 0.06666666667 | S57: 0.1333333333 | T57: 0.06666666667 | U57: 0.06666666667 | V57: 0 | W57: 0 | X57: 0.2 | Y57: 0 | Z57: 0.06666666667 | AA57: 0.06666666667 | AB57: 0.06666666667 | AC57: 0.1333333333 | AD57: 0 | AE57: 0.1333333333 | AF57: 0.0007877323811 | AG57: =town_establishments[[#This Row],[share of state establishments]]/($AF$250-$AF$249) -> 0.0008148188386 | AH57: =town_establishments[[#This Row],[share of state establishments (no residual)]]/(INDEX(regional_establishments[share of state establishments],MATCH(town_establishments[[#This Row],[Regional Planning Commission]],regional_establishments[Regional Planning Commission],0))) -> 0.008436445444
A58: Danville | B58: =INDEX(town_population[Regional Planning Commission],MATCH(town_establishments[[#This Row],[Municipality]],town_population[Municipality],0)) -> Northeastern Vermont Development Association | C58: 1 | D58: 5 | E58: 4 | F58: 4 | G58: 3 | I58: 11 | K58: 1 | L58: 1 | M58: 4 | N58: 1 | O58: 6 | P58: 3 | Q58: 44 | R58: 0.02272727273 | S58: 0.1136363636 | T58: 0.09090909091 | U58: 0.09090909091 | V58: 0.06818181818 | W58: 0 | X58: 0.25 | Y58: 0 | Z58: 0.02272727273 | AA58: 0.02272727273 | AB58: 0.09090909091 | AC58: 0.02272727273 | AD58: 0.1363636364 | AE58: 0.06818181818 | AF58: 0.002310681651 | AG58: =town_establishments[[#This Row],[share of state establishments]]/($AF$250-$AF$249) -> 0.00239013526 | AH58: =town_establishments[[#This Row],[share of state establishments (no residual)]]/(INDEX(regional_establishments[share of state establishments],MATCH(town_establishments[[#This Row],[Regional Planning Commission]],regional_establishments[Regional Planning Commission],0))) -> 0.03015764222
A59: Derby | B59: =INDEX(town_population[Regional Planning Commission],MATCH(town_establishments[[#This Row],[Municipality]],town_population[Municipality],0)) -> Northeastern Vermont Development Association | C59: 10 | D59: 31 | E59: 9 | F59: 3 | G59: 5 | H59: 6 | I59: 9 | J59: 1 | K59: 8 | L59: 2 | M59: 9 | N59: 1 | O59: 13 | P59: 10 | Q59: 117 | R59: 0.08547008547 | S59: 0.264957265 | T59: 0.07692307692 | U59: 0.02564102564 | V59: 0.04273504274 | W59: 0.05128205128 | X59: 0.07692307692 | Y59: 0.008547008547 | Z59: 0.06837606838 | AA59: 0.01709401709 | AB59: 0.07692307692 | AC59: 0.008547008547 | AD59: 0.1111111111 | AE59: 0.08547008547 | AF59: 0.006144312572 | AG59: =town_establishments[[#This Row],[share of state establishments]]/($AF$250-$AF$249) -> 0.006355586941 | AH59: =town_establishments[[#This Row],[share of state establishments (no residual)]]/(INDEX(regional_establishments[share of state establishments],MATCH(town_establishments[[#This Row],[Regional Planning Commission]],regional_establishments[Regional Planning Commission],0))) -> 0.08019191227
A60: Dorset | B60: =INDEX(town_population[Regional Planning Commission],MATCH(town_establishments[[#This Row],[Municipality]],town_population[Municipality],0)) -> Bennington County Regional Commission | C60: 5 | D60: 5 | E60: 2 | F60: 3 | G60: 6 | H60: 3 | I60: 16 | J60: 1 | K60: 5 | L60: 3 | M60: 3 | N60: 3 | O60: 10 | P60: 7 | Q60: 72 | R60: 0.06944444444 | S60: 0.06944444444 | T60: 0.02777777778 | U60: 0.04166666667 | V60: 0.08333333333 | W60: 0.04166666667 | X60: 0.2222222222 | Y60: 0.01388888889 | Z60: 0.06944444444 | AA60: 0.04166666667 | AB60: 0.04166666667 | AC60: 0.04166666667 | AD60: 0.1388888889 | AE60: 0.09722222222 | AF60: 0.003781115429 | AG60: =town_establishments[[#This Row],[share of state establishments]]/($AF$250-$AF$249) -> 0.003911130425 | AH60: =town_establishments[[#This Row],[share of state establishments (no residual)]]/(INDEX(regional_establishments[share of state establishments],MATCH(town_establishments[[#This Row],[Regional Planning Commission]],regional_establishments[Regional Planning Commission],0))) -> 0.06277244987
A61: Dover | B61: =INDEX(town_population[Regional Planning Commission],MATCH(town_establishments[[#This Row],[Municipality]],town_population[Municipality],0)) -> Windham Regional Commission | C61: 4 | D61: 9 | E61: 2 | G61: 6 | H61: 14 | I61: 10 | K61: 9 | L61: 2 | M61: 2 | O61: 26 | P61: 6 | Q61: 90 | R61: 0.04444444444 | S61: 0.1 | T61: 0.02222222222 | U61: 0 | V61: 0.06666666667 | W61: 0.1555555556 | X61: 0.1111111111 | Y61: 0 | Z61: 0.1 | AA61: 0.02222222222 | AB61: 0.02222222222 | AC61: 0 | AD61: 0.2888888889 | AE61: 0.06666666667 | AF61: 0.004726394286 | AG61: =town_establishments[[#This Row],[share of state establishments]]/($AF$250-$AF$249) -> 0.004888913032 | AH61: =town_establishments[[#This Row],[share of state establishments (no residual)]]/(INDEX(regional_establishments[share of state establishments],MATCH(town_establishments[[#This Row],[Regional Planning Commission]],regional_establishments[Regional Planning Commission],0))) -> 0.05795235029
A62: Dummerston | B62: =INDEX(town_population[Regional Planning Commission],MATCH(town_establishments[[#This Row],[Municipality]],town_population[Municipality],0)) -> Windham Regional Commission | C62: 5 | D62: 2 | E62: 1 | F62: 5 | H62: 2 | I62: 4 | K62: 4 | L62: 1 | M62: 1 | O62: 2 | P62: 4 | Q62: 31 | R62: 0.1612903226 | S62: 0.06451612903 | T62: 0.03225806452 | U62: 0.1612903226 | V62: 0 | W62: 0.06451612903 | X62: 0.1290322581 | Y62: 0 | Z62: 0.1290322581 | AA62: 0.03225806452 | AB62: 0.03225806452 | AC62: 0 | AD62: 0.06451612903 | AE62: 0.1290322581 | AF62: 0.001627980254 | AG62: =town_establishments[[#This Row],[share of state establishments]]/($AF$250-$AF$249) -> 0.001683958933 | AH62: =town_establishments[[#This Row],[share of state establishments (no residual)]]/(INDEX(regional_establishments[share of state establishments],MATCH(town_establishments[[#This Row],[Regional Planning Commission]],regional_establishments[Regional Planning Commission],0))) -> 0.0199613651
A63: Duxbury | B63: =INDEX(town_population[Regional Planning Commission],MATCH(town_establishments[[#This Row],[Municipality]],town_population[Municipality],0)) -> Central Vermont Regional Planning Commission | E63: 1 | I63: 4 | K63: 5 | L63: 1 | M63: 1 | P63: 2 | Q63: 14 | R63: 0 | S63: 0 | T63: 0.07142857143 | U63: 0 | V63: 0 | W63: 0 | X63: 0.2857142857 | Y63: 0 | Z63: 0.3571428571 | AA63: 0.07142857143 | AB63: 0.07142857143 | AC63: 0 | AD63: 0 | AE63: 0.1428571429 | AF63: 0.000735216889 | AG63: =town_establishments[[#This Row],[share of state establishments]]/($AF$250-$AF$249) -> 0.0007604975827 | AH63: =town_establishments[[#This Row],[share of state establishments (no residual)]]/(INDEX(regional_establishments[share of state establishments],MATCH(town_establishments[[#This Row],[Regional Planning Commission]],regional_establishments[Regional Planning Commission],0))) -> 0.006899950715
A64: East Haven | B64: =INDEX(town_population[Regional Planning Commission],MATCH(town_establishments[[#This Row],[Municipality]],town_population[Municipality],0)) -> Northeastern Vermont Development Association | E64: 1 | H64: 1 | I64: 1 | P64: 2 | Q64: 5 | R64: 0 | S64: 0 | T64: 0.2 | U64: 0 | V64: 0 | W64: 0.2 | X64: 0.2 | Y64: 0 | Z64: 0 | AA64: 0 | AB64: 0 | AC64: 0 | AD64: 0 | AE64: 0.4 | AF64: 0.0002625774604 | AG64: =town_establishments[[#This Row],[share of state establishments]]/($AF$250-$AF$249) -> 0.0002716062795 | AH64: =town_establishments[[#This Row],[share of state establishments (no residual)]]/(INDEX(regional_establishments[share of state establishments],MATCH(town_establishments[[#This Row],[Regional Planning Commission]],regional_establishments[Regional Planning Commission],0))) -> 0.003427004798
A65: East Montpelier | B65: =INDEX(town_population[Regional Planning Commission],MATCH(town_establishments[[#This Row],[Municipality]],town_population[Municipality],0)) -> Central Vermont Regional Planning Commission | C65: 2 | D65: 18 | E65: 2 | G65: 4 | H65: 0 | I65: 8 | K65: 4 | L65: 1 | M65: 2 | N65: 3 | P65: 5 | Q65: 49 | R65: 0.04081632653 | S65: 0.3673469388 | T65: 0.04081632653 | U65: 0 | V65: 0.08163265306 | W65: 0 | X65: 0.1632653061 | Y65: 0 | Z65: 0.08163265306 | AA65: 0.02040816327 | AB65: 0.04081632653 | AC65: 0.0612244898 | AD65: 0 | AE65: 0.1020408163 | AF65: 0.002573259111 | AG65: =town_establishments[[#This Row],[share of state establishments]]/($AF$250-$AF$249) -> 0.002661741539 | AH65: =town_establishments[[#This Row],[share of state establishments (no residual)]]/(INDEX(regional_establishments[share of state establishments],MATCH(town_establishments[[#This Row],[Regional Planning Commission]],regional_establishments[Regional Planning Commission],0))) -> 0.0241498275
A66: Eden | B66: =INDEX(town_population[Regional Planning Commission],MATCH(town_establishments[[#This Row],[Municipality]],town_population[Municipality],0)) -> Lamoille County Planning Commission | C66: 0 | D66: 3 | E66: 1 | I66: 2 | K66: 2 | L66: 1 | Q66: 9 | R66: 0 | S66: 0.3333333333 | T66: 0.1111111111 | U66: 0 | V66: 0 | W66: 0 | X66: 0.2222222222 | Y66: 0 | Z66: 0.2222222222 | AA66: 0.1111111111 | AB66: 0 | AC66: 0 | AD66: 0 | AE66: 0 | AF66: 0.0004726394286 | AG66: =town_establishments[[#This Row],[share of state establishments]]/($AF$250-$AF$249) -> 0.0004888913032 | AH66: =town_establishments[[#This Row],[share of state establishments (no residual)]]/(INDEX(regional_establishments[share of state establishments],MATCH(town_establishments[[#This Row],[Regional Planning Commission]],regional_establishments[Regional Planning Commission],0))) -> 0.01102941176
A67: Elmore | B67: =INDEX(town_population[Regional Planning Commission],MATCH(town_establishments[[#This Row],[Municipality]],town_population[Municipality],0)) -> Lamoille County Planning Commission | D67: 1 | I67: 3 | K67: 3 | L67: 1 | N67: 1 | O67: 1 | Q67: 10 | R67: 0 | S67: 0.1 | T67: 0 | U67: 0 | V67: 0 | W67: 0 | X67: 0.3 | Y67: 0 | Z67: 0.3 | AA67: 0.1 | AB67: 0 | AC67: 0.1 | AD67: 0.1 | AE67: 0 | AF67: 0.0005251549207 | AG67: =town_establishments[[#This Row],[share of state establishments]]/($AF$250-$AF$249) -> 0.0005432125591 | AH67: =town_establishments[[#This Row],[share of state establishments (no residual)]]/(INDEX(regional_establishments[share of state establishments],MATCH(town_establishments[[#This Row],[Regional Planning Commission]],regional_establishments[Regional Planning Commission],0))) -> 0.01225490196
A68: Enosburg Falls | B68: =INDEX(town_population[Regional Planning Commission],MATCH(town_establishments[[#This Row],[Municipality]],town_population[Municipality],0)) -> Northwest Regional Planning Commission | C68: 3 | D68: 23 | E68: 8 | F68: 1 | G68: 6 | H68: 1 | I68: 9 | K68: 4 | L68: 1 | M68: 6 | N68: 1 | O68: 10 | P68: 12 | Q68: =SUM(C68:P68) -> 85 | R68: =IF($Q68<>0,C68/$Q68,0) -> 0.03529411765 | S68: 0.2705882353 | T68: 0.09411764706 | U68: 0.01176470588 | V68: 0.07058823529 | W68: 0.01176470588 | X68: 0.1058823529 | Y68: 0 | Z68: 0.04705882353 | AA68: 0.01176470588 | AB68: 0.07058823529 | AC68: 0.01176470588 | AD68: 0.1176470588 | AE68: 0.1411764706 | AF68: =Q68/Q$250 -> 0.004463816826 | AG68: =town_establishments[[#This Row],[share of state establishments]]/($AF$250-$AF$249) -> 0.004617306752 | AH68: =town_establishments[[#This Row],[share of state establishments (no residual)]]/(INDEX(regional_establishments[share of state establishments],MATCH(town_establishments[[#This Row],[Regional Planning Commission]],regional_establishments[Regional Planning Commission],0))) -> 0.0831702544
A69: Essex | B69: =INDEX(town_population[Regional Planning Commission],MATCH(town_establishments[[#This Row],[Municipality]],town_population[Municipality],0)) -> Chittenden County Regional Planning Commission | C69: 48 | D69: 96 | E69: 10 | F69: 9 | G69: 35 | H69: 23 | I69: 124 | J69: 4 | K69: 53 | L69: 15 | M69: 57 | N69: 21 | O69: 53 | P69: 78 | Q69: 626 | R69: 0.07667731629 | S69: 0.1533546326 | T69: 0.01597444089 | U69: 0.01437699681 | V69: 0.05591054313 | W69: 0.03674121406 | X69: 0.1980830671 | Y69: 0.006389776358 | Z69: 0.08466453674 | AA69: 0.02396166134 | AB69: 0.0910543131 | AC69: 0.03354632588 | AD69: 0.08466453674 | AE69: 0.124600639 | AF69: 0.03287469804 | AG69: =town_establishments[[#This Row],[share of state establishments]]/($AF$250-$AF$249) -> 0.0340051062 | AH69: =town_establishments[[#This Row],[share of state establishments (no residual)]]/(INDEX(regional_establishments[share of state establishments],MATCH(town_establishments[[#This Row],[Regional Planning Commission]],regional_establishments[Regional Planning Commission],0))) -> 0.1155194685
A70: Fair Haven | B70: =INDEX(town_population[Regional Planning Commission],MATCH(town_establishments[[#This Row],[Municipality]],town_population[Municipality],0)) -> Rutland Regional Planning Commission | C70: 4 | D70: 17 | E70: 2 | F70: 1 | G70: 8 | I70: 5 | J70: 1 | K70: 5 | L70: 1 | M70: 4 | O70: 9 | P70: 4 | Q70: 61 | R70: 0.06557377049 | S70: 0.2786885246 | T70: 0.03278688525 | U70: 0.01639344262 | V70: 0.131147541 | W70: 0 | X70: 0.08196721311 | Y70: 0.01639344262 | Z70: 0.08196721311 | AA70: 0.01639344262 | AB70: 0.06557377049 | AC70: 0 | AD70: 0.1475409836 | AE70: 0.06557377049 | AF70: 0.003203445016 | AG70: =town_establishments[[#This Row],[share of state establishments]]/($AF$250-$AF$249) -> 0.00331359661 | AH70: =town_establishments[[#This Row],[share of state establishments (no residual)]]/(INDEX(regional_establishments[share of state establishments],MATCH(town_establishments[[#This Row],[Regional Planning Commission]],regional_establishments[Regional Planning Commission],0))) -> 0.03430821147
A71: Fairfax | B71: =INDEX(town_population[Regional Planning Commission],MATCH(town_establishments[[#This Row],[Municipality]],town_population[Municipality],0)) -> Northwest Regional Planning Commission | C71: 9 | D71: 8 | E71: 3 | F71: 1 | G71: 4 | H71: 3 | I71: 13 | K71: 4 | L71: 3 | M71: 6 | O71: 2 | P71: 7 | Q71: 63 | R71: 0.1428571429 | S71: 0.126984127 | T71: 0.04761904762 | U71: 0.01587301587 | V71: 0.06349206349 | W71: 0.04761904762 | X71: 0.2063492063 | Y71: 0 | Z71: 0.06349206349 | AA71: 0.04761904762 | AB71: 0.09523809524 | AC71: 0 | AD71: 0.03174603175 | AE71: 0.1111111111 | AF71: 0.003308476 | AG71: =town_establishments[[#This Row],[share of state establishments]]/($AF$250-$AF$249) -> 0.003422239122 | AH71: =town_establishments[[#This Row],[share of state establishments (no residual)]]/(INDEX(regional_establishments[share of state establishments],MATCH(town_establishments[[#This Row],[Regional Planning Commission]],regional_establishments[Regional Planning Commission],0))) -> 0.06164383562
A72: Fairfield | B72: =INDEX(town_population[Regional Planning Commission],MATCH(town_establishments[[#This Row],[Municipality]],town_population[Municipality],0)) -> Northwest Regional Planning Commission | C72: 3 | D72: 1 | E72: 3 | G72: 1 | I72: 2 | J72: 1 | K72: 1 | L72: 2 | M72: 2 | P72: 2 | Q72: 18 | R72: 0.1666666667 | S72: 0.05555555556 | T72: 0.1666666667 | U72: 0 | V72: 0.05555555556 | W72: 0 | X72: 0.1111111111 | Y72: 0.05555555556 | Z72: 0.05555555556 | AA72: 0.1111111111 | AB72: 0.1111111111 | AC72: 0 | AD72: 0 | AE72: 0.1111111111 | AF72: 0.0009452788573 | AG72: =town_establishments[[#This Row],[share of state establishments]]/($AF$250-$AF$249) -> 0.0009777826063 | AH72: =town_establishments[[#This Row],[share of state establishments (no residual)]]/(INDEX(regional_establishments[share of state establishments],MATCH(town_establishments[[#This Row],[Regional Planning Commission]],regional_establishments[Regional Planning Commission],0))) -> 0.01761252446
A73: Fairlee | B73: =INDEX(town_population[Regional Planning Commission],MATCH(town_establishments[[#This Row],[Municipality]],town_population[Municipality],0)) -> Two Rivers-Ottauquechee Regional Commission | C73: 3 | D73: 11 | E73: 4 | G73: 1 | I73: 8 | K73: 2 | L73: 1 | M73: 4 | O73: 8 | P73: 5 | Q73: 47 | R73: 0.06382978723 | S73: 0.2340425532 | T73: 0.08510638298 | U73: 0 | V73: 0.02127659574 | W73: 0 | X73: 0.170212766 | Y73: 0 | Z73: 0.04255319149 | AA73: 0.02127659574 | AB73: 0.08510638298 | AC73: 0 | AD73: 0.170212766 | AE73: 0.1063829787 | AF73: 0.002468228127 | AG73: =town_establishments[[#This Row],[share of state establishments]]/($AF$250-$AF$249) -> 0.002553099028 | AH73: =town_establishments[[#This Row],[share of state establishments (no residual)]]/(INDEX(regional_establishments[share of state establishments],MATCH(town_establishments[[#This Row],[Regional Planning Commission]],regional_establishments[Regional Planning Commission],0))) -> 0.02901234568
A74: Fayston | B74: =INDEX(town_population[Regional Planning Commission],MATCH(town_establishments[[#This Row],[Municipality]],town_population[Municipality],0)) -> Central Vermont Regional Planning Commission | C74: 3 | E74: 0 | F74: 1 | G74: 1 | I74: 9 | K74: 3 | L74: 2 | N74: 1 | O74: 4 | P74: 3 | Q74: 27 | R74: 0.1111111111 | S74: 0 | T74: 0 | U74: 0.03703703704 | V74: 0.03703703704 | W74: 0 | X74: 0.3333333333 | Y74: 0 | Z74: 0.1111111111 | AA74: 0.07407407407 | AB74: 0 | AC74: 0.03703703704 | AD74: 0.1481481481 | AE74: 0.1111111111 | AF74: 0.001417918286 | AG74: =town_establishments[[#This Row],[share of state establishments]]/($AF$250-$AF$249) -> 0.00146667391 | AH74: =town_establishments[[#This Row],[share of state establishments (no residual)]]/(INDEX(regional_establishments[share of state establishments],MATCH(town_establishments[[#This Row],[Regional Planning Commission]],regional_establishments[Regional Planning Commission],0))) -> 0.01330704781
A75: Ferrisburgh | B75: =INDEX(town_population[Regional Planning Commission],MATCH(town_establishments[[#This Row],[Municipality]],town_population[Municipality],0)) -> Addison County Regional Planning Commission | C75: 2 | D75: 12 | E75: 3 | F75: 0 | I75: 10 | K75: 6 | L75: 1 | M75: 1 | N75: 2 | O75: 4 | P75: 3 | Q75: 44 | R75: 0.04545454545 | S75: 0.2727272727 | T75: 0.06818181818 | U75: 0 | V75: 0 | W75: 0 | X75: 0.2272727273 | Y75: 0 | Z75: 0.1363636364 | AA75: 0.02272727273 | AB75: 0.02272727273 | AC75: 0.04545454545 | AD75: 0.09090909091 | AE75: 0.06818181818 | AF75: 0.002310681651 | AG75: =town_establishments[[#This Row],[share of state establishments]]/($AF$250-$AF$249) -> 0.00239013526 | AH75: =town_establishments[[#This Row],[share of state establishments (no residual)]]/(INDEX(regional_establishments[share of state establishments],MATCH(town_establishments[[#This Row],[Regional Planning Commission]],regional_establishments[Regional Planning Commission],0))) -> 0.04700854701
A76: Fletcher | B76: =INDEX(town_population[Regional Planning Commission],MATCH(town_establishments[[#This Row],[Municipality]],town_population[Municipality],0)) -> Northwest Regional Planning Commission | C76: 1 | D76: 1 | L76: 1 | O76: 1 | Q76: 4 | R76: 0.25 | S76: 0.25 | T76: 0 | U76: 0 | V76: 0 | W76: 0 | X76: 0 | Y76: 0 | Z76: 0 | AA76: 0.25 | AB76: 0 | AC76: 0 | AD76: 0.25 | AE76: 0 | AF76: 0.0002100619683 | AG76: =town_establishments[[#This Row],[share of state establishments]]/($AF$250-$AF$249) -> 0.0002172850236 | AH76: =town_establishments[[#This Row],[share of state establishments (no residual)]]/(INDEX(regional_establishments[share of state establishments],MATCH(town_establishments[[#This Row],[Regional Planning Commission]],regional_establishments[Regional Planning Commission],0))) -> 0.003913894325
A77: Franklin | B77: =INDEX(town_population[Regional Planning Commission],MATCH(town_establishments[[#This Row],[Municipality]],town_population[Municipality],0)) -> Northwest Regional Planning Commission | C77: 2 | D77: 2 | E77: 3 | F77: 1 | H77: 1 | I77: 2 | L77: 1 | M77: 1 | Q77: 13 | R77: 0.1538461538 | S77: 0.1538461538 | T77: 0.2307692308 | U77: 0.07692307692 | V77: 0 | W77: 0.07692307692 | X77: 0.1538461538 | Y77: 0 | Z77: 0 | AA77: 0.07692307692 | AB77: 0.07692307692 | AC77: 0 | AD77: 0 | AE77: 0 | AF77: 0.0006827013969 | AG77: =town_establishments[[#This Row],[share of state establishments]]/($AF$250-$AF$249) -> 0.0007061763268 | AH77: =town_establishments[[#This Row],[share of state establishments (no residual)]]/(INDEX(regional_establishments[share of state establishments],MATCH(town_establishments[[#This Row],[Regional Planning Commission]],regional_establishments[Regional Planning Commission],0))) -> 0.01272015656
A78: Georgia | B78: =INDEX(town_population[Regional Planning Commission],MATCH(town_establishments[[#This Row],[Municipality]],town_population[Municipality],0)) -> Northwest Regional Planning Commission | C78: 4 | D78: 7 | E78: 2 | G78: 2 | H78: 1 | I78: 3 | K78: 3 | L78: 1 | M78: 3 | N78: 1 | O78: 2 | P78: 6 | Q78: 35 | R78: 0.1142857143 | S78: 0.2 | T78: 0.05714285714 | U78: 0 | V78: 0.05714285714 | W78: 0.02857142857 | X78: 0.08571428571 | Y78: 0 | Z78: 0.08571428571 | AA78: 0.02857142857 | AB78: 0.08571428571 | AC78: 0.02857142857 | AD78: 0.05714285714 | AE78: 0.1714285714 | AF78: 0.001838042222 | AG78: =town_establishments[[#This Row],[share of state establishments]]/($AF$250-$AF$249) -> 0.001901243957 | AH78: =town_establishments[[#This Row],[share of state establishments (no residual)]]/(INDEX(regional_establishments[share of state establishments],MATCH(town_establishments[[#This Row],[Regional Planning Commission]],regional_establishments[Regional Planning Commission],0))) -> 0.03424657534
A79: Glover | B79: =INDEX(town_population[Regional Planning Commission],MATCH(town_establishments[[#This Row],[Municipality]],town_population[Municipality],0)) -> Northeastern Vermont Development Association | D79: 3 | I79: 1 | K79: 1 | L79: 1 | M79: 2 | N79: 1 | O79: 1 | P79: 2 | Q79: 12 | R79: 0 | S79: 0.25 | T79: 0 | U79: 0 | V79: 0 | W79: 0 | X79: 0.08333333333 | Y79: 0 | Z79: 0.08333333333 | AA79: 0.08333333333 | AB79: 0.1666666667 | AC79: 0.08333333333 | AD79: 0.08333333333 | AE79: 0.1666666667 | AF79: 0.0006301859048 | AG79: =town_establishments[[#This Row],[share of state establishments]]/($AF$250-$AF$249) -> 0.0006518550709 | AH79: =town_establishments[[#This Row],[share of state establishments (no residual)]]/(INDEX(regional_establishments[share of state establishments],MATCH(town_establishments[[#This Row],[Regional Planning Commission]],regional_establishments[Regional Planning Commission],0))) -> 0.008224811515
A80: Goshen | B80: =INDEX(town_population[Regional Planning Commission],MATCH(town_establishments[[#This Row],[Municipality]],town_population[Municipality],0)) -> Addison County Regional Planning Commission | H80: 1 | M80: 0 | O80: 1 | Q80: 2 | R80: 0 | S80: 0 | T80: 0 | U80: 0 | V80: 0 | W80: 0.5 | X80: 0 | Y80: 0 | Z80: 0 | AA80: 0 | AB80: 0 | AC80: 0 | AD80: 0.5 | AE80: 0 | AF80: 0.0001050309841 | AG80: =town_establishments[[#This Row],[share of state establishments]]/($AF$250-$AF$249) -> 0.0001086425118 | AH80: =town_establishments[[#This Row],[share of state establishments (no residual)]]/(INDEX(regional_establishments[share of state establishments],MATCH(town_establishments[[#This Row],[Regional Planning Commission]],regional_establishments[Regional Planning Commission],0))) -> 0.002136752137
A81: Grafton | B81: =INDEX(town_population[Regional Planning Commission],MATCH(town_establishments[[#This Row],[Municipality]],town_population[Municipality],0)) -> Windham Regional Commission | C81: 1 | D81: 2 | E81: 1 | G81: 1 | I81: 2 | K81: 4 | L81: 1 | N81: 1 | O81: 2 | P81: 4 | Q81: 19 | R81: 0.05263157895 | S81: 0.1052631579 | T81: 0.05263157895 | U81: 0 | V81: 0.05263157895 | W81: 0 | X81: 0.1052631579 | Y81: 0 | Z81: 0.2105263158 | AA81: 0.05263157895 | AB81: 0 | AC81: 0.05263157895 | AD81: 0.1052631579 | AE81: 0.2105263158 | AF81: 0.0009977943493 | AG81: =town_establishments[[#This Row],[share of state establishments]]/($AF$250-$AF$249) -> 0.001032103862 | AH81: =town_establishments[[#This Row],[share of state establishments (no residual)]]/(INDEX(regional_establishments[share of state establishments],MATCH(town_establishments[[#This Row],[Regional Planning Commission]],regional_establishments[Regional Planning Commission],0))) -> 0.01223438506
A82: Granby | B82: =INDEX(town_population[Regional Planning Commission],MATCH(town_establishments[[#This Row],[Municipality]],town_population[Municipality],0)) -> Northeastern Vermont Development Association | E82: 1 | I82: 1 | Q82: 2 | R82: 0 | S82: 0 | T82: 0.5 | U82: 0 | V82: 0 | W82: 0 | X82: 0.5 | Y82: 0 | Z82: 0 | AA82: 0 | AB82: 0 | AC82: 0 | AD82: 0 | AE82: 0 | AF82: 0.0001050309841 | AG82: =town_establishments[[#This Row],[share of state establishments]]/($AF$250-$AF$249) -> 0.0001086425118 | AH82: =town_establishments[[#This Row],[share of state establishments (no residual)]]/(INDEX(regional_establishments[share of state establishments],MATCH(town_establishments[[#This Row],[Regional Planning Commission]],regional_establishments[Regional Planning Commission],0))) -> 0.001370801919
A83: Grand Isle | B83: =INDEX(town_population[Regional Planning Commission],MATCH(town_establishments[[#This Row],[Municipality]],town_population[Municipality],0)) -> Northwest Regional Planning Commission | C83: 5 | D83: 4 | E83: 1 | G83: 2 | H83: 3 | I83: 9 | K83: 5 | L83: 1 | M83: 2 | N83: 1 | O83: 4 | P83: 6 | Q83: 43 | R83: 0.1162790698 | S83: =IF($Q83<>0,D83/$Q83,0) -> 0.09302325581 | T83: =IF($Q83<>0,E83/$Q83,0) -> 0.02325581395 | U83: =IF($Q83<>0,F83/$Q83,0) -> 0 | V83: =IF($Q83<>0,G83/$Q83,0) -> 0.04651162791 | W83: =IF($Q83<>0,H83/$Q83,0) -> 0.06976744186 | X83: =IF($Q83<>0,I83/$Q83,0) -> 0.2093023256 | Y83: =IF($Q83<>0,J83/$Q83,0) -> 0 | Z83: =IF($Q83<>0,K83/$Q83,0) -> 0.1162790698 | AA83: =IF($Q83<>0,L83/$Q83,0) -> 0.02325581395 | AB83: =IF($Q83<>0,M83/$Q83,0) -> 0.04651162791 | AC83: =IF($Q83<>0,N83/$Q83,0) -> 0.02325581395 | AD83: =IF($Q83<>0,O83/$Q83,0) -> 0.09302325581 | AE83: =IF($Q83<>0,P83/$Q83,0) -> 0.1395348837 | AF83: 0.002258166159 | AG83: =town_establishments[[#This Row],[share of state establishments]]/($AF$250-$AF$249) -> 0.002335814004 | AH83: =town_establishments[[#This Row],[share of state establishments (no residual)]]/(INDEX(regional_establishments[share of state establishments],MATCH(town_establishments[[#This Row],[Regional Planning Commission]],regional_establishments[Regional Planning Commission],0))) -> 0.04207436399
A84: Granville | B84: =INDEX(town_population[Regional Planning Commission],MATCH(town_establishments[[#This Row],[Municipality]],town_population[Municipality],0)) -> Two Rivers-Ottauquechee Regional Commission | C84: 2 | D84: 1 | E84: 1 | I84: 1 | K84: 1 | O84: 0 | Q84: 6 | R84: 0.3333333333 | S84: 0.1666666667 | T84: 0.1666666667 | U84: 0 | V84: 0 | W84: 0 | X84: 0.1666666667 | Y84: 0 | Z84: 0.1666666667 | AA84: 0 | AB84: 0 | AC84: 0 | AD84: 0 | AE84: 0 | AF84: 0.0003150929524 | AG84: =town_establishments[[#This Row],[share of state establishments]]/($AF$250-$AF$249) -> 0.0003259275354 | AH84: =town_establishments[[#This Row],[share of state establishments (no residual)]]/(INDEX(regional_establishments[share of state establishments],MATCH(town_establishments[[#This Row],[Regional Planning Commission]],regional_establishments[Regional Planning Commission],0))) -> 0.003703703704
A85: Greensboro | B85: =INDEX(town_population[Regional Planning Commission],MATCH(town_establishments[[#This Row],[Municipality]],town_population[Municipality],0)) -> Northeastern Vermont Development Association | C85: 3 | D85: 4 | E85: 1 | F85: 1 | I85: 3 | K85: 2 | L85: 1 | M85: 4 | N85: 2 | O85: 2 | P85: 4 | Q85: 27 | R85: 0.1111111111 | S85: 0.1481481481 | T85: 0.03703703704 | U85: 0.03703703704 | V85: 0 | W85: 0 | X85: 0.1111111111 | Y85: 0 | Z85: 0.07407407407 | AA85: 0.03703703704 | AB85: 0.1481481481 | AC85: 0.07407407407 | AD85: 0.07407407407 | AE85: 0.1481481481 | AF85: 0.001417918286 | AG85: =town_establishments[[#This Row],[share of state establishments]]/($AF$250-$AF$249) -> 0.00146667391 | AH85: =town_establishments[[#This Row],[share of state establishments (no residual)]]/(INDEX(regional_establishments[share of state establishments],MATCH(town_establishments[[#This Row],[Regional Planning Commission]],regional_establishments[Regional Planning Commission],0))) -> 0.01850582591
A86: Groton | B86: =INDEX(town_population[Regional Planning Commission],MATCH(town_establishments[[#This Row],[Municipality]],town_population[Municipality],0)) -> Northeastern Vermont Development Association | D86: 2 | E86: 2 | F86: 1 | G86: 1 | H86: 1 | I86: 2 | K86: 2 | M86: 1 | P86: 4 | Q86: 16 | R86: 0 | S86: 0.125 | T86: 0.125 | U86: 0.0625 | V86: 0.0625 | W86: 0.0625 | X86: 0.125 | Y86: 0 | Z86: 0.125 | AA86: 0 | AB86: 0.0625 | AC86: 0 | AD86: 0 | AE86: 0.25 | AF86: 0.0008402478731 | AG86: =town_establishments[[#This Row],[share of state establishments]]/($AF$250-$AF$249) -> 0.0008691400945 | AH86: =town_establishments[[#This Row],[share of state establishments (no residual)]]/(INDEX(regional_establishments[share of state establishments],MATCH(town_establishments[[#This Row],[Regional Planning Commission]],regional_establishments[Regional Planning Commission],0))) -> 0.01096641535
A87: Guildhall | B87: =INDEX(town_population[Regional Planning Commission],MATCH(town_establishments[[#This Row],[Municipality]],town_population[Municipality],0)) -> Northeastern Vermont Development Association | E87: 1 | K87: 1 | L87: 1 | P87: 1 | Q87: 4 | R87: 0 | S87: 0 | T87: 0.25 | U87: 0 | V87: 0 | W87: 0 | X87: 0 | Y87: 0 | Z87: 0.25 | AA87: 0.25 | AB87: 0 | AC87: 0 | AD87: 0 | AE87: 0.25 | AF87: 0.0002100619683 | AG87: =town_establishments[[#This Row],[share of state establishments]]/($AF$250-$AF$249) -> 0.0002172850236 | AH87: =town_establishments[[#This Row],[share of state establishments (no residual)]]/(INDEX(regional_establishments[share of state establishments],MATCH(town_establishments[[#This Row],[Regional Planning Commission]],regional_establishments[Regional Planning Commission],0))) -> 0.002741603838
A88: Guilford | B88: =INDEX(town_population[Regional Planning Commission],MATCH(town_establishments[[#This Row],[Municipality]],town_population[Municipality],0)) -> Windham Regional Commission | C88: 4 | D88: 1 | E88: 1 | F88: 1 | H88: 1 | I88: 6 | K88: 8 | L88: 1 | M88: 2 | P88: 7 | Q88: 32 | R88: 0.125 | S88: 0.03125 | T88: 0.03125 | U88: 0.03125 | V88: 0 | W88: 0.03125 | X88: 0.1875 | Y88: 0 | Z88: 0.25 | AA88: 0.03125 | AB88: 0.0625 | AC88: 0 | AD88: 0 | AE88: 0.21875 | AF88: 0.001680495746 | AG88: =town_establishments[[#This Row],[share of state establishments]]/($AF$250-$AF$249) -> 0.001738280189 | AH88: =town_establishments[[#This Row],[share of state establishments (no residual)]]/(INDEX(regional_establishments[share of state establishments],MATCH(town_establishments[[#This Row],[Regional Planning Commission]],regional_establishments[Regional Planning Commission],0))) -> 0.0206052801
A89: Halifax | B89: =INDEX(town_population[Regional Planning Commission],MATCH(town_establishments[[#This Row],[Municipality]],town_population[Municipality],0)) -> Windham Regional Commission | C89: 1 | D89: 1 | E89: 1 | I89: 3 | K89: 1 | L89: 1 | M89: 1 | P89: 0 | Q89: 9 | R89: 0.1111111111 | S89: 0.1111111111 | T89: 0.1111111111 | U89: 0 | V89: 0 | W89: 0 | X89: 0.3333333333 | Y89: 0 | Z89: 0.1111111111 | AA89: 0.1111111111 | AB89: 0.1111111111 | AC89: 0 | AD89: 0 | AE89: 0 | AF89: 0.0004726394286 | AG89: =town_establishments[[#This Row],[share of state establishments]]/($AF$250-$AF$249) -> 0.0004888913032 | AH89: =town_establishments[[#This Row],[share of state establishments (no residual)]]/(INDEX(regional_establishments[share of state establishments],MATCH(town_establishments[[#This Row],[Regional Planning Commission]],regional_establishments[Regional Planning Commission],0))) -> 0.005795235029
A90: Hancock | B90: =INDEX(town_population[Regional Planning Commission],MATCH(town_establishments[[#This Row],[Municipality]],town_population[Municipality],0)) -> Two Rivers-Ottauquechee Regional Commission | E90: 2 | M90: 2 | O90: 2 | P90: 1 | Q90: 7 | R90: 0 | S90: 0 | T90: 0.2857142857 | U90: 0 | V90: 0 | W90: 0 | X90: 0 | Y90: 0 | Z90: 0 | AA90: 0 | AB90: 0.2857142857 | AC90: 0 | AD90: 0.2857142857 | AE90: 0.1428571429 | AF90: 0.0003676084445 | AG90: =town_establishments[[#This Row],[share of state establishments]]/($AF$250-$AF$249) -> 0.0003802487914 | AH90: =town_establishments[[#This Row],[share of state establishments (no residual)]]/(INDEX(regional_establishments[share of state establishments],MATCH(town_establishments[[#This Row],[Regional Planning Commission]],regional_establishments[Regional Planning Commission],0))) -> 0.004320987654
A91: Hardwick | B91: =INDEX(town_population[Regional Planning Commission],MATCH(town_establishments[[#This Row],[Municipality]],town_population[Municipality],0)) -> Northeastern Vermont Development Association | C91: 5 | D91: 27 | E91: 4 | F91: 2 | G91: 3 | H91: 3 | I91: 17 | K91: 4 | L91: 5 | M91: 11 | N91: 1 | O91: 7 | P91: 9 | Q91: 98 | R91: 0.05102040816 | S91: 0.2755102041 | T91: 0.04081632653 | U91: 0.02040816327 | V91: 0.0306122449 | W91: 0.0306122449 | X91: 0.1734693878 | Y91: 0 | Z91: 0.04081632653 | AA91: 0.05102040816 | AB91: 0.112244898 | AC91: 0.01020408163 | AD91: 0.07142857143 | AE91: 0.09183673469 | AF91: 0.005146518223 | AG91: =town_establishments[[#This Row],[share of state establishments]]/($AF$250-$AF$249) -> 0.005323483079 | AH91: =town_establishments[[#This Row],[share of state establishments (no residual)]]/(INDEX(regional_establishments[share of state establishments],MATCH(town_establishments[[#This Row],[Regional Planning Commission]],regional_establishments[Regional Planning Commission],0))) -> 0.06716929404
A92: Hartford | B92: =INDEX(town_population[Regional Planning Commission],MATCH(town_establishments[[#This Row],[Municipality]],town_population[Municipality],0)) -> Two Rivers-Ottauquechee Regional Commission | C92: 25 | D92: 58 | E92: 20 | F92: 13 | G92: 24 | H92: 23 | I92: 67 | J92: 1 | K92: 33 | L92: 12 | M92: 42 | N92: 8 | O92: 36 | P92: 41 | Q92: 403 | R92: 0.06203473945 | S92: 0.1439205955 | T92: 0.04962779156 | U92: 0.03225806452 | V92: 0.05955334988 | W92: 0.0570719603 | X92: 0.1662531017 | Y92: 0.002481389578 | Z92: 0.08188585608 | AA92: 0.02977667494 | AB92: 0.1042183623 | AC92: 0.01985111663 | AD92: 0.08933002481 | AE92: 0.1017369727 | AF92: 0.0211637433 | AG92: =town_establishments[[#This Row],[share of state establishments]]/($AF$250-$AF$249) -> 0.02189146613 | AH92: =town_establishments[[#This Row],[share of state establishments (no residual)]]/(INDEX(regional_establishments[share of state establishments],MATCH(town_establishments[[#This Row],[Regional Planning Commission]],regional_establishments[Regional Planning Commission],0))) -> 0.2487654321
A93: Hartland | B93: =INDEX(town_population[Regional Planning Commission],MATCH(town_establishments[[#This Row],[Municipality]],town_population[Municipality],0)) -> Two Rivers-Ottauquechee Regional Commission | C93: 4 | D93: 5 | E93: 3 | G93: 1 | H93: 3 | I93: 9 | K93: 9 | L93: 1 | M93: 3 | N93: 2 | O93: 2 | P93: 6 | Q93: 48 | R93: 0.08333333333 | S93: 0.1041666667 | T93: 0.0625 | U93: 0 | V93: 0.02083333333 | W93: 0.0625 | X93: 0.1875 | Y93: 0 | Z93: 0.1875 | AA93: 0.02083333333 | AB93: 0.0625 | AC93: 0.04166666667 | AD93: 0.04166666667 | AE93: 0.125 | AF93: 0.002520743619 | AG93: =town_establishments[[#This Row],[share of state establishments]]/($AF$250-$AF$249) -> 0.002607420284 | AH93: =town_establishments[[#This Row],[share of state establishments (no residual)]]/(INDEX(regional_establishments[share of state establishments],MATCH(town_establishments[[#This Row],[Regional Planning Commission]],regional_establishments[Regional Planning Commission],0))) -> 0.02962962963
A94: Highgate | B94: =INDEX(town_population[Regional Planning Commission],MATCH(town_establishments[[#This Row],[Municipality]],town_population[Municipality],0)) -> Northwest Regional Planning Commission | C94: 2 | D94: 4 | E94: 4 | I94: 2 | K94: 4 | L94: 1 | M94: 3 | O94: 2 | P94: 1 | Q94: 23 | R94: 0.08695652174 | S94: 0.1739130435 | T94: 0.1739130435 | U94: 0 | V94: 0 | W94: 0 | X94: 0.08695652174 | Y94: 0 | Z94: 0.1739130435 | AA94: 0.04347826087 | AB94: 0.1304347826 | AC94: 0 | AD94: 0.08695652174 | AE94: 0.04347826087 | AF94: 0.001207856318 | AG94: =town_establishments[[#This Row],[share of state establishments]]/($AF$250-$AF$249) -> 0.001249388886 | AH94: =town_establishments[[#This Row],[share of state establishments (no residual)]]/(INDEX(regional_establishments[share of state establishments],MATCH(town_establishments[[#This Row],[Regional Planning Commission]],regional_establishments[Regional Planning Commission],0))) -> 0.02250489237
A95: Hinesburg | B95: =INDEX(town_population[Regional Planning Commission],MATCH(town_establishments[[#This Row],[Municipality]],town_population[Municipality],0)) -> Chittenden County Regional Planning Commission | C95: 9 | D95: 13 | E95: 2 | F95: 5 | G95: 4 | I95: 26 | K95: 10 | L95: 2 | M95: 8 | N95: 5 | O95: 6 | P95: 15 | Q95: 105 | R95: 0.08571428571 | S95: 0.1238095238 | T95: 0.01904761905 | U95: 0.04761904762 | V95: 0.0380952381 | W95: 0 | X95: 0.2476190476 | Y95: 0 | Z95: 0.09523809524 | AA95: 0.01904761905 | AB95: 0.07619047619 | AC95: 0.04761904762 | AD95: 0.05714285714 | AE95: 0.1428571429 | AF95: 0.005514126667 | AG95: =town_establishments[[#This Row],[share of state establishments]]/($AF$250-$AF$249) -> 0.00570373187 | AH95: =town_establishments[[#This Row],[share of state establishments (no residual)]]/(INDEX(regional_establishments[share of state establishments],MATCH(town_establishments[[#This Row],[Regional Planning Commission]],regional_establishments[Regional Planning Commission],0))) -> 0.01937626868
A96: Holland | B96: =INDEX(town_population[Regional Planning Commission],MATCH(town_establishments[[#This Row],[Municipality]],town_population[Municipality],0)) -> Northeastern Vermont Development Association | L96: 1 | N96: 1 | P96: 1 | Q96: 3 | R96: 0 | S96: 0 | T96: 0 | U96: 0 | V96: 0 | W96: 0 | X96: 0 | Y96: 0 | Z96: 0 | AA96: 0.3333333333 | AB96: 0 | AC96: 0.3333333333 | AD96: 0 | AE96: 0.3333333333 | AF96: 0.0001575464762 | AG96: =town_establishments[[#This Row],[share of state establishments]]/($AF$250-$AF$249) -> 0.0001629637677 | AH96: =town_establishments[[#This Row],[share of state establishments (no residual)]]/(INDEX(regional_establishments[share of state establishments],MATCH(town_establishments[[#This Row],[Regional Planning Commission]],regional_establishments[Regional Planning Commission],0))) -> 0.002056202879
A97: Hubbardton | B97: =INDEX(town_population[Regional Planning Commission],MATCH(town_establishments[[#This Row],[Municipality]],town_population[Municipality],0)) -> Rutland Regional Planning Commission | I97: 0 | K97: 1 | O97: 1 | P97: 1 | Q97: 3 | R97: 0 | S97: 0 | T97: 0 | U97: 0 | V97: 0 | W97: 0 | X97: 0 | Y97: 0 | Z97: 0.3333333333 | AA97: 0 | AB97: 0 | AC97: 0 | AD97: 0.3333333333 | AE97: 0.3333333333 | AF97: 0.0001575464762 | AG97: =town_establishments[[#This Row],[share of state establishments]]/($AF$250-$AF$249) -> 0.0001629637677 | AH97: =town_establishments[[#This Row],[share of state establishments (no residual)]]/(INDEX(regional_establishments[share of state establishments],MATCH(town_establishments[[#This Row],[Regional Planning Commission]],regional_establishments[Regional Planning Commission],0))) -> 0.001687289089
A98: Huntington | B98: =INDEX(town_population[Regional Planning Commission],MATCH(town_establishments[[#This Row],[Municipality]],town_population[Municipality],0)) -> Chittenden County Regional Planning Commission | C98: 2 | D98: 2 | E98: 1 | I98: 13 | K98: 3 | L98: 1 | N98: 1 | O98: 2 | P98: 5 | Q98: 30 | R98: 0.06666666667 | S98: 0.06666666667 | T98: 0.03333333333 | U98: 0 | V98: 0 | W98: 0 | X98: 0.4333333333 | Y98: 0 | Z98: 0.1 | AA98: 0.03333333333 | AB98: 0 | AC98: 0.03333333333 | AD98: 0.06666666667 | AE98: 0.1666666667 | AF98: 0.001575464762 | AG98: =town_establishments[[#This Row],[share of state establishments]]/($AF$250-$AF$249) -> 0.001629637677 | AH98: =town_establishments[[#This Row],[share of state establishments (no residual)]]/(INDEX(regional_establishments[share of state establishments],MATCH(town_establishments[[#This Row],[Regional Planning Commission]],regional_establishments[Regional Planning Commission],0))) -> 0.005536076767
A99: Hyde Park | B99: =INDEX(town_population[Regional Planning Commission],MATCH(town_establishments[[#This Row],[Municipality]],town_population[Municipality],0)) -> Lamoille County Planning Commission | C99: 5 | D99: 2 | E99: 4 | F99: 1 | I99: 10 | K99: 15 | L99: 1 | M99: 5 | O99: 1 | P99: 6 | Q99: 50 | R99: 0.1 | S99: 0.04 | T99: 0.08 | U99: 0.02 | V99: 0 | W99: 0 | X99: 0.2 | Y99: 0 | Z99: 0.3 | AA99: 0.02 | AB99: 0.1 | AC99: 0 | AD99: 0.02 | AE99: 0.12 | AF99: 0.002625774604 | AG99: =town_establishments[[#This Row],[share of state establishments]]/($AF$250-$AF$249) -> 0.002716062795 | AH99: =town_establishments[[#This Row],[share of state establishments (no residual)]]/(INDEX(regional_establishments[share of state establishments],MATCH(town_establishments[[#This Row],[Regional Planning Commission]],regional_establishments[Regional Planning Commission],0))) -> 0.0612745098
A100: Ira | B100: =INDEX(town_population[Regional Planning Commission],MATCH(town_establishments[[#This Row],[Municipality]],town_population[Municipality],0)) -> Rutland Regional Planning Commission | D100: 1 | Q100: 1 | R100: 0 | S100: 1 | T100: 0 | U100: 0 | V100: 0 | W100: 0 | X100: 0 | Y100: 0 | Z100: 0 | AA100: 0 | AB100: 0 | AC100: 0 | AD100: 0 | AE100: 0 | AF100: 5.251549207e-05 | AG100: =town_establishments[[#This Row],[share of state establishments]]/($AF$250-$AF$249) -> 5.432125591e-05 | AH100: =town_establishments[[#This Row],[share of state establishments (no residual)]]/(INDEX(regional_establishments[share of state establishments],MATCH(town_establishments[[#This Row],[Regional Planning Commission]],regional_establishments[Regional Planning Commission],0))) -> 0.0005624296963
A101: Irasburg | B101: =INDEX(town_population[Regional Planning Commission],MATCH(town_establishments[[#This Row],[Municipality]],town_population[Municipality],0)) -> Northeastern Vermont Development Association | C101: 2 | D101: 3 | E101: 2 | F101: 2 | I101: 1 | K101: 1 | L101: 1 | O101: 1 | P101: 3 | Q101: 16 | R101: 0.125 | S101: 0.1875 | T101: 0.125 | U101: 0.125 | V101: 0 | W101: 0 | X101: 0.0625 | Y101: 0 | Z101: 0.0625 | AA101: 0.0625 | AB101: 0 | AC101: 0 | AD101: 0.0625 | AE101: 0.1875 | AF101: 0.0008402478731 | AG101: =town_establishments[[#This Row],[share of state establishments]]/($AF$250-$AF$249) -> 0.0008691400945 | AH101: =town_establishments[[#This Row],[share of state establishments (no residual)]]/(INDEX(regional_establishments[share of state establishments],MATCH(town_establishments[[#This Row],[Regional Planning Commission]],regional_establishments[Regional Planning Commission],0))) -> 0.01096641535
A102: Isle La Motte | B102: =INDEX(town_population[Regional Planning Commission],MATCH(town_establishments[[#This Row],[Municipality]],town_population[Municipality],0)) -> Northwest Regional Planning Commission | D102: 2 | E102: 1 | G102: 1 | K102: 2 | L102: 1 | O102: 3 | P102: 1 | Q102: 11 | R102: 0 | S102: 0.1818181818 | T102: 0.09090909091 | U102: 0 | V102: 0.09090909091 | W102: 0 | X102: 0 | Y102: 0 | Z102: 0.1818181818 | AA102: 0.09090909091 | AB102: 0 | AC102: 0 | AD102: 0.2727272727 | AE102: 0.09090909091 | AF102: 0.0005776704128 | AG102: =town_establishments[[#This Row],[share of state establishments]]/($AF$250-$AF$249) -> 0.000597533815 | AH102: =town_establishments[[#This Row],[share of state establishments (no residual)]]/(INDEX(regional_establishments[share of state establishments],MATCH(town_establishments[[#This Row],[Regional Planning Commission]],regional_establishments[Regional Planning Commission],0))) -> 0.01076320939
A103: Jamaica | B103: =INDEX(town_population[Regional Planning Commission],MATCH(town_establishments[[#This Row],[Municipality]],town_population[Municipality],0)) -> Windham Regional Commission | C103: 1 | D103: 6 | E103: 1 | H103: 1 | I103: 5 | J103: 1 | K103: 4 | L103: 1 | O103: 4 | P103: 1 | Q103: 25 | R103: 0.04 | S103: 0.24 | T103: 0.04 | U103: 0 | V103: 0 | W103: 0.04 | X103: 0.2 | Y103: 0.04 | Z103: 0.16 | AA103: 0.04 | AB103: 0 | AC103: 0 | AD103: 0.16 | AE103: 0.04 | AF103: 0.001312887302 | AG103: =town_establishments[[#This Row],[share of state establishments]]/($AF$250-$AF$249) -> 0.001358031398 | AH103: =town_establishments[[#This Row],[share of state establishments (no residual)]]/(INDEX(regional_establishments[share of state establishments],MATCH(town_establishments[[#This Row],[Regional Planning Commission]],regional_establishments[Regional Planning Commission],0))) -> 0.01609787508
A104: Jay | B104: =INDEX(town_population[Regional Planning Commission],MATCH(town_establishments[[#This Row],[Municipality]],town_population[Municipality],0)) -> Northeastern Vermont Development Association | D104: 2 | E104: 2 | I104: 2 | K104: 1 | L104: 1 | M104: 2 | O104: 4 | Q104: 14 | R104: 0 | S104: 0.1428571429 | T104: 0.1428571429 | U104: 0 | V104: 0 | W104: 0 | X104: 0.1428571429 | Y104: 0 | Z104: 0.07142857143 | AA104: 0.07142857143 | AB104: 0.1428571429 | AC104: 0 | AD104: 0.2857142857 | AE104: 0 | AF104: 0.000735216889 | AG104: =town_establishments[[#This Row],[share of state establishments]]/($AF$250-$AF$249) -> 0.0007604975827 | AH104: =town_establishments[[#This Row],[share of state establishments (no residual)]]/(INDEX(regional_establishments[share of state establishments],MATCH(town_establishments[[#This Row],[Regional Planning Commission]],regional_establishments[Regional Planning Commission],0))) -> 0.009595613434
A105: Jericho | B105: =INDEX(town_population[Regional Planning Commission],MATCH(town_establishments[[#This Row],[Municipality]],town_population[Municipality],0)) -> Chittenden County Regional Planning Commission | C105: 6 | D105: 9 | E105: 4 | F105: 1 | G105: 4 | H105: 1 | I105: 23 | J105: 1 | K105: 7 | L105: 4 | M105: 7 | N105: 2 | O105: 3 | P105: 6 | Q105: 78 | R105: 0.07692307692 | S105: 0.1153846154 | T105: 0.05128205128 | U105: 0.01282051282 | V105: 0.05128205128 | W105: 0.01282051282 | X105: 0.2948717949 | Y105: 0.01282051282 | Z105: 0.08974358974 | AA105: 0.05128205128 | AB105: 0.08974358974 | AC105: 0.02564102564 | AD105: 0.03846153846 | AE105: 0.07692307692 | AF105: 0.004096208381 | AG105: =town_establishments[[#This Row],[share of state establishments]]/($AF$250-$AF$249) -> 0.004237057961 | AH105: =town_establishments[[#This Row],[share of state establishments (no residual)]]/(INDEX(regional_establishments[share of state establishments],MATCH(town_establishments[[#This Row],[Regional Planning Commission]],regional_establishments[Regional Planning Commission],0))) -> 0.01439379959
A106: Johnson | B106: =INDEX(town_population[Regional Planning Commission],MATCH(town_establishments[[#This Row],[Municipality]],town_population[Municipality],0)) -> Lamoille County Planning Commission | C106: 6 | D106: 17 | E106: 1 | G106: 5 | I106: 7 | K106: 5 | L106: 3 | M106: 5 | O106: 9 | P106: 3 | Q106: 61 | R106: 0.09836065574 | S106: 0.2786885246 | T106: 0.01639344262 | U106: 0 | V106: 0.08196721311 | W106: 0 | X106: 0.1147540984 | Y106: 0 | Z106: 0.08196721311 | AA106: 0.04918032787 | AB106: 0.08196721311 | AC106: 0 | AD106: 0.1475409836 | AE106: 0.04918032787 | AF106: 0.003203445016 | AG106: =town_establishments[[#This Row],[share of state establishments]]/($AF$250-$AF$249) -> 0.00331359661 | AH106: =town_establishments[[#This Row],[share of state establishments (no residual)]]/(INDEX(regional_establishments[share of state establishments],MATCH(town_establishments[[#This Row],[Regional Planning Commission]],regional_establishments[Regional Planning Commission],0))) -> 0.07475490196
A107: Kirby | B107: =INDEX(town_population[Regional Planning Commission],MATCH(town_establishments[[#This Row],[Municipality]],town_population[Municipality],0)) -> Northeastern Vermont Development Association | H107: 1 | K107: 2 | M107: 1 | Q107: 4 | R107: 0 | S107: 0 | T107: 0 | U107: 0 | V107: 0 | W107: 0.25 | X107: 0 | Y107: 0 | Z107: 0.5 | AA107: 0 | AB107: 0.25 | AC107: 0 | AD107: 0 | AE107: 0 | AF107: 0.0002100619683 | AG107: =town_establishments[[#This Row],[share of state establishments]]/($AF$250-$AF$249) -> 0.0002172850236 | AH107: =town_establishments[[#This Row],[share of state establishments (no residual)]]/(INDEX(regional_establishments[share of state establishments],MATCH(town_establishments[[#This Row],[Regional Planning Commission]],regional_establishments[Regional Planning Commission],0))) -> 0.002741603838
A108: Landgrove | B108: =INDEX(town_population[Regional Planning Commission],MATCH(town_establishments[[#This Row],[Municipality]],town_population[Municipality],0)) -> Bennington County Regional Commission | D108: 1 | G108: 1 | I108: 1 | K108: 1 | O108: 1 | P108: 1 | Q108: 6 | R108: 0 | S108: 0.1666666667 | T108: 0 | U108: 0 | V108: 0.1666666667 | W108: 0 | X108: 0.1666666667 | Y108: 0 | Z108: 0.1666666667 | AA108: 0 | AB108: 0 | AC108: 0 | AD108: 0.1666666667 | AE108: 0.1666666667 | AF108: 0.0003150929524 | AG108: =town_establishments[[#This Row],[share of state establishments]]/($AF$250-$AF$249) -> 0.0003259275354 | AH108: =town_establishments[[#This Row],[share of state establishments (no residual)]]/(INDEX(regional_establishments[share of state establishments],MATCH(town_establishments[[#This Row],[Regional Planning Commission]],regional_establishments[Regional Planning Commission],0))) -> 0.005231037489
A109: Leicester | B109: =INDEX(town_population[Regional Planning Commission],MATCH(town_establishments[[#This Row],[Municipality]],town_population[Municipality],0)) -> Addison County Regional Planning Commission | C109: 2 | D109: 1 | I109: 1 | K109: 2 | L109: 1 | M109: 1 | O109: 0 | P109: 1 | Q109: 9 | R109: 0.2222222222 | S109: 0.1111111111 | T109: 0 | U109: 0 | V109: 0 | W109: 0 | X109: 0.1111111111 | Y109: 0 | Z109: 0.2222222222 | AA109: 0.1111111111 | AB109: 0.1111111111 | AC109: 0 | AD109: 0 | AE109: 0.1111111111 | AF109: 0.0004726394286 | AG109: =town_establishments[[#This Row],[share of state establishments]]/($AF$250-$AF$249) -> 0.0004888913032 | AH109: =town_establishments[[#This Row],[share of state establishments (no residual)]]/(INDEX(regional_establishments[share of state establishments],MATCH(town_establishments[[#This Row],[Regional Planning Commission]],regional_establishments[Regional Planning Commission],0))) -> 0.009615384615
A110: Lincoln | B110: =INDEX(town_population[Regional Planning Commission],MATCH(town_establishments[[#This Row],[Municipality]],town_population[Municipality],0)) -> Addison County Regional Planning Commission | C110: 1 | D110: 1 | G110: 1 | H110: 2 | I110: 7 | K110: 3 | L110: 3 | N110: 1 | O110: 1 | P110: 3 | Q110: 23 | R110: 0.04347826087 | S110: 0.04347826087 | T110: 0 | U110: 0 | V110: 0.04347826087 | W110: 0.08695652174 | X110: 0.3043478261 | Y110: 0 | Z110: 0.1304347826 | AA110: 0.1304347826 | AB110: 0 | AC110: 0.04347826087 | AD110: 0.04347826087 | AE110: 0.1304347826 | AF110: 0.001207856318 | AG110: =town_establishments[[#This Row],[share of state establishments]]/($AF$250-$AF$249) -> 0.001249388886 | AH110: =town_establishments[[#This Row],[share of state establishments (no residual)]]/(INDEX(regional_establishments[share of state establishments],MATCH(town_establishments[[#This Row],[Regional Planning Commission]],regional_establishments[Regional Planning Commission],0))) -> 0.02457264957
A111: Londonderry | B111: =INDEX(town_population[Regional Planning Commission],MATCH(town_establishments[[#This Row],[Municipality]],town_population[Municipality],0)) -> Windham Regional Commission | C111: 7 | D111: 12 | E111: 4 | F111: 1 | G111: 3 | H111: 6 | I111: 9 | K111: 12 | L111: 2 | M111: 3 | N111: 3 | O111: 8 | P111: 5 | Q111: 75 | R111: 0.09333333333 | S111: 0.16 | T111: 0.05333333333 | U111: 0.01333333333 | V111: 0.04 | W111: 0.08 | X111: 0.12 | Y111: 0 | Z111: 0.16 | AA111: 0.02666666667 | AB111: 0.04 | AC111: 0.04 | AD111: 0.1066666667 | AE111: 0.06666666667 | AF111: 0.003938661905 | AG111: =town_establishments[[#This Row],[share of state establishments]]/($AF$250-$AF$249) -> 0.004074094193 | AH111: =town_establishments[[#This Row],[share of state establishments (no residual)]]/(INDEX(regional_establishments[share of state establishments],MATCH(town_establishments[[#This Row],[Regional Planning Commission]],regional_establishments[Regional Planning Commission],0))) -> 0.04829362524
A112: Lowell | B112: =INDEX(town_population[Regional Planning Commission],MATCH(town_establishments[[#This Row],[Municipality]],town_population[Municipality],0)) -> Northeastern Vermont Development Association | E112: 1 | G112: 1 | I112: 1 | L112: 1 | N112: 1 | O112: 2 | Q112: 7 | R112: 0 | S112: 0 | T112: 0.1428571429 | U112: 0 | V112: 0.1428571429 | W112: 0 | X112: 0.1428571429 | Y112: 0 | Z112: 0 | AA112: 0.1428571429 | AB112: 0 | AC112: 0.1428571429 | AD112: 0.2857142857 | AE112: 0 | AF112: 0.0003676084445 | AG112: =town_establishments[[#This Row],[share of state establishments]]/($AF$250-$AF$249) -> 0.0003802487914 | AH112: =town_establishments[[#This Row],[share of state establishments (no residual)]]/(INDEX(regional_establishments[share of state establishments],MATCH(town_establishments[[#This Row],[Regional Planning Commission]],regional_establishments[Regional Planning Commission],0))) -> 0.004797806717
A113: Ludlow | B113: =INDEX(town_population[Regional Planning Commission],MATCH(town_establishments[[#This Row],[Municipality]],town_population[Municipality],0)) -> Southern Windsor County Regional Planning Commission | C113: 4 | D113: 26 | E113: 1 | F113: 3 | G113: 6 | H113: 14 | I113: 11 | K113: 4 | L113: 2 | M113: 6 | O113: 24 | P113: 10 | Q113: 111 | R113: 0.03603603604 | S113: 0.2342342342 | T113: 0.009009009009 | U113: 0.02702702703 | V113: 0.05405405405 | W113: 0.1261261261 | X113: 0.0990990991 | Y113: 0 | Z113: 0.03603603604 | AA113: 0.01801801802 | AB113: 0.05405405405 | AC113: 0 | AD113: 0.2162162162 | AE113: 0.09009009009 | AF113: 0.00582921962 | AG113: =town_establishments[[#This Row],[share of state establishments]]/($AF$250-$AF$249) -> 0.006029659406 | AH113: =town_establishments[[#This Row],[share of state establishments (no residual)]]/(INDEX(regional_establishments[share of state establishments],MATCH(town_establishments[[#This Row],[Regional Planning Commission]],regional_establishments[Regional Planning Commission],0))) -> 0.1761904762
A114: Lunenburg | B114: =INDEX(town_population[Regional Planning Commission],MATCH(town_establishments[[#This Row],[Municipality]],town_population[Municipality],0)) -> Northeastern Vermont Development Association | C114: 1 | D114: 3 | E114: 1 | I114: 1 | J114: 1 | K114: 3 | L114: 1 | M114: 2 | P114: 2 | Q114: 15 | R114: 0.06666666667 | S114: 0.2 | T114: 0.06666666667 | U114: 0 | V114: 0 | W114: 0 | X114: 0.06666666667 | Y114: 0.06666666667 | Z114: 0.2 | AA114: 0.06666666667 | AB114: 0.1333333333 | AC114: 0 | AD114: 0 | AE114: 0.1333333333 | AF114: 0.0007877323811 | AG114: =town_establishments[[#This Row],[share of state establishments]]/($AF$250-$AF$249) -> 0.0008148188386 | AH114: =town_establishments[[#This Row],[share of state establishments (no residual)]]/(INDEX(regional_establishments[share of state establishments],MATCH(town_establishments[[#This Row],[Regional Planning Commission]],regional_establishments[Regional Planning Commission],0))) -> 0.01028101439
A115: Lyndon | B115: =INDEX(town_population[Regional Planning Commission],MATCH(town_establishments[[#This Row],[Municipality]],town_population[Municipality],0)) -> Northeastern Vermont Development Association | C115: 8 | D115: 31 | E115: 3 | F115: 2 | G115: 8 | H115: 6 | I115: 11 | J115: 1 | K115: 10 | L115: 6 | M115: 18 | N115: 2 | O115: 23 | P115: 15 | Q115: 144 | R115: 0.05555555556 | S115: 0.2152777778 | T115: 0.02083333333 | U115: 0.01388888889 | V115: 0.05555555556 | W115: 0.04166666667 | X115: 0.07638888889 | Y115: 0.006944444444 | Z115: 0.06944444444 | AA115: 0.04166666667 | AB115: 0.125 | AC115: 0.01388888889 | AD115: 0.1597222222 | AE115: 0.1041666667 | AF115: 0.007562230858 | AG115: =town_establishments[[#This Row],[share of state establishments]]/($AF$250-$AF$249) -> 0.007822260851 | AH115: =town_establishments[[#This Row],[share of state establishments (no residual)]]/(INDEX(regional_establishments[share of state establishments],MATCH(town_establishments[[#This Row],[Regional Planning Commission]],regional_establishments[Regional Planning Commission],0))) -> 0.09869773818
A116: Maidstone | B116: =INDEX(town_population[Regional Planning Commission],MATCH(town_establishments[[#This Row],[Municipality]],town_population[Municipality],0)) -> Northeastern Vermont Development Association | E116: 1 | L116: 1 | M116: 1 | P116: 1 | Q116: 4 | R116: 0 | S116: 0 | T116: 0.25 | U116: 0 | V116: 0 | W116: 0 | X116: 0 | Y116: 0 | Z116: 0 | AA116: 0.25 | AB116: 0.25 | AC116: 0 | AD116: 0 | AE116: 0.25 | AF116: 0.0002100619683 | AG116: =town_establishments[[#This Row],[share of state establishments]]/($AF$250-$AF$249) -> 0.0002172850236 | AH116: =town_establishments[[#This Row],[share of state establishments (no residual)]]/(INDEX(regional_establishments[share of state establishments],MATCH(town_establishments[[#This Row],[Regional Planning Commission]],regional_establishments[Regional Planning Commission],0))) -> 0.002741603838
